{"text_format":"1","workbook":"xlsx","n_sheets":10,"sheets":["作成要領","請求基本情報_記入例","請求基本情報","契約_記入例","契約 (8%)","契約 (10%)","契約 (10%) 内訳金額手入力","契約外_記入例","契約外(8%)","契約外(10%)"],"not_rendered":{"charts":0,"images":1,"macros":1,"external_links":1,"defined_names":15,"comments":5,"pivot_tables":0},"unopened":[],"bounds":{"document_bytes":16777216,"sheet_cells":100000,"rows_first":2000,"rows_last":500,"rows_between":2000,"halvings":0,"cell_chars":16384,"cell_head_chars":4096},"cells_cut":0,"cells_raw":0,"read":"whole","date_system":"1900"}

{"sheet":"作成要領","index":0,"n_rows":28,"n_cols":2,"rows_kept":28,"cut":false,"hidden":false,"merged":[[1,1,3,10],[11,1,13,10],[27,1,29,10],[23,1,26,10],[6,1,6,10],[7,1,7,10],[8,1,8,10],[15,1,15,10],[17,1,17,10],[16,1,16,10],[18,1,18,10],[19,1,19,10],[20,1,20,10]]}
[null,"1．請求書到着締切日"]
[null,"毎月15日締めで請求書を作成の上､当月18日までに提出してください。\n(※18日が土･日･祝日の場合は､18日中に本社の郵便ポストにご投函ください。\n 18日を過ぎて到着したものは､次月締め分として処理します。)"]
[]
[]
[]
[null,"2．請求書提出先"]
[null,"〒700-0944 岡山市南区泉田2丁目7-26"]
[null,"中国建設工業株式会社"]
[null,"こちらまで書面にてご提出ください ｡(FAX､メールは不可となります｡)"]
[]
[null,"3．支払日"]
[null,"請求書締日の翌月10日にお支払いします｡(ただし10日が土･日･祝日の場合は翌営業日とします。)"]
[]
[]
[null,"4．請求書作成要領"]
[null,"① ｢請求基本情報｣の全ての項目を入力してください。"]
[null,"② ｢契約｣または｢契約外｣のいずれかを選択してください｡(税率にご注意ください)"]
[null,"③ 黄色の網かけ部分が入力欄になります｡(入力すると網かけの色が消えます)"]
[null,"④ 請求が複数ある場合は､「請求基本情報」を入力後に、シートをコピーしてご使用"]
[null,"　 ください。"]
[null,"⑤ 入力後､印刷していただき､［提出用］に社印をご捺印の上､ご提出ください｡"]
[]
[null,"5．契約分支払残金"]
[null,"契約金について､最終請求において全額支払いでなかった場合､保留金等残金は次月に必ず請求してください。残金があっても請求書が提出されないと支払ができませんのでご注意ください。"]
[]
[]
[]
[null,"出来高請求分や請求内容､支払時の査定金額､相殺内容等不明なところは現場責任者にお問合せください。"]

{"sheet":"請求基本情報_記入例","index":1,"n_rows":38,"n_cols":146,"rows_kept":38,"cut":false,"hidden":false,"merged":[[29,1,29,9],[29,10,29,53],[30,1,30,9],[30,10,30,53],[31,1,40,9],[31,10,34,11],[31,12,34,21],[31,22,34,23],[31,24,34,33],[31,40,34,44],[31,45,34,53],[35,10,36,16],[35,17,36,53],[37,10,40,16],[37,17,40,53],[31,34,34,39],[19,1,28,9],[19,10,21,12],[19,13,21,53],[22,10,25,53],[26,10,28,13],[26,14,28,31],[26,32,28,35],[26,36,28,53],[9,1,14,9],[9,10,10,14],[9,15,10,53],[11,10,14,53],[15,1,18,9],[15,10,18,13],[15,14,18,31],[15,32,18,35],[15,36,18,53],[0,1,5,53],[7,36,8,43],[7,44,8,45],[7,46,8,47],[7,48,8,49],[7,50,8,51],[7,52,8,53]]}
[null,"請 求 基 本 情 報"]
[]
[]
[]
[]
[]
[]
[null,null,null,null,null,null,null,null,null,null,null,null,null,null,null,null,null,null,null,null,null,null,null,null,null,null,null,null,null,null,null,null,null,null,null,null,"〇〇〇〇",null,null,null,null,null,null,null,"年",null,"〇",null,"月",null,"〇",null,"日"]
[]
[null,"会 社 名",null,null,null,null,null,null,null,null,"フリガナ",null,null,null,null,"チュウゴクケンセツコウギョウ（カ"]
[]
[null,null,null,null,null,null,null,null,null,null,"中国建設工業株式会社"]
[]
[]
[]
[null,"代 表 者\n役 職 名",null,null,null,null,null,null,null,null,"役 職",null,null,null,"代表取締役",null,null,null,null,null,null,null,null,null,null,null,null,null,null,null,null,null,"氏 名",null,null,null,"松尾 一昌",null,null,null,null,null,null,null,null,null,null,null,null,null,null,null,null,null,null," "]
[]
[]
[]
[null,"住　　所",null,null,null,null,null,null,null,null," 〒",null,null,"700-0944"]
[]
[]
[null,null,null,null,null,null,null,null,null,null,"岡山市南区泉田2丁目7番26号"]
[]
[]
[]
[null,null,null,null,null,null,null,null,null,null,"TEL",null,null,null,"086-263-3241",null,null,null,null,null,null,null,null,null,null,null,null,null,null,null,null,null,"FAX",null,null,null,"086-264-9562"]
[]
[]
[null,"インボイス　　登録番号",null,null,null,null,null,null,null,null,"T1-1111-1111-1111"]
[null,"業　者\nコード",null,null,null,null,null,null,null,null,12345]
[null,"取引銀行",null,null,null,null,null,null,null,null,"銀行名",null,"〇〇〇銀行",null,null,null,null,null,null,null,null,null,"支店名",null,"〇〇〇支店",null,null,null,null,null,null,null,null,null,"   普 通\n   当 座",null,null,null,null,null,"口座番号",null,null,null,null,"〇〇〇〇〇〇〇",null,null,null,null,null,null,null,null,null,null,null,null,null,null,null,null,null,null,null,null,null,null,null,null,null,null,null,null,null,null,null,null,null,null,null,null,null,null,null,null,null,null,null,null,null,null,null,null,null,null,null,null,null,null,null,null,null,null,null,null,null,null,null,null,null,null,null,null,null,null,null,null,null,null,null,null,null,null,null,null,null,null,null,null,null,null,null,null,null,null,null,null,null,null,null,null,null,null,true,false]
[]
[]
[]
[null,null,null,null,null,null,null,null,null,null,"フリガナ",null,null,null,null,null,null,"チュウゴクケンセツコウギョウ（カ"]
[]
[null,null,null,null,null,null,null,null,null,null,"口座名義人",null,null,null,null,null,null,"中国建設工業株式会社"]

{"sheet":"請求基本情報","index":2,"n_rows":38,"n_cols":146,"rows_kept":38,"cut":false,"hidden":false,"merged":[[19,10,21,12],[29,1,29,9],[19,1,28,9],[7,46,8,47],[7,44,8,45],[7,36,8,43],[19,13,21,53],[9,10,10,14],[9,15,10,53],[29,10,29,53],[7,52,8,53],[7,50,8,51],[7,48,8,49],[26,14,28,31],[26,36,28,53],[37,10,40,16],[35,17,36,53],[31,22,34,23],[31,45,34,53],[31,40,34,44],[31,34,34,39],[31,10,34,11],[31,12,34,21],[31,24,34,33],[0,1,5,53],[37,17,40,53],[30,10,30,53],[30,1,30,9],[15,1,18,9],[11,10,14,53],[9,1,14,9],[15,10,18,13],[15,32,18,35],[15,14,18,31],[15,36,18,53],[31,1,40,9],[22,10,25,53],[26,10,28,13],[26,32,28,35],[35,10,36,16]]}
[null,"請 求 基 本 情 報"]
[]
[]
[]
[]
[]
[]
[null,null,null,null,null,null,null,null,null,null,null,null,null,null,null,null,null,null,null,null,null,null,null,null,null,null,null,null,null,null,null,null,null,null,null,null,null,null,null,null,null,null,null,null,"年",null,null,null,"月",null,null,null,"日"]
[]
[null,"会 社 名",null,null,null,null,null,null,null,null,"フリガナ"]
[]
[]
[]
[]
[]
[null,"代 表 者\n役 職 名",null,null,null,null,null,null,null,null,"役 職",null,null,null,null,null,null,null,null,null,null,null,null,null,null,null,null,null,null,null,null,null,"氏 名",null,null,null,null,null,null,null,null,null,null,null,null,null,null,null,null,null,null,null,null,null,null," "]
[]
[]
[]
[null,"住　　所",null,null,null,null,null,null,null,null," 〒"]
[]
[]
[]
[]
[]
[]
[null,null,null,null,null,null,null,null,null,null,"TEL",null,null,null,null,null,null,null,null,null,null,null,null,null,null,null,null,null,null,null,null,null,"FAX"]
[]
[]
[null,"インボイス　　登録番号"]
[null,"業　者\nコード"]
[null,"取引銀行",null,null,null,null,null,null,null,null,"銀行名",null,null,null,null,null,null,null,null,null,null,null,"支店名",null,null,null,null,null,null,null,null,null,null,null,"   普 通\n   当 座",null,null,null,null,null,"口座番号",null,null,null,null,null,null,null,null,null,null,null,null,null,null,null,null,null,null,null,null,null,null,null,null,null,null,null,null,null,null,null,null,null,null,null,null,null,null,null,null,null,null,null,null,null,null,null,null,null,null,null,null,null,null,null,null,null,null,null,null,null,null,null,null,null,null,null,null,null,null,null,null,null,null,null,null,null,null,null,null,null,null,null,null,null,null,null,null,null,null,null,null,null,null,null,null,null,null,null,null,null,null,null,false,false]
[]
[]
[]
[null,null,null,null,null,null,null,null,null,null,"フリガナ"]
[]
[null,null,null,null,null,null,null,null,null,null,"口座名義人"]

{"sheet":"契約_記入例","index":3,"n_rows":97,"n_cols":149,"rows_kept":97,"cut":false,"hidden":false,"merged":[[74,1,76,4],[74,5,76,30],[74,31,76,38],[85,35,86,52],[86,1,94,8],[87,35,88,42],[87,43,88,52],[89,31,90,34],[89,35,90,36],[89,37,90,43],[89,44,90,45],[89,46,90,52],[91,9,94,11],[91,12,92,29],[93,12,94,29],[93,31,94,35],[93,36,94,52],[91,31,92,35],[91,36,92,52],[96,1,97,20],[96,21,97,40],[96,41,97,52],[98,1,101,20],[98,21,101,40],[98,41,101,52],[77,148,79,155],[81,9,82,12],[83,35,84,52],[88,9,88,11],[89,9,90,12],[89,13,90,16],[89,17,90,21],[89,22,90,29],[87,9,87,11],[87,12,88,20],[87,21,88,29],[74,39,79,52],[77,1,79,4],[77,5,79,30],[77,31,79,38],[81,31,82,33],[83,31,84,33],[84,1,85,8],[68,1,70,4],[68,5,70,30],[68,31,70,38],[68,39,70,52],[71,1,73,4],[71,5,73,30],[71,31,73,38],[71,39,73,52],[65,5,67,30],[65,31,67,38],[65,39,67,52],[65,148,67,155],[62,1,64,2],[62,3,64,4],[62,5,64,14],[62,15,64,22],[62,23,64,26],[62,27,64,30],[62,31,64,38],[62,39,64,42],[68,148,70,155],[56,148,58,155],[59,1,61,2],[59,3,61,4],[59,5,61,14],[59,15,61,22],[59,23,61,26],[59,27,61,30],[59,31,61,38],[59,39,61,42],[59,43,61,52],[59,148,61,155],[56,1,58,2],[56,3,58,4],[56,5,58,14],[56,15,58,22],[56,23,58,26],[56,27,58,30],[56,31,58,38],[56,39,58,42],[56,43,58,52],[62,43,64,52],[62,148,64,155],[65,1,67,4],[50,148,52,155],[53,1,55,2],[53,3,55,4],[53,5,55,14],[53,15,55,22],[53,23,55,26],[53,27,55,30],[53,31,55,38],[53,39,55,42],[53,43,55,52],[53,148,55,155],[50,1,52,2],[50,3,52,4],[50,5,52,14],[50,15,52,22],[50,23,52,26],[50,27,52,30],[50,31,52,38],[50,39,52,42],[50,43,52,52],[44,148,46,155],[47,1,49,2],[47,3,49,4],[47,5,49,14],[47,15,49,22],[47,23,49,26],[47,27,49,30],[47,31,49,38],[47,39,49,42],[47,43,49,52],[47,148,49,155],[44,1,46,2],[44,3,46,4],[44,5,46,14],[44,15,46,22],[44,23,46,26],[44,27,46,30],[44,31,46,38],[44,39,46,42],[44,43,46,52],[38,148,40,155],[41,1,43,2],[41,3,43,4],[41,5,43,14],[41,15,43,22],[41,23,43,26],[41,27,43,30],[41,31,43,38],[41,39,43,42],[41,43,43,52],[41,148,43,155],[38,1,40,2],[38,3,40,4],[38,5,40,14],[38,15,40,22],[38,23,40,26],[38,27,40,30],[38,31,40,38],[38,39,40,42],[38,43,40,52],[32,148,34,155],[35,1,37,2],[35,3,37,4],[35,5,37,14],[35,15,37,22],[35,23,37,26],[35,27,37,30],[35,31,37,38],[35,39,37,42],[35,43,37,52],[35,148,37,155],[32,1,34,2],[32,3,34,4],[32,5,34,14],[32,15,34,22],[32,23,34,26],[32,27,34,30],[32,31,34,38],[32,39,34,42],[32,43,34,52],[26,148,28,155],[29,1,31,2],[29,3,31,4],[29,5,31,14],[29,15,31,22],[29,23,31,26],[29,27,31,30],[29,31,31,38],[29,39,31,42],[29,43,31,52],[29,148,31,155],[26,1,28,2],[26,3,28,4],[26,5,28,14],[26,15,28,22],[26,23,28,26],[26,27,28,30],[26,31,28,38],[26,39,28,42],[26,43,28,52],[20,50,21,52],[23,1,25,2],[23,3,25,4],[23,5,25,14],[23,15,25,22],[23,23,25,30],[23,31,25,38],[23,39,25,42],[23,43,25,52],[20,1,21,7],[20,8,21,8],[20,9,21,27],[20,30,21,34],[20,35,21,37],[20,38,21,40],[20,41,21,43],[20,44,21,46],[20,47,21,49],[18,1,19,7],[18,8,19,8],[18,9,19,27],[18,30,19,34],[18,35,19,37],[18,38,19,40],[14,1,16,5],[14,6,16,8],[15,30,16,34],[15,35,16,37],[15,38,16,40],[14,9,16,22],[14,23,16,27],[11,1,13,5],[11,6,13,8],[11,30,12,34],[11,35,12,37],[11,38,12,40],[11,41,12,43],[11,44,12,46],[9,1,10,27],[9,30,10,34],[9,35,10,37],[9,38,10,40],[9,41,10,43],[9,44,10,46],[13,30,14,34],[13,35,14,37],[13,38,14,40],[11,9,13,22],[11,23,13,27],[7,47,8,49],[18,41,19,43],[18,44,19,46],[18,47,19,49],[18,50,19,52],[9,47,10,49],[9,50,10,52],[11,47,12,49],[11,50,12,52],[15,41,16,43],[15,44,16,46],[15,47,16,49],[15,50,16,52],[7,50,8,52],[13,41,14,43],[13,44,14,46],[13,47,14,49],[13,50,14,52],[1,51,2,52],[3,1,5,27],[3,30,4,34],[5,30,6,34],[5,35,6,37],[5,38,6,40],[5,41,6,43],[5,44,6,46],[5,47,6,49],[1,1,2,27],[1,35,2,42],[1,43,2,44],[1,45,2,46],[1,47,2,48],[1,49,2,50],[5,50,6,52],[6,1,8,27],[7,30,8,34],[7,35,8,37],[7,38,8,40],[3,35,4,43],[3,44,4,52],[7,41,8,43],[7,44,8,46]]}
[]
[null,"【業 者 控】",null,null,null,null,null,null,null,null,null,null,null,null,null,null,null,null,null,null,null,null,null,null,null,null,null,null,null,null,null,null,null,null,null,2023,null,null,null,null,null,null,null,"年",null,8,null,"月",null,15,null,"日"]
[]
[null,"請　求　書（契約）",null,null,null,null,null,null,null,null,null,null,null,null,null,null,null,null,null,null,null,null,null,null,null,null,null,null,null,null,"※ 註",null,null,null,null,"第　　　号"]
[]
[null,null,null,null,null,null,null,null,null,null,null,null,null,null,null,null,null,null,null,null,null,null,null,null,null,null,null,null,null,null,"契 約 額"]
[null,"中 国 建 設 工 業 ㈱　 御 中"]
[null,null,null,null,null,null,null,null,null,null,null,null,null,null,null,null,null,null,null,null,null,null,null,null,null,null,null,null,null,null,"支払済額"]
[]
[null,"下記の通りご請求申し上げます。",null,null,null,null,null,null,null,null,null,null,null,null,null,null,null,null,null,null,null,null,null,null,null,null,null,null,null,null,"今回支払額"]
[]
[null,"税別金額",null,null,null,null,"金",null,null,{"$f":"AF72+AF78","v":4825000},null,null,null,null,null,null,null,null,null,null,null,null,null,null,null,null,null,null,null,null,"差引残高"]
[]
[null,null,null,null,null,null,null,null,null,null,null,null,null,null,null,null,null,null,null,null,null,null,null,null,null,null,null,null,null,null,"立 替 分"]
[null,"消 費 税",null,null,null,null,"金",null,null,{"$f":"AF75","v":386000}]
[null,null,null,null,null,null,null,null,null,null,null,null,null,null,null,null,null,null,null,null,null,null,null,null,null,null,null,null,null,null,"支払合計"]
[]
[]
[null,"作業所及び担当者",null,null,null,null,null,null,"：","〇〇〇新築工事　〇〇所長",null,null,null,null,null,null,null,null,null,null,null,null,null,null,null,null,null,null,null,null,"現場査定額"]
[]
[null,"※作業所コード",null,null,null,null,null,null,"：",null,null,null,null,null,null,null,null,null,null,null,null,null,null,null,null,null,null,null,null,null,"上記の90％"]
[]
[]
[null,"月",null,"日",null,"品　名",null,null,null,null,null,null,null,null,null,"契約金額",null,null,null,null,null,null,null,"累計出来高",null,null,null,null,null,null,null,"金　額",null,null,null,null,null,null,null,"非課税",null,null,null,"備　考"]
[]
[]
[null,8,null,1,null,"木工事",null,null,null,null,null,null,null,null,null,10000000,null,null,null,null,null,null,null,68.25,null,null,null,"％",null,null,null,{"$f":"IF(OR(AB27=\"%\",AB27=\"％\"),P27*X27*0.01,P27*X27)","v":6825000},null,null,null,null,null,null,null,null,null,null,null,null,null,null,null,null,null,null,null,null,null,null,null,null,null,null,null,null,null,null,null,null,null,null,null,null,null,null,null,null,null,null,null,null,null,null,null,null,null,null,null,null,null,null,null,null,null,null,null,null,null,null,null,null,null,null,null,null,null,null,null,null,null,null,null,null,null,null,null,null,null,null,null,null,null,null,null,null,null,null,null,null,null,null,null,null,null,null,null,null,null,null,null,null,null,null,null,null,null,null,null,null,null,null,null,null,{"$f":"IF(AN27=\"※\",AF27,\"\")","v":""}]
[]
[]
[null,null,null,null,null,null,null,null,null,null,null,null,null,null,null,null,null,null,null,null,null,null,null,null,null,null,null,null,null,null,null,{"$f":"IF(OR(AB30=\"%\",AB30=\"％\"),P30*X30*0.01,P30*X30)","v":0},null,null,null,null,null,null,null,null,null,null,null,null,null,null,null,null,null,null,null,null,null,null,null,null,null,null,null,null,null,null,null,null,null,null,null,null,null,null,null,null,null,null,null,null,null,null,null,null,null,null,null,null,null,null,null,null,null,null,null,null,null,null,null,null,null,null,null,null,null,null,null,null,null,null,null,null,null,null,null,null,null,null,null,null,null,null,null,null,null,null,null,null,null,null,null,null,null,null,null,null,null,null,null,null,null,null,null,null,null,null,null,null,null,null,null,null,{"$f":"IF(AN30=\"※\",AF30,\"\")","v":""}]
[]
[]
[null,null,null,null,null,null,null,null,null,null,null,null,null,null,null,null,null,null,null,null,null,null,null,null,null,null,null,null,null,null,null,{"$f":"IF(OR(AB33=\"%\",AB33=\"％\"),P33*X33*0.01,P33*X33)","v":0},null,null,null,null,null,null,null,null,null,null,null,null,null,null,null,null,null,null,null,null,null,null,null,null,null,null,null,null,null,null,null,null,null,null,null,null,null,null,null,null,null,null,null,null,null,null,null,null,null,null,null,null,null,null,null,null,null,null,null,null,null,null,null,null,null,null,null,null,null,null,null,null,null,null,null,null,null,null,null,null,null,null,null,null,null,null,null,null,null,null,null,null,null,null,null,null,null,null,null,null,null,null,null,null,null,null,null,null,null,null,null,null,null,null,null,null,{"$f":"IF(AN33=\"※\",AF33,\"\")","v":""}]
[]
[]
[null,null,null,null,null,null,null,null,null,null,null,null,null,null,null,null,null,null,null,null,null,null,null,null,null,null,null,null,null,null,null,{"$f":"IF(OR(AB36=\"%\",AB36=\"％\"),P36*X36*0.01,P36*X36)","v":0},null,null,null,null,null,null,null,null,null,null,null,null,null,null,null,null,null,null,null,null,null,null,null,null,null,null,null,null,null,null,null,null,null,null,null,null,null,null,null,null,null,null,null,null,null,null,null,null,null,null,null,null,null,null,null,null,null,null,null,null,null,null,null,null,null,null,null,null,null,null,null,null,null,null,null,null,null,null,null,null,null,null,null,null,null,null,null,null,null,null,null,null,null,null,null,null,null,null,null,null,null,null,null,null,null,null,null,null,null,null,null,null,null,null,null,null,{"$f":"IF(AN36=\"※\",AF36,\"\")","v":""}]
[]
[]
[null,null,null,null,null,null,null,null,null,null,null,null,null,null,null,null,null,null,null,null,null,null,null,null,null,null,null,null,null,null,null,{"$f":"IF(OR(AB39=\"%\",AB39=\"％\"),P39*X39*0.01,P39*X39)","v":0},null,null,null,null,null,null,null,null,null,null,null,null,null,null,null,null,null,null,null,null,null,null,null,null,null,null,null,null,null,null,null,null,null,null,null,null,null,null,null,null,null,null,null,null,null,null,null,null,null,null,null,null,null,null,null,null,null,null,null,null,null,null,null,null,null,null,null,null,null,null,null,null,null,null,null,null,null,null,null,null,null,null,null,null,null,null,null,null,null,null,null,null,null,null,null,null,null,null,null,null,null,null,null,null,null,null,null,null,null,null,null,null,null,null,null,null,{"$f":"IF(AN39=\"※\",AF39,\"\")","v":""}]
[]
[]
[null,null,null,null,null,null,null,null,null,null,null,null,null,null,null,null,null,null,null,null,null,null,null,null,null,null,null,null,null,null,null,{"$f":"IF(OR(AB42=\"%\",AB42=\"％\"),P42*X42*0.01,P42*X42)","v":0},null,null,null,null,null,null,null,null,null,null,null,null,null,null,null,null,null,null,null,null,null,null,null,null,null,null,null,null,null,null,null,null,null,null,null,null,null,null,null,null,null,null,null,null,null,null,null,null,null,null,null,null,null,null,null,null,null,null,null,null,null,null,null,null,null,null,null,null,null,null,null,null,null,null,null,null,null,null,null,null,null,null,null,null,null,null,null,null,null,null,null,null,null,null,null,null,null,null,null,null,null,null,null,null,null,null,null,null,null,null,null,null,null,null,null,null,{"$f":"IF(AN42=\"※\",AF42,\"\")","v":""}]
[]
[]
[null,null,null,null,null,null,null,null,null,null,null,null,null,null,null,null,null,null,null,null,null,null,null,null,null,null,null,null,null,null,null,{"$f":"IF(OR(AB45=\"%\",AB45=\"％\"),P45*X45*0.01,P45*X45)","v":0},null,null,null,null,null,null,null,null,null,null,null,null,null,null,null,null,null,null,null,null,null,null,null,null,null,null,null,null,null,null,null,null,null,null,null,null,null,null,null,null,null,null,null,null,null,null,null,null,null,null,null,null,null,null,null,null,null,null,null,null,null,null,null,null,null,null,null,null,null,null,null,null,null,null,null,null,null,null,null,null,null,null,null,null,null,null,null,null,null,null,null,null,null,null,null,null,null,null,null,null,null,null,null,null,null,null,null,null,null,null,null,null,null,null,null,null,{"$f":"IF(AN45=\"※\",AF45,\"\")","v":""}]
[]
[]
[null,null,null,null,null,null,null,null,null,null,null,null,null,null,null,null,null,null,null,null,null,null,null,null,null,null,null,null,null,null,null,{"$f":"IF(OR(AB48=\"%\",AB48=\"％\"),P48*X48*0.01,P48*X48)","v":0},null,null,null,null,null,null,null,null,null,null,null,null,null,null,null,null,null,null,null,null,null,null,null,null,null,null,null,null,null,null,null,null,null,null,null,null,null,null,null,null,null,null,null,null,null,null,null,null,null,null,null,null,null,null,null,null,null,null,null,null,null,null,null,null,null,null,null,null,null,null,null,null,null,null,null,null,null,null,null,null,null,null,null,null,null,null,null,null,null,null,null,null,null,null,null,null,null,null,null,null,null,null,null,null,null,null,null,null,null,null,null,null,null,null,null,null,{"$f":"IF(AN48=\"※\",AF48,\"\")","v":""}]
[]
[]
[null,null,null,null,null,null,null,null,null,null,null,null,null,null,null,null,null,null,null,null,null,null,null,null,null,null,null,null,null,null,null,{"$f":"IF(OR(AB51=\"%\",AB51=\"％\"),P51*X51*0.01,P51*X51)","v":0},null,null,null,null,null,null,null,null,null,null,null,null,null,null,null,null,null,null,null,null,null,null,null,null,null,null,null,null,null,null,null,null,null,null,null,null,null,null,null,null,null,null,null,null,null,null,null,null,null,null,null,null,null,null,null,null,null,null,null,null,null,null,null,null,null,null,null,null,null,null,null,null,null,null,null,null,null,null,null,null,null,null,null,null,null,null,null,null,null,null,null,null,null,null,null,null,null,null,null,null,null,null,null,null,null,null,null,null,null,null,null,null,null,null,null,null,{"$f":"IF(AN51=\"※\",AF51,\"\")","v":""}]
[]
[]
[null,null,null,null,null,null,null,null,null,null,null,null,null,null,null,null,null,null,null,null,null,null,null,null,null,null,null,null,null,null,null,{"$f":"IF(OR(AB54=\"%\",AB54=\"％\"),P54*X54*0.01,P54*X54)","v":0},null,null,null,null,null,null,null,null,null,null,null,null,null,null,null,null,null,null,null,null,null,null,null,null,null,null,null,null,null,null,null,null,null,null,null,null,null,null,null,null,null,null,null,null,null,null,null,null,null,null,null,null,null,null,null,null,null,null,null,null,null,null,null,null,null,null,null,null,null,null,null,null,null,null,null,null,null,null,null,null,null,null,null,null,null,null,null,null,null,null,null,null,null,null,null,null,null,null,null,null,null,null,null,null,null,null,null,null,null,null,null,null,null,null,null,null,{"$f":"IF(AN54=\"※\",AF54,\"\")","v":""}]
[]
[]
[null,null,null,null,null,null,null,null,null,null,null,null,null,null,null,null,null,null,null,null,null,null,null,null,null,null,null,null,null,null,null,{"$f":"IF(OR(AB57=\"%\",AB57=\"％\"),P57*X57*0.01,P57*X57)","v":0},null,null,null,null,null,null,null,null,null,null,null,null,null,null,null,null,null,null,null,null,null,null,null,null,null,null,null,null,null,null,null,null,null,null,null,null,null,null,null,null,null,null,null,null,null,null,null,null,null,null,null,null,null,null,null,null,null,null,null,null,null,null,null,null,null,null,null,null,null,null,null,null,null,null,null,null,null,null,null,null,null,null,null,null,null,null,null,null,null,null,null,null,null,null,null,null,null,null,null,null,null,null,null,null,null,null,null,null,null,null,null,null,null,null,null,null,{"$f":"IF(AN57=\"※\",AF57,\"\")","v":""}]
[]
[]
[null,null,null,null,null,null,null,null,null,null,null,null,null,null,null,null,null,null,null,null,null,null,null,null,null,null,null,null,null,null,null,{"$f":"IF(OR(AB60=\"%\",AB60=\"％\"),P60*X60*0.01,P60*X60)","v":0},null,null,null,null,null,null,null,null,null,null,null,null,null,null,null,null,null,null,null,null,null,null,null,null,null,null,null,null,null,null,null,null,null,null,null,null,null,null,null,null,null,null,null,null,null,null,null,null,null,null,null,null,null,null,null,null,null,null,null,null,null,null,null,null,null,null,null,null,null,null,null,null,null,null,null,null,null,null,null,null,null,null,null,null,null,null,null,null,null,null,null,null,null,null,null,null,null,null,null,null,null,null,null,null,null,null,null,null,null,null,null,null,null,null,null,null,{"$f":"IF(AN60=\"※\",AF60,\"\")","v":""}]
[]
[]
[null,null,null,null,null,null,null,null,null,null,null,null,null,null,null,null,null,null,null,null,null,null,null,null,null,null,null,null,null,null,null,{"$f":"IF(OR(AB63=\"%\",AB63=\"％\"),P63*X63*0.01,P63*X63)","v":0},null,null,null,null,null,null,null,null,null,null,null,null,null,null,null,null,null,null,null,null,null,null,null,null,null,null,null,null,null,null,null,null,null,null,null,null,null,null,null,null,null,null,null,null,null,null,null,null,null,null,null,null,null,null,null,null,null,null,null,null,null,null,null,null,null,null,null,null,null,null,null,null,null,null,null,null,null,null,null,null,null,null,null,null,null,null,null,null,null,null,null,null,null,null,null,null,null,null,null,null,null,null,null,null,null,null,null,null,null,null,null,null,null,null,null,null,{"$f":"IF(AN63=\"※\",AF63,\"\")","v":""}]
[]
[]
[null,null,null,null,null,"　　　　　 ①小　計",null,null,null,null,null,null,null,null,null,null,null,null,null,null,null,null,null,null,null,null,null,null,null,null,null,{"$f":"SUM(AF27:AM65)-ES78","v":6825000},null,null,null,null,null,null,null,null,null,null,null,null,null,null,null,null,null,null,null,null,null,null,null,null,null,null,null,null,null,null,null,null,null,null,null,null,null,null,null,null,null,null,null,null,null,null,null,null,null,null,null,null,null,null,null,null,null,null,null,null,null,null,null,null,null,null,null,null,null,null,null,null,null,null,null,null,null,null,null,null,null,null,null,null,null,null,null,null,null,null,null,null,null,null,null,null,null,null,null,null,null,null,null,null,null,null,null,null,null,null,null,null,null,null,null,null,{"$f":"IF(AN66=\"※\",AF66,\"\")","v":""}]
[]
[]
[null,null,null,null,null,"　　　　　 ②前回迄累計 領収済額(税別)",null,null,null,null,null,null,null,null,null,null,null,null,null,null,null,null,null,null,null,null,null,null,null,null,null,2000000,null,null,null,null,null,null,null,null,null,null,null,null,null,null,null,null,null,null,null,null,null,null,null,null,null,null,null,null,null,null,null,null,null,null,null,null,null,null,null,null,null,null,null,null,null,null,null,null,null,null,null,null,null,null,null,null,null,null,null,null,null,null,null,null,null,null,null,null,null,null,null,null,null,null,null,null,null,null,null,null,null,null,null,null,null,null,null,null,null,null,null,null,null,null,null,null,null,null,null,null,null,null,null,null,null,null,null,null,null,null,null,null,null,null,null,null,{"$f":"IF(AN69=\"※\",AF69,\"\")","v":""}]
[]
[]
[null,null,null,null,null,"　　　　①-②今回請求額 小計(10％対象 税別)",null,null,null,null,null,null,null,null,null,null,null,null,null,null,null,null,null,null,null,null,null,null,null,null,null,{"$f":"AF66-AF69","v":4825000}]
[]
[]
[null,null,null,null,null,"　　　　　　 消費税(10％対象)",null,null,null,null,null,null,null,null,null,null,null,null,null,null,null,null,null,null,null,null,null,null,null,null,null,{"$f":"AF72*1.08-AF72","v":386000}]
[]
[]
[null,null,null,null,null,"　　　　　　 小　計(非課税)",null,null,null,null,null,null,null,null,null,null,null,null,null,null,null,null,null,null,null,null,null,null,null,null,null,{"$f":"ES78","v":0},null,null,null,null,null,null,null,null,null,null,null,null,null,null,null,null,null,null,null,null,null,null,null,null,null,null,null,null,null,null,null,null,null,null,null,null,null,null,null,null,null,null,null,null,null,null,null,null,null,null,null,null,null,null,null,null,null,null,null,null,null,null,null,null,null,null,null,null,null,null,null,null,null,null,null,null,null,null,null,null,null,null,null,null,null,null,null,null,null,null,null,null,null,null,null,null,null,null,null,null,null,null,null,null,null,null,null,null,null,null,null,null,null,null,null,null,{"$f":"SUM(ES27:EZ71)","v":0}]
[]
[]
[]
[null,null,null,null,null,null,null,null,null,"(註)",null,null,null,null,null,null,null,null,null,null,null,null,null,null,null,null,null,null,null,null,null,"住　所"]
[]
[null,null,null,null,null,null,null,null,null," 1．請求者は※印欄に記入しないこと。",null,null,null,null,null,null,null,null,null,null,null,null,null,null,null,null,null,null,null,null,null,"請求者",null,null,null,{"$f":"請求基本情報!K23","v":0}]
[null,"受付年月日",null,null,null,null,null,null,null," 2．各作業所毎に請求書を作成すること。"]
[null,null,null,null,null,null,null,null,null," 3．請求書は毎月15日締切18日本社必着のこと。",null,null,null,null,null,null,null,null,null,null,null,null,null,null,null,null,null,null,null,null,null,null,null,null,null,{"$f":"請求基本情報!K12","v":0}]
[]
[null,null,null,null,null,null,null,null,null,"取引",null,null,{"$f":"請求基本情報!M32","v":0},null,null,null,null,null,null,null,null,{"$f":"請求基本情報!Y32","v":0},null,null,null,null,null,null,null,null,null,null,null,null,null,{"$f":"請求基本情報!O16","v":0},null,null,null,null,null,null,null,{"$f":"請求基本情報!AK16","v":0}]
[null,null,null,null,null,null,null,null,null,"銀行"]
[null,null,null,null,null,null,null,null,null,"　   普通",null,null,null,"　   当座",null,null,null,"口座番号：",null,null,null,null,{"$f":"請求基本情報!AT32","v":0},null,null,null,null,null,null,null,null,null,null,null,null,"TEL",null,{"$f":"請求基本情報!O27","v":0},null,null,null,null,null,null,"FAX",null,{"$f":"請求基本情報!AK27","v":0}]
[]
[null,null,null,null,null,null,null,null,null,"口座\n名義",null,null,{"$f":"請求基本情報!P10","v":0},null,null,null,null,null,null,null,null,null,null,null,null,null,null,null,null,null,null,"登録番号　：",null,null,null,null,{"$f":"請求基本情報!K30","v":0}]
[]
[null,null,null,null,null,null,null,null,null,null,null,null,{"$f":"請求基本情報!K12","v":0},null,null,null,null,null,null,null,null,null,null,null,null,null,null,null,null,null,null,"業者コード：",null,null,null,null,{"$f":"請求基本情報!K31","v":0}]
[]
[]
[null,"役　員",null,null,null,null,null,null,null,null,null,null,null,null,null,null,null,null,null,null,null,"担　当　部　長",null,null,null,null,null,null,null,null,null,null,null,null,null,null,null,null,null,null,null,"作　業　所"]

{"sheet":"契約 (8%)","index":4,"n_rows":199,"n_cols":149,"rows_kept":199,"cut":false,"hidden":false,"merged":[[2,35,3,43],[2,44,3,52],[104,35,105,43],[104,44,105,52],[68,39,70,52],[91,12,92,29],[102,49,103,50],[102,51,103,52],[98,1,101,20],[98,21,101,40],[98,41,101,52],[93,31,94,35],[93,36,94,52],[96,1,97,20],[96,21,97,40],[96,41,97,52],[91,9,94,11],[93,12,94,29],[102,1,103,27],[102,35,103,42],[102,43,103,44],[102,45,103,46],[102,47,103,48],[91,31,92,35],[128,23,130,26],[140,23,142,26],[140,27,142,30],[140,31,142,38],[140,39,142,42],[140,43,142,52],[134,23,136,26],[134,27,136,30],[134,31,136,38],[134,39,136,42],[125,1,127,2],[125,3,127,4],[125,5,127,14],[125,15,127,22],[119,41,120,43],[119,44,120,46],[119,47,120,49],[119,50,120,52],[121,1,122,7],[121,8,122,8],[121,9,122,27],[121,30,122,34],[121,35,122,37],[121,38,122,40],[125,23,127,30],[125,31,127,38],[125,43,127,52],[121,41,122,43],[121,44,122,46],[121,47,122,49],[121,50,122,52],[125,39,127,42],[185,35,186,52],[187,35,188,52],[189,35,190,42],[189,43,190,52],[200,1,203,20],[200,21,203,40],[200,41,203,52],[198,1,199,20],[198,21,199,40],[198,41,199,52],[191,31,192,34],[191,35,192,36],[191,37,192,43],[195,31,196,35],[195,36,196,52],[191,44,192,45],[191,46,192,52],[188,1,196,8],[193,9,196,11],[193,12,194,29],[195,12,196,29],[193,31,194,35],[193,36,194,52],[190,9,190,11],[191,9,192,12],[191,13,192,16],[191,17,192,21],[191,22,192,29],[189,9,189,11],[189,12,190,20],[189,21,190,29],[176,5,178,30],[179,5,181,30],[155,27,157,30],[155,39,157,42],[155,43,157,52],[158,27,160,30],[158,31,160,38],[158,39,160,42],[158,43,160,52],[152,148,154,155],[164,39,166,42],[164,43,166,52],[155,31,157,38],[161,148,163,155],[158,148,160,155],[167,148,169,155],[170,1,172,4],[170,5,172,30],[170,148,172,155],[134,43,136,52],[152,23,154,26],[152,27,154,30],[152,31,154,38],[146,23,148,26],[161,27,163,30],[161,31,163,38],[161,39,163,42],[161,43,163,52],[146,31,148,38],[146,39,148,42],[146,43,148,52],[149,31,151,38],[149,39,151,42],[149,43,151,52],[152,39,154,42],[152,43,154,52],[143,31,145,38],[158,23,160,26],[155,148,157,155],[173,31,175,38],[176,31,178,38],[179,31,181,38],[167,5,169,30],[164,23,166,26],[164,27,166,30],[164,31,166,38],[173,1,175,4],[173,5,175,30],[167,31,169,38],[158,1,160,2],[158,3,160,4],[158,5,160,14],[158,15,160,22],[183,9,184,12],[186,1,187,8],[179,148,181,155],[179,1,181,4],[176,1,178,4],[183,31,184,33],[185,31,186,33],[164,148,166,155],[161,1,163,2],[161,3,163,4],[161,5,163,14],[161,15,163,22],[161,23,163,26],[167,39,181,52],[170,31,172,38],[167,1,169,4],[164,1,166,2],[164,3,166,4],[164,5,166,14],[164,15,166,22],[155,1,157,2],[155,3,157,4],[155,5,157,14],[155,15,157,22],[155,23,157,26],[152,1,154,2],[152,3,154,4],[152,5,154,14],[152,15,154,22],[149,1,151,2],[149,3,151,4],[149,5,151,14],[149,15,151,22],[149,23,151,26],[143,5,145,14],[143,15,145,22],[143,23,145,26],[140,148,142,155],[143,39,145,42],[143,43,145,52],[149,148,151,155],[149,27,151,30],[146,148,148,155],[143,148,145,155],[143,27,145,30],[146,1,148,2],[146,3,148,4],[146,5,148,14],[146,15,148,22],[143,1,145,2],[143,3,145,4],[146,27,148,30],[137,148,139,155],[140,1,142,2],[140,3,142,4],[140,5,142,14],[140,15,142,22],[137,1,139,2],[137,3,139,4],[137,5,139,14],[137,15,139,22],[137,23,139,26],[137,27,139,30],[137,31,139,38],[137,39,139,42],[137,43,139,52],[134,148,136,155],[131,148,133,155],[134,1,136,2],[134,3,136,4],[134,5,136,14],[134,15,136,22],[128,148,130,155],[131,1,133,2],[131,3,133,4],[131,5,133,14],[131,15,133,22],[128,1,130,2],[128,3,130,4],[128,5,130,14],[128,15,130,22],[128,27,130,30],[128,31,130,38],[128,39,130,42],[128,43,130,52],[131,23,133,26],[131,27,133,30],[131,31,133,38],[131,39,133,42],[131,43,133,52],[116,41,117,43],[116,44,117,46],[116,47,117,49],[116,50,117,52],[119,1,120,7],[119,8,120,8],[119,9,120,27],[119,30,120,34],[119,35,120,37],[119,38,120,40],[115,1,117,5],[115,6,117,8],[115,9,117,27],[116,30,117,34],[116,35,117,37],[116,38,117,40],[114,50,115,52],[110,47,111,49],[110,50,111,52],[112,1,114,5],[112,6,114,8],[112,9,114,27],[112,30,113,34],[112,35,113,37],[112,38,113,40],[112,41,113,43],[112,44,113,46],[110,1,111,27],[110,30,111,34],[110,35,111,37],[110,38,111,40],[110,41,111,43],[110,44,111,46],[112,47,113,49],[112,50,113,52],[114,30,115,34],[114,35,115,37],[114,38,115,40],[114,41,115,43],[114,44,115,46],[114,47,115,49],[106,50,107,52],[107,1,109,27],[108,30,109,34],[108,35,109,37],[108,38,109,40],[108,41,109,43],[108,44,109,46],[108,47,109,49],[108,50,109,52],[104,1,106,27],[104,30,105,34],[106,30,107,34],[106,35,107,37],[106,38,107,40],[106,41,107,43],[106,44,107,46],[106,47,107,49],[91,36,92,52],[86,1,94,8],[87,35,88,42],[87,43,88,52],[87,9,87,11],[87,12,88,20],[87,21,88,29],[89,31,90,34],[89,35,90,36],[89,37,90,43],[89,44,90,45],[89,46,90,52],[88,9,88,11],[89,9,90,12],[89,13,90,16],[89,17,90,21],[89,22,90,29],[77,1,79,4],[77,5,79,30],[77,31,79,38],[77,148,79,155],[83,35,84,52],[84,1,85,8],[85,35,86,52],[74,39,79,52],[81,9,82,12],[81,31,82,33],[83,31,84,33],[71,1,73,4],[71,5,73,30],[71,31,73,38],[74,1,76,4],[74,5,76,30],[74,31,76,38],[62,43,64,52],[62,148,64,155],[65,1,67,4],[65,5,67,30],[65,31,67,38],[65,148,67,155],[68,1,70,4],[68,5,70,30],[68,31,70,38],[65,39,67,52],[71,39,73,52],[62,1,64,2],[62,3,64,4],[62,5,64,14],[62,15,64,22],[62,23,64,26],[62,27,64,30],[62,31,64,38],[62,39,64,42],[68,148,70,155],[56,148,58,155],[59,1,61,2],[59,3,61,4],[59,5,61,14],[59,15,61,22],[59,23,61,26],[59,27,61,30],[59,31,61,38],[59,39,61,42],[59,43,61,52],[59,148,61,155],[56,1,58,2],[56,3,58,4],[56,5,58,14],[56,15,58,22],[56,23,58,26],[56,27,58,30],[56,31,58,38],[56,39,58,42],[56,43,58,52],[50,148,52,155],[53,1,55,2],[53,3,55,4],[53,5,55,14],[53,15,55,22],[53,23,55,26],[53,27,55,30],[53,31,55,38],[53,39,55,42],[53,43,55,52],[53,148,55,155],[50,1,52,2],[50,3,52,4],[50,5,52,14],[50,15,52,22],[50,23,52,26],[50,27,52,30],[50,31,52,38],[50,39,52,42],[50,43,52,52],[44,148,46,155],[47,1,49,2],[47,3,49,4],[47,5,49,14],[47,15,49,22],[47,23,49,26],[47,27,49,30],[47,31,49,38],[47,39,49,42],[47,43,49,52],[47,148,49,155],[44,1,46,2],[44,3,46,4],[44,5,46,14],[44,15,46,22],[44,23,46,26],[44,27,46,30],[44,31,46,38],[44,39,46,42],[44,43,46,52],[38,148,40,155],[41,1,43,2],[41,3,43,4],[41,5,43,14],[41,15,43,22],[41,23,43,26],[41,27,43,30],[41,31,43,38],[41,39,43,42],[41,43,43,52],[41,148,43,155],[38,1,40,2],[38,3,40,4],[38,5,40,14],[38,15,40,22],[38,23,40,26],[38,27,40,30],[38,31,40,38],[38,39,40,42],[38,43,40,52],[32,148,34,155],[35,1,37,2],[35,3,37,4],[35,5,37,14],[35,15,37,22],[35,23,37,26],[35,27,37,30],[35,31,37,38],[35,39,37,42],[35,43,37,52],[35,148,37,155],[32,1,34,2],[32,3,34,4],[32,5,34,14],[32,15,34,22],[32,23,34,26],[32,27,34,30],[32,31,34,38],[32,39,34,42],[32,43,34,52],[26,148,28,155],[29,1,31,2],[29,3,31,4],[29,5,31,14],[29,15,31,22],[29,23,31,26],[29,27,31,30],[29,31,31,38],[29,39,31,42],[29,43,31,52],[29,148,31,155],[26,1,28,2],[26,3,28,4],[26,5,28,14],[26,15,28,22],[26,23,28,26],[26,27,28,30],[26,31,28,38],[26,39,28,42],[26,43,28,52],[19,50,20,52],[23,1,25,2],[23,3,25,4],[23,5,25,14],[23,15,25,22],[23,23,25,30],[23,31,25,38],[23,39,25,42],[23,43,25,52],[19,1,20,7],[19,8,20,8],[19,9,20,27],[19,30,20,34],[19,35,20,37],[19,38,20,40],[19,41,20,43],[19,44,20,46],[19,47,20,49],[12,50,13,52],[14,41,15,43],[14,44,15,46],[14,47,15,49],[14,50,15,52],[17,1,18,7],[17,8,18,8],[17,9,18,27],[17,30,18,34],[17,35,18,37],[17,38,18,40],[13,1,15,5],[13,6,15,8],[13,9,15,27],[14,30,15,34],[14,35,15,37],[14,38,15,40],[17,41,18,43],[17,44,18,46],[17,47,18,49],[17,50,18,52],[8,47,9,49],[8,50,9,52],[10,1,12,5],[10,6,12,8],[10,9,12,27],[10,30,11,34],[10,35,11,37],[10,38,11,40],[10,41,11,43],[10,44,11,46],[8,1,9,27],[8,30,9,34],[8,35,9,37],[8,38,9,40],[8,41,9,43],[8,44,9,46],[10,47,11,49],[10,50,11,52],[12,30,13,34],[12,35,13,37],[12,38,13,40],[12,41,13,43],[12,44,13,46],[12,47,13,49],[0,51,1,52],[2,1,4,27],[2,30,3,34],[4,30,5,34],[4,35,5,37],[4,38,5,40],[4,41,5,43],[4,44,5,46],[0,1,1,27],[0,35,1,42],[0,43,1,44],[0,45,1,46],[0,47,1,48],[0,49,1,50],[4,47,5,49],[4,50,5,52],[5,1,7,27],[6,30,7,34],[6,35,7,37],[6,38,7,40],[6,41,7,43],[6,44,7,46],[6,47,7,49],[6,50,7,52]]}
[null,"【業 者 控】",null,null,null,null,null,null,null,null,null,null,null,null,null,null,null,null,null,null,null,null,null,null,null,null,null,null,null,null,null,null,null,null,null,null,null,null,null,null,null,null,null,"年",null,null,null,"月",null,null,null,"日"]
[]
[null,"請　求　書（契約）",null,null,null,null,null,null,null,null,null,null,null,null,null,null,null,null,null,null,null,null,null,null,null,null,null,null,null,null,"※ 註",null,null,null,null,"第　　　号"]
[]
[null,null,null,null,null,null,null,null,null,null,null,null,null,null,null,null,null,null,null,null,null,null,null,null,null,null,null,null,null,null,"契 約 額"]
[null,"中 国 建 設 工 業 ㈱　 御 中"]
[null,null,null,null,null,null,null,null,null,null,null,null,null,null,null,null,null,null,null,null,null,null,null,null,null,null,null,null,null,null,"支払済額"]
[]
[null,"下記の通りご請求申し上げます。",null,null,null,null,null,null,null,null,null,null,null,null,null,null,null,null,null,null,null,null,null,null,null,null,null,null,null,null,"今回支払額"]
[]
[null,"税別金額",null,null,null,null,"金",null,null,{"$f":"AF72+AF78","v":0},null,null,null,null,null,null,null,null,null,null,null,null,null,null,null,null,null,null,null,null,"差引残高"]
[]
[null,null,null,null,null,null,null,null,null,null,null,null,null,null,null,null,null,null,null,null,null,null,null,null,null,null,null,null,null,null,"立 替 分"]
[null,"消 費 税",null,null,null,null,"金",null,null,{"$f":"AF75","v":0}]
[null,null,null,null,null,null,null,null,null,null,null,null,null,null,null,null,null,null,null,null,null,null,null,null,null,null,null,null,null,null,"支払合計"]
[]
[]
[null,"作業所及び担当者",null,null,null,null,null,null,"：",null,null,null,null,null,null,null,null,null,null,null,null,null,null,null,null,null,null,null,null,null,"現場査定額"]
[]
[null,"※作業所コード",null,null,null,null,null,null,"：",null,null,null,null,null,null,null,null,null,null,null,null,null,null,null,null,null,null,null,null,null,"上記の90％"]
[]
[]
[]
[null,"月",null,"日",null,"品　名",null,null,null,null,null,null,null,null,null,"契約金額",null,null,null,null,null,null,null,"累計出来高",null,null,null,null,null,null,null,"金　額",null,null,null,null,null,null,null,"非課税",null,null,null,"備　考"]
[]
[]
[null,null,null,null,null,null,null,null,null,null,null,null,null,null,null,null,null,null,null,null,null,null,null,null,null,null,null,null,null,null,null,{"$f":"IF(OR(AB27=\"%\",AB27=\"％\"),P27*X27*0.01,P27*X27)","v":0},null,null,null,null,null,null,null,null,null,null,null,null,null,null,null,null,null,null,null,null,null,null,null,null,null,null,null,null,null,null,null,null,null,null,null,null,null,null,null,null,null,null,null,null,null,null,null,null,null,null,null,null,null,null,null,null,null,null,null,null,null,null,null,null,null,null,null,null,null,null,null,null,null,null,null,null,null,null,null,null,null,null,null,null,null,null,null,null,null,null,null,null,null,null,null,null,null,null,null,null,null,null,null,null,null,null,null,null,null,null,null,null,null,null,null,null,{"$f":"IF(AN27=\"※\",AF27,\"\")","v":""}]
[]
[]
[null,null,null,null,null,null,null,null,null,null,null,null,null,null,null,null,null,null,null,null,null,null,null,null,null,null,null,null,null,null,null,{"$f":"IF(OR(AB30=\"%\",AB30=\"％\"),P30*X30*0.01,P30*X30)","v":0},null,null,null,null,null,null,null,null,null,null,null,null,null,null,null,null,null,null,null,null,null,null,null,null,null,null,null,null,null,null,null,null,null,null,null,null,null,null,null,null,null,null,null,null,null,null,null,null,null,null,null,null,null,null,null,null,null,null,null,null,null,null,null,null,null,null,null,null,null,null,null,null,null,null,null,null,null,null,null,null,null,null,null,null,null,null,null,null,null,null,null,null,null,null,null,null,null,null,null,null,null,null,null,null,null,null,null,null,null,null,null,null,null,null,null,null,{"$f":"IF(AN30=\"※\",AF30,\"\")","v":""}]
[]
[]
[null,null,null,null,null,null,null,null,null,null,null,null,null,null,null,null,null,null,null,null,null,null,null,null,null,null,null,null,null,null,null,{"$f":"IF(OR(AB33=\"%\",AB33=\"％\"),P33*X33*0.01,P33*X33)","v":0},null,null,null,null,null,null,null,null,null,null,null,null,null,null,null,null,null,null,null,null,null,null,null,null,null,null,null,null,null,null,null,null,null,null,null,null,null,null,null,null,null,null,null,null,null,null,null,null,null,null,null,null,null,null,null,null,null,null,null,null,null,null,null,null,null,null,null,null,null,null,null,null,null,null,null,null,null,null,null,null,null,null,null,null,null,null,null,null,null,null,null,null,null,null,null,null,null,null,null,null,null,null,null,null,null,null,null,null,null,null,null,null,null,null,null,null,{"$f":"IF(AN33=\"※\",AF33,\"\")","v":""}]
[]
[]
[null,null,null,null,null,null,null,null,null,null,null,null,null,null,null,null,null,null,null,null,null,null,null,null,null,null,null,null,null,null,null,{"$f":"IF(OR(AB36=\"%\",AB36=\"％\"),P36*X36*0.01,P36*X36)","v":0},null,null,null,null,null,null,null,null,null,null,null,null,null,null,null,null,null,null,null,null,null,null,null,null,null,null,null,null,null,null,null,null,null,null,null,null,null,null,null,null,null,null,null,null,null,null,null,null,null,null,null,null,null,null,null,null,null,null,null,null,null,null,null,null,null,null,null,null,null,null,null,null,null,null,null,null,null,null,null,null,null,null,null,null,null,null,null,null,null,null,null,null,null,null,null,null,null,null,null,null,null,null,null,null,null,null,null,null,null,null,null,null,null,null,null,null,{"$f":"IF(AN36=\"※\",AF36,\"\")","v":""}]
[]
[]
[null,null,null,null,null,null,null,null,null,null,null,null,null,null,null,null,null,null,null,null,null,null,null,null,null,null,null,null,null,null,null,{"$f":"IF(OR(AB39=\"%\",AB39=\"％\"),P39*X39*0.01,P39*X39)","v":0},null,null,null,null,null,null,null,null,null,null,null,null,null,null,null,null,null,null,null,null,null,null,null,null,null,null,null,null,null,null,null,null,null,null,null,null,null,null,null,null,null,null,null,null,null,null,null,null,null,null,null,null,null,null,null,null,null,null,null,null,null,null,null,null,null,null,null,null,null,null,null,null,null,null,null,null,null,null,null,null,null,null,null,null,null,null,null,null,null,null,null,null,null,null,null,null,null,null,null,null,null,null,null,null,null,null,null,null,null,null,null,null,null,null,null,null,{"$f":"IF(AN39=\"※\",AF39,\"\")","v":""}]
[]
[]
[null,null,null,null,null,null,null,null,null,null,null,null,null,null,null,null,null,null,null,null,null,null,null,null,null,null,null,null,null,null,null,{"$f":"IF(OR(AB42=\"%\",AB42=\"％\"),P42*X42*0.01,P42*X42)","v":0},null,null,null,null,null,null,null,null,null,null,null,null,null,null,null,null,null,null,null,null,null,null,null,null,null,null,null,null,null,null,null,null,null,null,null,null,null,null,null,null,null,null,null,null,null,null,null,null,null,null,null,null,null,null,null,null,null,null,null,null,null,null,null,null,null,null,null,null,null,null,null,null,null,null,null,null,null,null,null,null,null,null,null,null,null,null,null,null,null,null,null,null,null,null,null,null,null,null,null,null,null,null,null,null,null,null,null,null,null,null,null,null,null,null,null,null,{"$f":"IF(AN42=\"※\",AF42,\"\")","v":""}]
[]
[]
[null,null,null,null,null,null,null,null,null,null,null,null,null,null,null,null,null,null,null,null,null,null,null,null,null,null,null,null,null,null,null,{"$f":"IF(OR(AB45=\"%\",AB45=\"％\"),P45*X45*0.01,P45*X45)","v":0},null,null,null,null,null,null,null,null,null,null,null,null,null,null,null,null,null,null,null,null,null,null,null,null,null,null,null,null,null,null,null,null,null,null,null,null,null,null,null,null,null,null,null,null,null,null,null,null,null,null,null,null,null,null,null,null,null,null,null,null,null,null,null,null,null,null,null,null,null,null,null,null,null,null,null,null,null,null,null,null,null,null,null,null,null,null,null,null,null,null,null,null,null,null,null,null,null,null,null,null,null,null,null,null,null,null,null,null,null,null,null,null,null,null,null,null,{"$f":"IF(AN45=\"※\",AF45,\"\")","v":""}]
[]
[]
[null,null,null,null,null,null,null,null,null,null,null,null,null,null,null,null,null,null,null,null,null,null,null,null,null,null,null,null,null,null,null,{"$f":"IF(OR(AB48=\"%\",AB48=\"％\"),P48*X48*0.01,P48*X48)","v":0},null,null,null,null,null,null,null,null,null,null,null,null,null,null,null,null,null,null,null,null,null,null,null,null,null,null,null,null,null,null,null,null,null,null,null,null,null,null,null,null,null,null,null,null,null,null,null,null,null,null,null,null,null,null,null,null,null,null,null,null,null,null,null,null,null,null,null,null,null,null,null,null,null,null,null,null,null,null,null,null,null,null,null,null,null,null,null,null,null,null,null,null,null,null,null,null,null,null,null,null,null,null,null,null,null,null,null,null,null,null,null,null,null,null,null,null,{"$f":"IF(AN48=\"※\",AF48,\"\")","v":""}]
[]
[]
[null,null,null,null,null,null,null,null,null,null,null,null,null,null,null,null,null,null,null,null,null,null,null,null,null,null,null,null,null,null,null,{"$f":"IF(OR(AB51=\"%\",AB51=\"％\"),P51*X51*0.01,P51*X51)","v":0},null,null,null,null,null,null,null,null,null,null,null,null,null,null,null,null,null,null,null,null,null,null,null,null,null,null,null,null,null,null,null,null,null,null,null,null,null,null,null,null,null,null,null,null,null,null,null,null,null,null,null,null,null,null,null,null,null,null,null,null,null,null,null,null,null,null,null,null,null,null,null,null,null,null,null,null,null,null,null,null,null,null,null,null,null,null,null,null,null,null,null,null,null,null,null,null,null,null,null,null,null,null,null,null,null,null,null,null,null,null,null,null,null,null,null,null,{"$f":"IF(AN51=\"※\",AF51,\"\")","v":""}]
[]
[]
[null,null,null,null,null,null,null,null,null,null,null,null,null,null,null,null,null,null,null,null,null,null,null,null,null,null,null,null,null,null,null,{"$f":"IF(OR(AB54=\"%\",AB54=\"％\"),P54*X54*0.01,P54*X54)","v":0},null,null,null,null,null,null,null,null,null,null,null,null,null,null,null,null,null,null,null,null,null,null,null,null,null,null,null,null,null,null,null,null,null,null,null,null,null,null,null,null,null,null,null,null,null,null,null,null,null,null,null,null,null,null,null,null,null,null,null,null,null,null,null,null,null,null,null,null,null,null,null,null,null,null,null,null,null,null,null,null,null,null,null,null,null,null,null,null,null,null,null,null,null,null,null,null,null,null,null,null,null,null,null,null,null,null,null,null,null,null,null,null,null,null,null,null,{"$f":"IF(AN54=\"※\",AF54,\"\")","v":""}]
[]
[]
[null,null,null,null,null,null,null,null,null,null,null,null,null,null,null,null,null,null,null,null,null,null,null,null,null,null,null,null,null,null,null,{"$f":"IF(OR(AB57=\"%\",AB57=\"％\"),P57*X57*0.01,P57*X57)","v":0},null,null,null,null,null,null,null,null,null,null,null,null,null,null,null,null,null,null,null,null,null,null,null,null,null,null,null,null,null,null,null,null,null,null,null,null,null,null,null,null,null,null,null,null,null,null,null,null,null,null,null,null,null,null,null,null,null,null,null,null,null,null,null,null,null,null,null,null,null,null,null,null,null,null,null,null,null,null,null,null,null,null,null,null,null,null,null,null,null,null,null,null,null,null,null,null,null,null,null,null,null,null,null,null,null,null,null,null,null,null,null,null,null,null,null,null,{"$f":"IF(AN57=\"※\",AF57,\"\")","v":""}]
[]
[]
[null,null,null,null,null,null,null,null,null,null,null,null,null,null,null,null,null,null,null,null,null,null,null,null,null,null,null,null,null,null,null,{"$f":"IF(OR(AB60=\"%\",AB60=\"％\"),P60*X60*0.01,P60*X60)","v":0},null,null,null,null,null,null,null,null,null,null,null,null,null,null,null,null,null,null,null,null,null,null,null,null,null,null,null,null,null,null,null,null,null,null,null,null,null,null,null,null,null,null,null,null,null,null,null,null,null,null,null,null,null,null,null,null,null,null,null,null,null,null,null,null,null,null,null,null,null,null,null,null,null,null,null,null,null,null,null,null,null,null,null,null,null,null,null,null,null,null,null,null,null,null,null,null,null,null,null,null,null,null,null,null,null,null,null,null,null,null,null,null,null,null,null,null,{"$f":"IF(AN60=\"※\",AF60,\"\")","v":""}]
[]
[]
[null,null,null,null,null,null,null,null,null,null,null,null,null,null,null,null,null,null,null,null,null,null,null,null,null,null,null,null,null,null,null,{"$f":"IF(OR(AB63=\"%\",AB63=\"％\"),P63*X63*0.01,P63*X63)","v":0},null,null,null,null,null,null,null,null,null,null,null,null,null,null,null,null,null,null,null,null,null,null,null,null,null,null,null,null,null,null,null,null,null,null,null,null,null,null,null,null,null,null,null,null,null,null,null,null,null,null,null,null,null,null,null,null,null,null,null,null,null,null,null,null,null,null,null,null,null,null,null,null,null,null,null,null,null,null,null,null,null,null,null,null,null,null,null,null,null,null,null,null,null,null,null,null,null,null,null,null,null,null,null,null,null,null,null,null,null,null,null,null,null,null,null,null,{"$f":"IF(AN63=\"※\",AF63,\"\")","v":""}]
[]
[]
[null,null,null,null,null,"　　　　　　　①小　計",null,null,null,null,null,null,null,null,null,null,null,null,null,null,null,null,null,null,null,null,null,null,null,null,null,{"$f":"SUM(AF27:AM65)-ES78","v":0},null,null,null,null,null,null,null,null,null,null,null,null,null,null,null,null,null,null,null,null,null,null,null,null,null,null,null,null,null,null,null,null,null,null,null,null,null,null,null,null,null,null,null,null,null,null,null,null,null,null,null,null,null,null,null,null,null,null,null,null,null,null,null,null,null,null,null,null,null,null,null,null,null,null,null,null,null,null,null,null,null,null,null,null,null,null,null,null,null,null,null,null,null,null,null,null,null,null,null,null,null,null,null,null,null,null,null,null,null,null,null,null,null,null,null,null,{"$f":"IF(AN66=\"※\",AF66,\"\")","v":""}]
[]
[]
[null,null,null,null,null,"　　　　　　　②前回迄累計 領収済額(税別)",null,null,null,null,null,null,null,null,null,null,null,null,null,null,null,null,null,null,null,null,null,null,null,null,null,null,null,null,null,null,null,null,null,null,null,null,null,null,null,null,null,null,null,null,null,null,null,null,null,null,null,null,null,null,null,null,null,null,null,null,null,null,null,null,null,null,null,null,null,null,null,null,null,null,null,null,null,null,null,null,null,null,null,null,null,null,null,null,null,null,null,null,null,null,null,null,null,null,null,null,null,null,null,null,null,null,null,null,null,null,null,null,null,null,null,null,null,null,null,null,null,null,null,null,null,null,null,null,null,null,null,null,null,null,null,null,null,null,null,null,null,null,{"$f":"IF(AN69=\"※\",AF69,\"\")","v":""}]
[]
[]
[null,null,null,null,null,"　　　　　 ①-②今回請求額 小計(8％対象 税別)",null,null,null,null,null,null,null,null,null,null,null,null,null,null,null,null,null,null,null,null,null,null,null,null,null,{"$f":"AF66-AF69","v":0}]
[]
[]
[null,null,null,null,null,"　　　　　　　　消費税(8％対象)",null,null,null,null,null,null,null,null,null,null,null,null,null,null,null,null,null,null,null,null,null,null,null,null,null,{"$f":"AF72*1.08-AF72","v":0}]
[]
[]
[null,null,null,null,null,"　　　　　　　　小　計(非課税)",null,null,null,null,null,null,null,null,null,null,null,null,null,null,null,null,null,null,null,null,null,null,null,null,null,{"$f":"ES78","v":0},null,null,null,null,null,null,null,null,null,null,null,null,null,null,null,null,null,null,null,null,null,null,null,null,null,null,null,null,null,null,null,null,null,null,null,null,null,null,null,null,null,null,null,null,null,null,null,null,null,null,null,null,null,null,null,null,null,null,null,null,null,null,null,null,null,null,null,null,null,null,null,null,null,null,null,null,null,null,null,null,null,null,null,null,null,null,null,null,null,null,null,null,null,null,null,null,null,null,null,null,null,null,null,null,null,null,null,null,null,null,null,null,null,null,null,null,{"$f":"SUM(ES27:EZ71)","v":0}]
[]
[]
[]
[null,null,null,null,null,null,null,null,null,"(註)",null,null,null,null,null,null,null,null,null,null,null,null,null,null,null,null,null,null,null,null,null,"住　所"]
[]
[null,null,null,null,null,null,null,null,null," 1．請求者は※印欄に記入しないこと。",null,null,null,null,null,null,null,null,null,null,null,null,null,null,null,null,null,null,null,null,null,"請求者",null,null,null,{"$f":"請求基本情報!K23","v":0}]
[null,"受付年月日",null,null,null,null,null,null,null," 2．各作業所毎に請求書を作成すること。"]
[null,null,null,null,null,null,null,null,null," 3．請求書は毎月15日締切18日本社必着のこと。",null,null,null,null,null,null,null,null,null,null,null,null,null,null,null,null,null,null,null,null,null,null,null,null,null,{"$f":"請求基本情報!K12","v":0}]
[]
[null,null,null,null,null,null,null,null,null,"取引",null,null,{"$f":"請求基本情報!M32","v":0},null,null,null,null,null,null,null,null,{"$f":"請求基本情報!Y32","v":0},null,null,null,null,null,null,null,null,null,null,null,null,null,{"$f":"請求基本情報!O16","v":0},null,null,null,null,null,null,null,{"$f":"請求基本情報!AK16","v":0}]
[null,null,null,null,null,null,null,null,null,"銀行"]
[null,null,null,null,null,null,null,null,null,"　   普通",null,null,null,"　   当座",null,null,null,"口座番号：",null,null,null,null,{"$f":"請求基本情報!AT32","v":0},null,null,null,null,null,null,null,null,null,null,null,null,"TEL",null,{"$f":"請求基本情報!O27","v":0},null,null,null,null,null,null,"FAX",null,{"$f":"請求基本情報!AK27","v":0}]
[]
[null,null,null,null,null,null,null,null,null,"口座\n名義",null,null,{"$f":"請求基本情報!R36","v":0},null,null,null,null,null,null,null,null,null,null,null,null,null,null,null,null,null,null,"登録番号　：",null,null,null,null,{"$f":"請求基本情報!K30","v":0}]
[]
[null,null,null,null,null,null,null,null,null,null,null,null,{"$f":"請求基本情報!R38","v":0},null,null,null,null,null,null,null,null,null,null,null,null,null,null,null,null,null,null,"業者コード：",null,null,null,null,{"$f":"請求基本情報!K31","v":0}]
[]
[]
[null,"役　員",null,null,null,null,null,null,null,null,null,null,null,null,null,null,null,null,null,null,null,"担　当　部　長",null,null,null,null,null,null,null,null,null,null,null,null,null,null,null,null,null,null,null,"作　業　所"]
[]
[]
[]
[]
[]
[null,"【提 出 用】",null,null,null,null,null,null,null,null,null,null,null,null,null,null,null,null,null,null,null,null,null,null,null,null,null,null,null,null,null,null,null,null,null,{"$f":"AJ1","v":0},null,null,null,null,null,null,null,"年",null,{"$f":"AT1","v":0},null,"月",null,{"$f":"AX1","v":0},null,"日"]
[]
[null,"請　求　書（契約）",null,null,null,null,null,null,null,null,null,null,null,null,null,null,null,null,null,null,null,null,null,null,null,null,null,null,null,null,"※ 註",null,null,null,null,"第　　　号"]
[]
[null,null,null,null,null,null,null,null,null,null,null,null,null,null,null,null,null,null,null,null,null,null,null,null,null,null,null,null,null,null,"契 約 額"]
[null,"中 国 建 設 工 業 ㈱　 御 中"]
[null,null,null,null,null,null,null,null,null,null,null,null,null,null,null,null,null,null,null,null,null,null,null,null,null,null,null,null,null,null,"支払済額"]
[]
[null,"下記の通りご請求申し上げます。",null,null,null,null,null,null,null,null,null,null,null,null,null,null,null,null,null,null,null,null,null,null,null,null,null,null,null,null,"今回支払額"]
[]
[null,"税別金額",null,null,null,null,"金",null,null,{"$f":"J11","v":0},null,null,null,null,null,null,null,null,null,null,null,null,null,null,null,null,null,null,null,null,"差引残高"]
[]
[null,null,null,null,null,null,null,null,null,null,null,null,null,null,null,null,null,null,null,null,null,null,null,null,null,null,null,null,null,null,"立 替 分"]
[null,"消 費 税",null,null,null,null,"金",null,null,{"$f":"J14","v":0}]
[null,null,null,null,null,null,null,null,null,null,null,null,null,null,null,null,null,null,null,null,null,null,null,null,null,null,null,null,null,null,"支払合計"]
[]
[]
[null,"作業所及び担当者",null,null,null,null,null,null,"：",{"$f":"J18","v":0},null,null,null,null,null,null,null,null,null,null,null,null,null,null,null,null,null,null,null,null,"現場査定額"]
[]
[null,"※作業所コード",null,null,null,null,null,null,"：",{"$f":"J20","v":0},null,null,null,null,null,null,null,null,null,null,null,null,null,null,null,null,null,null,null,null,"上記の90％"]
[]
[]
[]
[null,"月",null,"日",null,"品　名",null,null,null,null,null,null,null,null,null,"契約金額",null,null,null,null,null,null,null,"累計出来高",null,null,null,null,null,null,null,"金　額",null,null,null,null,null,null,null,"非課税",null,null,null,"備　考"]
[]
[]
[null,{"$f":"B27","v":0},null,{"$f":"D27","v":0},null,{"$f":"F27","v":0},null,null,null,null,null,null,null,null,null,{"$f":"P27","v":0},null,null,null,null,null,null,null,{"$f":"X27","v":0},null,null,null,{"$f":"AB27","v":0},null,null,null,{"$f":"AF27","v":0},null,null,null,null,null,null,null,{"$f":"AN27","v":0},null,null,null,{"$f":"AR27","v":0},null,null,null,null,null,null,null,null,null,null,null,null,null,null,null,null,null,null,null,null,null,null,null,null,null,null,null,null,null,null,null,null,null,null,null,null,null,null,null,null,null,null,null,null,null,null,null,null,null,null,null,null,null,null,null,null,null,null,null,null,null,null,null,null,null,null,null,null,null,null,null,null,null,null,null,null,null,null,null,null,null,null,null,null,null,null,null,null,null,null,null,null,null,null,null,null,null,null,null,null,null,null,null,null,{"$f":"IF(AN129=\"※\",AF129,\"\")","v":""}]
[]
[]
[null,{"$f":"B30","v":0},null,{"$f":"D30","v":0},null,{"$f":"F30","v":0},null,null,null,null,null,null,null,null,null,{"$f":"P30","v":0},null,null,null,null,null,null,null,{"$f":"X30","v":0},null,null,null,{"$f":"AB30","v":0},null,null,null,{"$f":"AF30","v":0},null,null,null,null,null,null,null,{"$f":"AN30","v":0},null,null,null,{"$f":"AR30","v":0},null,null,null,null,null,null,null,null,null,null,null,null,null,null,null,null,null,null,null,null,null,null,null,null,null,null,null,null,null,null,null,null,null,null,null,null,null,null,null,null,null,null,null,null,null,null,null,null,null,null,null,null,null,null,null,null,null,null,null,null,null,null,null,null,null,null,null,null,null,null,null,null,null,null,null,null,null,null,null,null,null,null,null,null,null,null,null,null,null,null,null,null,null,null,null,null,null,null,null,null,null,null,null,null,{"$f":"IF(AN132=\"※\",AF132,\"\")","v":""}]
[]
[]
[null,{"$f":"B33","v":0},null,{"$f":"D33","v":0},null,{"$f":"F33","v":0},null,null,null,null,null,null,null,null,null,{"$f":"P33","v":0},null,null,null,null,null,null,null,{"$f":"X33","v":0},null,null,null,{"$f":"AB33","v":0},null,null,null,{"$f":"AF33","v":0},null,null,null,null,null,null,null,{"$f":"AN33","v":0},null,null,null,{"$f":"AR33","v":0},null,null,null,null,null,null,null,null,null,null,null,null,null,null,null,null,null,null,null,null,null,null,null,null,null,null,null,null,null,null,null,null,null,null,null,null,null,null,null,null,null,null,null,null,null,null,null,null,null,null,null,null,null,null,null,null,null,null,null,null,null,null,null,null,null,null,null,null,null,null,null,null,null,null,null,null,null,null,null,null,null,null,null,null,null,null,null,null,null,null,null,null,null,null,null,null,null,null,null,null,null,null,null,null,{"$f":"IF(AN135=\"※\",AF135,\"\")","v":""}]
[]
[]
[null,{"$f":"B36","v":0},null,{"$f":"D36","v":0},null,{"$f":"F36","v":0},null,null,null,null,null,null,null,null,null,{"$f":"P36","v":0},null,null,null,null,null,null,null,{"$f":"X36","v":0},null,null,null,{"$f":"AB36","v":0},null,null,null,{"$f":"AF36","v":0},null,null,null,null,null,null,null,{"$f":"AN36","v":0},null,null,null,{"$f":"AR36","v":0},null,null,null,null,null,null,null,null,null,null,null,null,null,null,null,null,null,null,null,null,null,null,null,null,null,null,null,null,null,null,null,null,null,null,null,null,null,null,null,null,null,null,null,null,null,null,null,null,null,null,null,null,null,null,null,null,null,null,null,null,null,null,null,null,null,null,null,null,null,null,null,null,null,null,null,null,null,null,null,null,null,null,null,null,null,null,null,null,null,null,null,null,null,null,null,null,null,null,null,null,null,null,null,null,{"$f":"IF(AN138=\"※\",AF138,\"\")","v":""}]
[]
[]
[null,{"$f":"B39","v":0},null,{"$f":"D39","v":0},null,{"$f":"F39","v":0},null,null,null,null,null,null,null,null,null,{"$f":"P39","v":0},null,null,null,null,null,null,null,{"$f":"X39","v":0},null,null,null,{"$f":"AB39","v":0},null,null,null,{"$f":"AF39","v":0},null,null,null,null,null,null,null,{"$f":"AN39","v":0},null,null,null,{"$f":"AR39","v":0},null,null,null,null,null,null,null,null,null,null,null,null,null,null,null,null,null,null,null,null,null,null,null,null,null,null,null,null,null,null,null,null,null,null,null,null,null,null,null,null,null,null,null,null,null,null,null,null,null,null,null,null,null,null,null,null,null,null,null,null,null,null,null,null,null,null,null,null,null,null,null,null,null,null,null,null,null,null,null,null,null,null,null,null,null,null,null,null,null,null,null,null,null,null,null,null,null,null,null,null,null,null,null,null,{"$f":"IF(AN141=\"※\",AF141,\"\")","v":""}]
[]
[]
[null,{"$f":"B42","v":0},null,{"$f":"D42","v":0},null,{"$f":"F42","v":0},null,null,null,null,null,null,null,null,null,{"$f":"P42","v":0},null,null,null,null,null,null,null,{"$f":"X42","v":0},null,null,null,{"$f":"AB42","v":0},null,null,null,{"$f":"AF42","v":0},null,null,null,null,null,null,null,{"$f":"AN42","v":0},null,null,null,{"$f":"AR42","v":0},null,null,null,null,null,null,null,null,null,null,null,null,null,null,null,null,null,null,null,null,null,null,null,null,null,null,null,null,null,null,null,null,null,null,null,null,null,null,null,null,null,null,null,null,null,null,null,null,null,null,null,null,null,null,null,null,null,null,null,null,null,null,null,null,null,null,null,null,null,null,null,null,null,null,null,null,null,null,null,null,null,null,null,null,null,null,null,null,null,null,null,null,null,null,null,null,null,null,null,null,null,null,null,null,{"$f":"IF(AN144=\"※\",AF144,\"\")","v":""}]
[]
[]
[null,{"$f":"B45","v":0},null,{"$f":"D45","v":0},null,{"$f":"F45","v":0},null,null,null,null,null,null,null,null,null,{"$f":"P45","v":0},null,null,null,null,null,null,null,{"$f":"X45","v":0},null,null,null,{"$f":"AB45","v":0},null,null,null,{"$f":"AF45","v":0},null,null,null,null,null,null,null,{"$f":"AN45","v":0},null,null,null,{"$f":"AR45","v":0},null,null,null,null,null,null,null,null,null,null,null,null,null,null,null,null,null,null,null,null,null,null,null,null,null,null,null,null,null,null,null,null,null,null,null,null,null,null,null,null,null,null,null,null,null,null,null,null,null,null,null,null,null,null,null,null,null,null,null,null,null,null,null,null,null,null,null,null,null,null,null,null,null,null,null,null,null,null,null,null,null,null,null,null,null,null,null,null,null,null,null,null,null,null,null,null,null,null,null,null,null,null,null,null,{"$f":"IF(AN147=\"※\",AF147,\"\")","v":""}]
[]
[]
[null,{"$f":"B48","v":0},null,{"$f":"D48","v":0},null,{"$f":"F48","v":0},null,null,null,null,null,null,null,null,null,{"$f":"P48","v":0},null,null,null,null,null,null,null,{"$f":"X48","v":0},null,null,null,{"$f":"AB48","v":0},null,null,null,{"$f":"AF48","v":0},null,null,null,null,null,null,null,{"$f":"AN48","v":0},null,null,null,{"$f":"AR48","v":0},null,null,null,null,null,null,null,null,null,null,null,null,null,null,null,null,null,null,null,null,null,null,null,null,null,null,null,null,null,null,null,null,null,null,null,null,null,null,null,null,null,null,null,null,null,null,null,null,null,null,null,null,null,null,null,null,null,null,null,null,null,null,null,null,null,null,null,null,null,null,null,null,null,null,null,null,null,null,null,null,null,null,null,null,null,null,null,null,null,null,null,null,null,null,null,null,null,null,null,null,null,null,null,null,{"$f":"IF(AN150=\"※\",AF150,\"\")","v":""}]
[]
[]
[null,{"$f":"B51","v":0},null,{"$f":"D51","v":0},null,{"$f":"F51","v":0},null,null,null,null,null,null,null,null,null,{"$f":"P51","v":0},null,null,null,null,null,null,null,{"$f":"X51","v":0},null,null,null,{"$f":"AB51","v":0},null,null,null,{"$f":"AF51","v":0},null,null,null,null,null,null,null,{"$f":"AN51","v":0},null,null,null,{"$f":"AR51","v":0},null,null,null,null,null,null,null,null,null,null,null,null,null,null,null,null,null,null,null,null,null,null,null,null,null,null,null,null,null,null,null,null,null,null,null,null,null,null,null,null,null,null,null,null,null,null,null,null,null,null,null,null,null,null,null,null,null,null,null,null,null,null,null,null,null,null,null,null,null,null,null,null,null,null,null,null,null,null,null,null,null,null,null,null,null,null,null,null,null,null,null,null,null,null,null,null,null,null,null,null,null,null,null,null,{"$f":"IF(AN153=\"※\",AF153,\"\")","v":""}]
[]
[]
[null,{"$f":"B54","v":0},null,{"$f":"D54","v":0},null,{"$f":"F54","v":0},null,null,null,null,null,null,null,null,null,{"$f":"P54","v":0},null,null,null,null,null,null,null,{"$f":"X54","v":0},null,null,null,{"$f":"AB54","v":0},null,null,null,{"$f":"AF54","v":0},null,null,null,null,null,null,null,{"$f":"AN54","v":0},null,null,null,{"$f":"AR54","v":0},null,null,null,null,null,null,null,null,null,null,null,null,null,null,null,null,null,null,null,null,null,null,null,null,null,null,null,null,null,null,null,null,null,null,null,null,null,null,null,null,null,null,null,null,null,null,null,null,null,null,null,null,null,null,null,null,null,null,null,null,null,null,null,null,null,null,null,null,null,null,null,null,null,null,null,null,null,null,null,null,null,null,null,null,null,null,null,null,null,null,null,null,null,null,null,null,null,null,null,null,null,null,null,null,{"$f":"IF(AN156=\"※\",AF156,\"\")","v":""}]
[]
[]
[null,{"$f":"B57","v":0},null,{"$f":"D57","v":0},null,{"$f":"F57","v":0},null,null,null,null,null,null,null,null,null,{"$f":"P57","v":0},null,null,null,null,null,null,null,{"$f":"X57","v":0},null,null,null,{"$f":"AB57","v":0},null,null,null,{"$f":"AF57","v":0},null,null,null,null,null,null,null,{"$f":"AN57","v":0},null,null,null,{"$f":"AR57","v":0},null,null,null,null,null,null,null,null,null,null,null,null,null,null,null,null,null,null,null,null,null,null,null,null,null,null,null,null,null,null,null,null,null,null,null,null,null,null,null,null,null,null,null,null,null,null,null,null,null,null,null,null,null,null,null,null,null,null,null,null,null,null,null,null,null,null,null,null,null,null,null,null,null,null,null,null,null,null,null,null,null,null,null,null,null,null,null,null,null,null,null,null,null,null,null,null,null,null,null,null,null,null,null,null,{"$f":"IF(AN159=\"※\",AF159,\"\")","v":""}]
[]
[]
[null,{"$f":"B60","v":0},null,{"$f":"D60","v":0},null,{"$f":"F60","v":0},null,null,null,null,null,null,null,null,null,{"$f":"P60","v":0},null,null,null,null,null,null,null,{"$f":"X60","v":0},null,null,null,{"$f":"AB60","v":0},null,null,null,{"$f":"AF60","v":0},null,null,null,null,null,null,null,{"$f":"AN60","v":0},null,null,null,{"$f":"AR60","v":0},null,null,null,null,null,null,null,null,null,null,null,null,null,null,null,null,null,null,null,null,null,null,null,null,null,null,null,null,null,null,null,null,null,null,null,null,null,null,null,null,null,null,null,null,null,null,null,null,null,null,null,null,null,null,null,null,null,null,null,null,null,null,null,null,null,null,null,null,null,null,null,null,null,null,null,null,null,null,null,null,null,null,null,null,null,null,null,null,null,null,null,null,null,null,null,null,null,null,null,null,null,null,null,null,{"$f":"IF(AN162=\"※\",AF162,\"\")","v":""}]
[]
[]
[null,{"$f":"B63","v":0},null,{"$f":"D63","v":0},null,{"$f":"F63","v":0},null,null,null,null,null,null,null,null,null,{"$f":"P63","v":0},null,null,null,null,null,null,null,{"$f":"X63","v":0},null,null,null,{"$f":"AB63","v":0},null,null,null,{"$f":"AF63","v":0},null,null,null,null,null,null,null,{"$f":"AN63","v":0},null,null,null,{"$f":"AR63","v":0},null,null,null,null,null,null,null,null,null,null,null,null,null,null,null,null,null,null,null,null,null,null,null,null,null,null,null,null,null,null,null,null,null,null,null,null,null,null,null,null,null,null,null,null,null,null,null,null,null,null,null,null,null,null,null,null,null,null,null,null,null,null,null,null,null,null,null,null,null,null,null,null,null,null,null,null,null,null,null,null,null,null,null,null,null,null,null,null,null,null,null,null,null,null,null,null,null,null,null,null,null,null,null,null,{"$f":"IF(AN165=\"※\",AF165,\"\")","v":""}]
[]
[]
[null,null,null,null,null,"　　　　　　　①小　計",null,null,null,null,null,null,null,null,null,null,null,null,null,null,null,null,null,null,null,null,null,null,null,null,null,{"$f":"AF66","v":0},null,null,null,null,null,null,null,null,null,null,null,null,null,null,null,null,null,null,null,null,null,null,null,null,null,null,null,null,null,null,null,null,null,null,null,null,null,null,null,null,null,null,null,null,null,null,null,null,null,null,null,null,null,null,null,null,null,null,null,null,null,null,null,null,null,null,null,null,null,null,null,null,null,null,null,null,null,null,null,null,null,null,null,null,null,null,null,null,null,null,null,null,null,null,null,null,null,null,null,null,null,null,null,null,null,null,null,null,null,null,null,null,null,null,null,null,{"$f":"IF(AN168=\"※\",AF168,\"\")","v":""}]
[]
[]
[null,null,null,null,null,"　　　　　　　②前回迄累計 領収済額(税別)",null,null,null,null,null,null,null,null,null,null,null,null,null,null,null,null,null,null,null,null,null,null,null,null,null,{"$f":"AF69","v":0},null,null,null,null,null,null,null,null,null,null,null,null,null,null,null,null,null,null,null,null,null,null,null,null,null,null,null,null,null,null,null,null,null,null,null,null,null,null,null,null,null,null,null,null,null,null,null,null,null,null,null,null,null,null,null,null,null,null,null,null,null,null,null,null,null,null,null,null,null,null,null,null,null,null,null,null,null,null,null,null,null,null,null,null,null,null,null,null,null,null,null,null,null,null,null,null,null,null,null,null,null,null,null,null,null,null,null,null,null,null,null,null,null,null,null,null,{"$f":"IF(AN171=\"※\",AF171,\"\")","v":""}]
[]
[]
[null,null,null,null,null,"　　　　　 ①-②今回請求額 小計(8％対象 税別)",null,null,null,null,null,null,null,null,null,null,null,null,null,null,null,null,null,null,null,null,null,null,null,null,null,{"$f":"AF72","v":0}]
[]
[]
[null,null,null,null,null,"　　　　　　　　消費税(8％対象)",null,null,null,null,null,null,null,null,null,null,null,null,null,null,null,null,null,null,null,null,null,null,null,null,null,{"$f":"AF75","v":0}]
[]
[]
[null,null,null,null,null,"　　　　　　　　小　計(非課税)",null,null,null,null,null,null,null,null,null,null,null,null,null,null,null,null,null,null,null,null,null,null,null,null,null,{"$f":"AF78","v":0},null,null,null,null,null,null,null,null,null,null,null,null,null,null,null,null,null,null,null,null,null,null,null,null,null,null,null,null,null,null,null,null,null,null,null,null,null,null,null,null,null,null,null,null,null,null,null,null,null,null,null,null,null,null,null,null,null,null,null,null,null,null,null,null,null,null,null,null,null,null,null,null,null,null,null,null,null,null,null,null,null,null,null,null,null,null,null,null,null,null,null,null,null,null,null,null,null,null,null,null,null,null,null,null,null,null,null,null,null,null,null,null,null,null,null,null,{"$f":"SUM(ES129:EZ173)","v":0}]
[]
[]
[]
[null,null,null,null,null,null,null,null,null,"(註)",null,null,null,null,null,null,null,null,null,null,null,null,null,null,null,null,null,null,null,null,null,"住　所"]
[]
[null,null,null,null,null,null,null,null,null," 1．請求者は※印欄に記入しないこと。",null,null,null,null,null,null,null,null,null,null,null,null,null,null,null,null,null,null,null,null,null,"請求者",null,null,null,{"$f":"請求基本情報!K23","v":0}]
[null,"受付年月日",null,null,null,null,null,null,null," 2．各作業所毎に請求書を作成すること。"]
[null,null,null,null,null,null,null,null,null," 3．請求書は毎月15日締切18日本社必着のこと。",null,null,null,null,null,null,null,null,null,null,null,null,null,null,null,null,null,null,null,null,null,null,null,null,null,{"$f":"請求基本情報!K12","v":0}]
[]
[null,null,null,null,null,null,null,null,null,"取引",null,null,{"$f":"請求基本情報!M32","v":0},null,null,null,null,null,null,null,null,{"$f":"請求基本情報!Y32","v":0},null,null,null,null,null,null,null,null,null,null,null,null,null,{"$f":"請求基本情報!O16","v":0},null,null,null,null,null,null,null,{"$f":"請求基本情報!AK16","v":0}]
[null,null,null,null,null,null,null,null,null,"銀行"]
[null,null,null,null,null,null,null,null,null,"　   普通",null,null,null,"　   当座",null,null,null,"口座番号：",null,null,null,null,{"$f":"請求基本情報!AT32","v":0},null,null,null,null,null,null,null,null,null,null,null,null,"TEL",null,{"$f":"請求基本情報!O27","v":0},null,null,null,null,null,null,"FAX",null,{"$f":"請求基本情報!AK27","v":0}]
[]
[null,null,null,null,null,null,null,null,null,"口座\n名義",null,null,{"$f":"請求基本情報!R36","v":0},null,null,null,null,null,null,null,null,null,null,null,null,null,null,null,null,null,null,"登録番号　：",null,null,null,null,{"$f":"請求基本情報!K30","v":0}]
[]
[null,null,null,null,null,null,null,null,null,null,null,null,{"$f":"請求基本情報!R38","v":0},null,null,null,null,null,null,null,null,null,null,null,null,null,null,null,null,null,null,"業者コード：",null,null,null,null,{"$f":"請求基本情報!K31","v":0}]
[]
[]
[null,"役　員",null,null,null,null,null,null,null,null,null,null,null,null,null,null,null,null,null,null,null,"担　当　部　長",null,null,null,null,null,null,null,null,null,null,null,null,null,null,null,null,null,null,null,"作　業　所"]

{"sheet":"契約 (10%)","index":5,"n_rows":199,"n_cols":149,"rows_kept":199,"cut":false,"hidden":false,"merged":[[104,35,105,43],[104,44,105,52],[198,1,199,20],[198,21,199,40],[198,41,199,52],[200,1,203,20],[200,21,203,40],[200,41,203,52],[193,9,196,11],[193,12,194,29],[193,31,194,35],[193,36,194,52],[195,12,196,29],[195,31,196,35],[195,36,196,52],[191,22,192,29],[191,31,192,34],[191,35,192,36],[191,37,192,43],[191,44,192,45],[191,46,192,52],[188,1,196,8],[189,9,189,11],[189,12,190,20],[176,1,178,4],[176,5,178,30],[176,31,178,38],[185,35,186,52],[189,21,190,29],[190,9,190,11],[191,9,192,12],[191,13,192,16],[191,17,192,21],[179,1,181,4],[179,5,181,30],[183,9,184,12],[183,31,184,33],[185,31,186,33],[186,1,187,8],[187,35,188,52],[189,35,190,42],[189,43,190,52],[164,148,166,155],[167,1,169,4],[167,5,169,30],[167,31,169,38],[167,39,181,52],[167,148,169,155],[170,1,172,4],[170,5,172,30],[179,31,181,38],[179,148,181,155],[164,1,166,2],[164,3,166,4],[164,5,166,14],[164,15,166,22],[164,23,166,26],[164,27,166,30],[164,31,166,38],[164,39,166,42],[164,43,166,52],[170,31,172,38],[170,148,172,155],[173,1,175,4],[173,5,175,30],[173,31,175,38],[158,148,160,155],[161,1,163,2],[161,3,163,4],[161,5,163,14],[161,15,163,22],[161,23,163,26],[161,27,163,30],[161,31,163,38],[161,39,163,42],[161,43,163,52],[161,148,163,155],[158,1,160,2],[158,3,160,4],[158,5,160,14],[158,15,160,22],[158,23,160,26],[158,27,160,30],[158,31,160,38],[158,39,160,42],[158,43,160,52],[152,148,154,155],[155,1,157,2],[155,3,157,4],[155,5,157,14],[155,15,157,22],[155,23,157,26],[155,27,157,30],[155,31,157,38],[155,39,157,42],[155,43,157,52],[155,148,157,155],[152,1,154,2],[152,3,154,4],[152,5,154,14],[152,15,154,22],[152,23,154,26],[152,27,154,30],[152,31,154,38],[152,39,154,42],[152,43,154,52],[146,148,148,155],[149,1,151,2],[149,3,151,4],[149,5,151,14],[149,15,151,22],[149,23,151,26],[149,27,151,30],[149,31,151,38],[149,39,151,42],[149,43,151,52],[149,148,151,155],[146,1,148,2],[146,3,148,4],[146,5,148,14],[146,15,148,22],[146,23,148,26],[146,27,148,30],[146,31,148,38],[146,39,148,42],[146,43,148,52],[140,148,142,155],[143,1,145,2],[143,3,145,4],[143,5,145,14],[143,15,145,22],[143,23,145,26],[143,27,145,30],[143,31,145,38],[143,39,145,42],[143,43,145,52],[143,148,145,155],[140,1,142,2],[140,3,142,4],[140,5,142,14],[140,15,142,22],[140,23,142,26],[140,27,142,30],[140,31,142,38],[140,39,142,42],[140,43,142,52],[134,148,136,155],[137,1,139,2],[137,3,139,4],[137,5,139,14],[137,15,139,22],[137,23,139,26],[137,27,139,30],[137,31,139,38],[137,39,139,42],[137,43,139,52],[137,148,139,155],[134,1,136,2],[134,3,136,4],[134,5,136,14],[134,15,136,22],[134,23,136,26],[134,27,136,30],[134,31,136,38],[134,39,136,42],[134,43,136,52],[128,148,130,155],[131,1,133,2],[131,3,133,4],[131,5,133,14],[131,15,133,22],[131,23,133,26],[131,27,133,30],[131,31,133,38],[131,39,133,42],[131,43,133,52],[131,148,133,155],[128,1,130,2],[128,3,130,4],[128,5,130,14],[128,15,130,22],[128,23,130,26],[128,27,130,30],[128,31,130,38],[128,39,130,42],[128,43,130,52],[121,50,122,52],[125,1,127,2],[125,3,127,4],[125,5,127,14],[125,15,127,22],[125,23,127,30],[125,31,127,38],[125,39,127,42],[125,43,127,52],[121,1,122,7],[121,8,122,8],[121,9,122,27],[121,30,122,34],[121,35,122,37],[121,38,122,40],[121,41,122,43],[121,44,122,46],[121,47,122,49],[114,50,115,52],[116,41,117,43],[116,44,117,46],[116,47,117,49],[116,50,117,52],[119,1,120,7],[119,8,120,8],[119,9,120,27],[119,30,120,34],[119,35,120,37],[119,38,120,40],[115,1,117,5],[115,6,117,8],[115,9,117,27],[116,30,117,34],[116,35,117,37],[116,38,117,40],[119,41,120,43],[119,44,120,46],[119,47,120,49],[119,50,120,52],[110,47,111,49],[110,50,111,52],[112,1,114,5],[112,6,114,8],[112,9,114,27],[112,30,113,34],[112,35,113,37],[112,38,113,40],[112,41,113,43],[112,44,113,46],[110,1,111,27],[110,30,111,34],[110,35,111,37],[110,38,111,40],[110,41,111,43],[110,44,111,46],[112,47,113,49],[112,50,113,52],[114,30,115,34],[114,35,115,37],[114,38,115,40],[114,41,115,43],[114,44,115,46],[114,47,115,49],[102,51,103,52],[104,1,106,27],[104,30,105,34],[106,30,107,34],[106,35,107,37],[106,38,107,40],[106,41,107,43],[106,44,107,46],[106,47,107,49],[102,1,103,27],[102,35,103,42],[102,43,103,44],[102,45,103,46],[102,47,103,48],[102,49,103,50],[106,50,107,52],[107,1,109,27],[108,30,109,34],[108,35,109,37],[108,38,109,40],[108,41,109,43],[108,44,109,46],[108,47,109,49],[108,50,109,52],[96,1,97,20],[96,21,97,40],[96,41,97,52],[98,1,101,20],[98,21,101,40],[98,41,101,52],[89,37,90,43],[89,44,90,45],[89,46,90,52],[91,9,94,11],[91,12,92,29],[91,31,92,35],[91,36,92,52],[93,12,94,29],[93,31,94,35],[93,36,94,52],[77,148,79,155],[81,9,82,12],[81,31,82,33],[83,31,84,33],[83,35,84,52],[84,1,85,8],[85,35,86,52],[86,1,94,8],[87,9,87,11],[87,12,88,20],[87,21,88,29],[87,35,88,42],[87,43,88,52],[88,9,88,11],[89,9,90,12],[89,13,90,16],[89,17,90,21],[89,22,90,29],[89,31,90,34],[89,35,90,36],[74,1,76,4],[74,5,76,30],[74,31,76,38],[74,39,79,52],[77,1,79,4],[77,5,79,30],[77,31,79,38],[68,1,70,4],[68,5,70,30],[68,31,70,38],[68,39,70,52],[71,1,73,4],[71,5,73,30],[71,31,73,38],[71,39,73,52],[65,5,67,30],[65,31,67,38],[65,39,67,52],[65,148,67,155],[62,1,64,2],[62,3,64,4],[62,5,64,14],[62,15,64,22],[62,23,64,26],[62,27,64,30],[62,31,64,38],[62,39,64,42],[68,148,70,155],[56,148,58,155],[59,1,61,2],[59,3,61,4],[59,5,61,14],[59,15,61,22],[59,23,61,26],[59,27,61,30],[59,31,61,38],[59,39,61,42],[59,43,61,52],[59,148,61,155],[56,1,58,2],[56,3,58,4],[56,5,58,14],[56,15,58,22],[56,23,58,26],[56,27,58,30],[56,31,58,38],[56,39,58,42],[56,43,58,52],[62,43,64,52],[62,148,64,155],[65,1,67,4],[50,148,52,155],[53,1,55,2],[53,3,55,4],[53,5,55,14],[53,15,55,22],[53,23,55,26],[53,27,55,30],[53,31,55,38],[53,39,55,42],[53,43,55,52],[53,148,55,155],[50,1,52,2],[50,3,52,4],[50,5,52,14],[50,15,52,22],[50,23,52,26],[50,27,52,30],[50,31,52,38],[50,39,52,42],[50,43,52,52],[44,148,46,155],[47,1,49,2],[47,3,49,4],[47,5,49,14],[47,15,49,22],[47,23,49,26],[47,27,49,30],[47,31,49,38],[47,39,49,42],[47,43,49,52],[47,148,49,155],[44,1,46,2],[44,3,46,4],[44,5,46,14],[44,15,46,22],[44,23,46,26],[44,27,46,30],[44,31,46,38],[44,39,46,42],[44,43,46,52],[38,148,40,155],[41,1,43,2],[41,3,43,4],[41,5,43,14],[41,15,43,22],[41,23,43,26],[41,27,43,30],[41,31,43,38],[41,39,43,42],[41,43,43,52],[41,148,43,155],[38,1,40,2],[38,3,40,4],[38,5,40,14],[38,15,40,22],[38,23,40,26],[38,27,40,30],[38,31,40,38],[38,39,40,42],[38,43,40,52],[32,148,34,155],[35,1,37,2],[35,3,37,4],[35,5,37,14],[35,15,37,22],[35,23,37,26],[35,27,37,30],[35,31,37,38],[35,39,37,42],[35,43,37,52],[35,148,37,155],[32,1,34,2],[32,3,34,4],[32,5,34,14],[32,15,34,22],[32,23,34,26],[32,27,34,30],[32,31,34,38],[32,39,34,42],[32,43,34,52],[26,148,28,155],[29,1,31,2],[29,3,31,4],[29,5,31,14],[29,15,31,22],[29,23,31,26],[29,27,31,30],[29,31,31,38],[29,39,31,42],[29,43,31,52],[29,148,31,155],[26,1,28,2],[26,3,28,4],[26,5,28,14],[26,15,28,22],[26,23,28,26],[26,27,28,30],[26,31,28,38],[26,39,28,42],[26,43,28,52],[17,41,18,43],[17,44,18,46],[17,47,18,49],[17,50,18,52],[19,50,20,52],[23,1,25,2],[23,3,25,4],[23,5,25,14],[23,15,25,22],[23,23,25,30],[23,31,25,38],[23,39,25,42],[23,43,25,52],[19,1,20,7],[19,8,20,8],[19,9,20,27],[19,30,20,34],[19,35,20,37],[19,38,20,40],[19,41,20,43],[19,44,20,46],[19,47,20,49],[17,1,18,7],[17,8,18,8],[17,9,18,27],[17,30,18,34],[17,35,18,37],[17,38,18,40],[13,1,15,5],[13,6,15,8],[13,9,15,27],[14,30,15,34],[14,35,15,37],[14,38,15,40],[12,38,13,40],[10,1,12,5],[10,6,12,8],[10,9,12,27],[10,30,11,34],[10,35,11,37],[10,38,11,40],[14,41,15,43],[14,44,15,46],[14,47,15,49],[14,50,15,52],[6,41,7,43],[6,44,7,46],[6,47,7,49],[6,50,7,52],[8,47,9,49],[8,50,9,52],[10,41,11,43],[10,44,11,46],[8,1,9,27],[8,30,9,34],[8,35,9,37],[8,38,9,40],[8,41,9,43],[8,44,9,46],[10,47,11,49],[10,50,11,52],[12,30,13,34],[12,35,13,37],[12,41,13,43],[12,44,13,46],[12,47,13,49],[12,50,13,52],[0,51,1,52],[2,1,4,27],[2,30,3,34],[2,35,3,43],[2,44,3,52],[4,30,5,34],[4,35,5,37],[4,38,5,40],[4,41,5,43],[4,44,5,46],[0,1,1,27],[0,35,1,42],[0,43,1,44],[0,45,1,46],[0,47,1,48],[0,49,1,50],[4,47,5,49],[4,50,5,52],[5,1,7,27],[6,30,7,34],[6,35,7,37],[6,38,7,40]]}
[null,"【業 者 控】",null,null,null,null,null,null,null,null,null,null,null,null,null,null,null,null,null,null,null,null,null,null,null,null,null,null,null,null,null,null,null,null,null,null,null,null,null,null,null,null,null,"年",null,null,null,"月",null,null,null,"日"]
[]
[null,"請　求　書（契約）",null,null,null,null,null,null,null,null,null,null,null,null,null,null,null,null,null,null,null,null,null,null,null,null,null,null,null,null,"※ 註",null,null,null,null,"第　　　号"]
[]
[null,null,null,null,null,null,null,null,null,null,null,null,null,null,null,null,null,null,null,null,null,null,null,null,null,null,null,null,null,null,"契 約 額"]
[null,"中 国 建 設 工 業 ㈱　 御 中"]
[null,null,null,null,null,null,null,null,null,null,null,null,null,null,null,null,null,null,null,null,null,null,null,null,null,null,null,null,null,null,"支払済額"]
[]
[null,"下記の通りご請求申し上げます。",null,null,null,null,null,null,null,null,null,null,null,null,null,null,null,null,null,null,null,null,null,null,null,null,null,null,null,null,"今回支払額"]
[]
[null,"税別金額",null,null,null,null,"金",null,null,{"$f":"AF72+AF78","v":0},null,null,null,null,null,null,null,null,null,null,null,null,null,null,null,null,null,null,null,null,"差引残高"]
[]
[null,null,null,null,null,null,null,null,null,null,null,null,null,null,null,null,null,null,null,null,null,null,null,null,null,null,null,null,null,null,"立 替 分"]
[null,"消 費 税",null,null,null,null,"金",null,null,{"$f":"AF75","v":0}]
[null,null,null,null,null,null,null,null,null,null,null,null,null,null,null,null,null,null,null,null,null,null,null,null,null,null,null,null,null,null,"支払合計"]
[]
[]
[null,"作業所及び担当者",null,null,null,null,null,null,"：",null,null,null,null,null,null,null,null,null,null,null,null,null,null,null,null,null,null,null,null,null,"現場査定額"]
[]
[null,"※作業所コード",null,null,null,null,null,null,"：",null,null,null,null,null,null,null,null,null,null,null,null,null,null,null,null,null,null,null,null,null,"上記の90％"]
[]
[]
[]
[null,"月",null,"日",null,"品　名",null,null,null,null,null,null,null,null,null,"契約金額",null,null,null,null,null,null,null,"累計出来高",null,null,null,null,null,null,null,"金　額",null,null,null,null,null,null,null,"非課税",null,null,null,"備　考"]
[]
[]
[null,null,null,null,null,null,null,null,null,null,null,null,null,null,null,null,null,null,null,null,null,null,null,null,null,null,null,null,null,null,null,{"$f":"IF(OR(AB27=\"%\",AB27=\"％\"),P27*X27*0.01,P27*X27)","v":0},null,null,null,null,null,null,null,null,null,null,null,null,null,null,null,null,null,null,null,null,null,null,null,null,null,null,null,null,null,null,null,null,null,null,null,null,null,null,null,null,null,null,null,null,null,null,null,null,null,null,null,null,null,null,null,null,null,null,null,null,null,null,null,null,null,null,null,null,null,null,null,null,null,null,null,null,null,null,null,null,null,null,null,null,null,null,null,null,null,null,null,null,null,null,null,null,null,null,null,null,null,null,null,null,null,null,null,null,null,null,null,null,null,null,null,null,{"$f":"IF(AN27=\"※\",AF27,\"\")","v":""}]
[]
[]
[null,null,null,null,null,null,null,null,null,null,null,null,null,null,null,null,null,null,null,null,null,null,null,null,null,null,null,null,null,null,null,{"$f":"IF(OR(AB30=\"%\",AB30=\"％\"),P30*X30*0.01,P30*X30)","v":0},null,null,null,null,null,null,null,null,null,null,null,null,null,null,null,null,null,null,null,null,null,null,null,null,null,null,null,null,null,null,null,null,null,null,null,null,null,null,null,null,null,null,null,null,null,null,null,null,null,null,null,null,null,null,null,null,null,null,null,null,null,null,null,null,null,null,null,null,null,null,null,null,null,null,null,null,null,null,null,null,null,null,null,null,null,null,null,null,null,null,null,null,null,null,null,null,null,null,null,null,null,null,null,null,null,null,null,null,null,null,null,null,null,null,null,null,{"$f":"IF(AN30=\"※\",AF30,\"\")","v":""}]
[]
[]
[null,null,null,null,null,null,null,null,null,null,null,null,null,null,null,null,null,null,null,null,null,null,null,null,null,null,null,null,null,null,null,{"$f":"IF(OR(AB33=\"%\",AB33=\"％\"),P33*X33*0.01,P33*X33)","v":0},null,null,null,null,null,null,null,null,null,null,null,null,null,null,null,null,null,null,null,null,null,null,null,null,null,null,null,null,null,null,null,null,null,null,null,null,null,null,null,null,null,null,null,null,null,null,null,null,null,null,null,null,null,null,null,null,null,null,null,null,null,null,null,null,null,null,null,null,null,null,null,null,null,null,null,null,null,null,null,null,null,null,null,null,null,null,null,null,null,null,null,null,null,null,null,null,null,null,null,null,null,null,null,null,null,null,null,null,null,null,null,null,null,null,null,null,{"$f":"IF(AN33=\"※\",AF33,\"\")","v":""}]
[]
[]
[null,null,null,null,null,null,null,null,null,null,null,null,null,null,null,null,null,null,null,null,null,null,null,null,null,null,null,null,null,null,null,{"$f":"IF(OR(AB36=\"%\",AB36=\"％\"),P36*X36*0.01,P36*X36)","v":0},null,null,null,null,null,null,null,null,null,null,null,null,null,null,null,null,null,null,null,null,null,null,null,null,null,null,null,null,null,null,null,null,null,null,null,null,null,null,null,null,null,null,null,null,null,null,null,null,null,null,null,null,null,null,null,null,null,null,null,null,null,null,null,null,null,null,null,null,null,null,null,null,null,null,null,null,null,null,null,null,null,null,null,null,null,null,null,null,null,null,null,null,null,null,null,null,null,null,null,null,null,null,null,null,null,null,null,null,null,null,null,null,null,null,null,null,{"$f":"IF(AN36=\"※\",AF36,\"\")","v":""}]
[]
[]
[null,null,null,null,null,null,null,null,null,null,null,null,null,null,null,null,null,null,null,null,null,null,null,null,null,null,null,null,null,null,null,{"$f":"IF(OR(AB39=\"%\",AB39=\"％\"),P39*X39*0.01,P39*X39)","v":0},null,null,null,null,null,null,null,null,null,null,null,null,null,null,null,null,null,null,null,null,null,null,null,null,null,null,null,null,null,null,null,null,null,null,null,null,null,null,null,null,null,null,null,null,null,null,null,null,null,null,null,null,null,null,null,null,null,null,null,null,null,null,null,null,null,null,null,null,null,null,null,null,null,null,null,null,null,null,null,null,null,null,null,null,null,null,null,null,null,null,null,null,null,null,null,null,null,null,null,null,null,null,null,null,null,null,null,null,null,null,null,null,null,null,null,null,{"$f":"IF(AN39=\"※\",AF39,\"\")","v":""}]
[]
[]
[null,null,null,null,null,null,null,null,null,null,null,null,null,null,null,null,null,null,null,null,null,null,null,null,null,null,null,null,null,null,null,{"$f":"IF(OR(AB42=\"%\",AB42=\"％\"),P42*X42*0.01,P42*X42)","v":0},null,null,null,null,null,null,null,null,null,null,null,null,null,null,null,null,null,null,null,null,null,null,null,null,null,null,null,null,null,null,null,null,null,null,null,null,null,null,null,null,null,null,null,null,null,null,null,null,null,null,null,null,null,null,null,null,null,null,null,null,null,null,null,null,null,null,null,null,null,null,null,null,null,null,null,null,null,null,null,null,null,null,null,null,null,null,null,null,null,null,null,null,null,null,null,null,null,null,null,null,null,null,null,null,null,null,null,null,null,null,null,null,null,null,null,null,{"$f":"IF(AN42=\"※\",AF42,\"\")","v":""}]
[]
[]
[null,null,null,null,null,null,null,null,null,null,null,null,null,null,null,null,null,null,null,null,null,null,null,null,null,null,null,null,null,null,null,{"$f":"IF(OR(AB45=\"%\",AB45=\"％\"),P45*X45*0.01,P45*X45)","v":0},null,null,null,null,null,null,null,null,null,null,null,null,null,null,null,null,null,null,null,null,null,null,null,null,null,null,null,null,null,null,null,null,null,null,null,null,null,null,null,null,null,null,null,null,null,null,null,null,null,null,null,null,null,null,null,null,null,null,null,null,null,null,null,null,null,null,null,null,null,null,null,null,null,null,null,null,null,null,null,null,null,null,null,null,null,null,null,null,null,null,null,null,null,null,null,null,null,null,null,null,null,null,null,null,null,null,null,null,null,null,null,null,null,null,null,null,{"$f":"IF(AN45=\"※\",AF45,\"\")","v":""}]
[]
[]
[null,null,null,null,null,null,null,null,null,null,null,null,null,null,null,null,null,null,null,null,null,null,null,null,null,null,null,null,null,null,null,{"$f":"IF(OR(AB48=\"%\",AB48=\"％\"),P48*X48*0.01,P48*X48)","v":0},null,null,null,null,null,null,null,null,null,null,null,null,null,null,null,null,null,null,null,null,null,null,null,null,null,null,null,null,null,null,null,null,null,null,null,null,null,null,null,null,null,null,null,null,null,null,null,null,null,null,null,null,null,null,null,null,null,null,null,null,null,null,null,null,null,null,null,null,null,null,null,null,null,null,null,null,null,null,null,null,null,null,null,null,null,null,null,null,null,null,null,null,null,null,null,null,null,null,null,null,null,null,null,null,null,null,null,null,null,null,null,null,null,null,null,null,{"$f":"IF(AN48=\"※\",AF48,\"\")","v":""}]
[]
[]
[null,null,null,null,null,null,null,null,null,null,null,null,null,null,null,null,null,null,null,null,null,null,null,null,null,null,null,null,null,null,null,{"$f":"IF(OR(AB51=\"%\",AB51=\"％\"),P51*X51*0.01,P51*X51)","v":0},null,null,null,null,null,null,null,null,null,null,null,null,null,null,null,null,null,null,null,null,null,null,null,null,null,null,null,null,null,null,null,null,null,null,null,null,null,null,null,null,null,null,null,null,null,null,null,null,null,null,null,null,null,null,null,null,null,null,null,null,null,null,null,null,null,null,null,null,null,null,null,null,null,null,null,null,null,null,null,null,null,null,null,null,null,null,null,null,null,null,null,null,null,null,null,null,null,null,null,null,null,null,null,null,null,null,null,null,null,null,null,null,null,null,null,null,{"$f":"IF(AN51=\"※\",AF51,\"\")","v":""}]
[]
[]
[null,null,null,null,null,null,null,null,null,null,null,null,null,null,null,null,null,null,null,null,null,null,null,null,null,null,null,null,null,null,null,{"$f":"IF(OR(AB54=\"%\",AB54=\"％\"),P54*X54*0.01,P54*X54)","v":0},null,null,null,null,null,null,null,null,null,null,null,null,null,null,null,null,null,null,null,null,null,null,null,null,null,null,null,null,null,null,null,null,null,null,null,null,null,null,null,null,null,null,null,null,null,null,null,null,null,null,null,null,null,null,null,null,null,null,null,null,null,null,null,null,null,null,null,null,null,null,null,null,null,null,null,null,null,null,null,null,null,null,null,null,null,null,null,null,null,null,null,null,null,null,null,null,null,null,null,null,null,null,null,null,null,null,null,null,null,null,null,null,null,null,null,null,{"$f":"IF(AN54=\"※\",AF54,\"\")","v":""}]
[]
[]
[null,null,null,null,null,null,null,null,null,null,null,null,null,null,null,null,null,null,null,null,null,null,null,null,null,null,null,null,null,null,null,{"$f":"IF(OR(AB57=\"%\",AB57=\"％\"),P57*X57*0.01,P57*X57)","v":0},null,null,null,null,null,null,null,null,null,null,null,null,null,null,null,null,null,null,null,null,null,null,null,null,null,null,null,null,null,null,null,null,null,null,null,null,null,null,null,null,null,null,null,null,null,null,null,null,null,null,null,null,null,null,null,null,null,null,null,null,null,null,null,null,null,null,null,null,null,null,null,null,null,null,null,null,null,null,null,null,null,null,null,null,null,null,null,null,null,null,null,null,null,null,null,null,null,null,null,null,null,null,null,null,null,null,null,null,null,null,null,null,null,null,null,null,{"$f":"IF(AN57=\"※\",AF57,\"\")","v":""}]
[]
[]
[null,null,null,null,null,null,null,null,null,null,null,null,null,null,null,null,null,null,null,null,null,null,null,null,null,null,null,null,null,null,null,{"$f":"IF(OR(AB60=\"%\",AB60=\"％\"),P60*X60*0.01,P60*X60)","v":0},null,null,null,null,null,null,null,null,null,null,null,null,null,null,null,null,null,null,null,null,null,null,null,null,null,null,null,null,null,null,null,null,null,null,null,null,null,null,null,null,null,null,null,null,null,null,null,null,null,null,null,null,null,null,null,null,null,null,null,null,null,null,null,null,null,null,null,null,null,null,null,null,null,null,null,null,null,null,null,null,null,null,null,null,null,null,null,null,null,null,null,null,null,null,null,null,null,null,null,null,null,null,null,null,null,null,null,null,null,null,null,null,null,null,null,null,{"$f":"IF(AN60=\"※\",AF60,\"\")","v":""}]
[]
[]
[null,null,null,null,null,null,null,null,null,null,null,null,null,null,null,null,null,null,null,null,null,null,null,null,null,null,null,null,null,null,null,{"$f":"IF(OR(AB63=\"%\",AB63=\"％\"),P63*X63*0.01,P63*X63)","v":0},null,null,null,null,null,null,null,null,null,null,null,null,null,null,null,null,null,null,null,null,null,null,null,null,null,null,null,null,null,null,null,null,null,null,null,null,null,null,null,null,null,null,null,null,null,null,null,null,null,null,null,null,null,null,null,null,null,null,null,null,null,null,null,null,null,null,null,null,null,null,null,null,null,null,null,null,null,null,null,null,null,null,null,null,null,null,null,null,null,null,null,null,null,null,null,null,null,null,null,null,null,null,null,null,null,null,null,null,null,null,null,null,null,null,null,null,{"$f":"IF(AN63=\"※\",AF63,\"\")","v":""}]
[]
[]
[null,null,null,null,null,"　　　　　　　①小　計",null,null,null,null,null,null,null,null,null,null,null,null,null,null,null,null,null,null,null,null,null,null,null,null,null,{"$f":"SUM(AF27:AM65)-ES78","v":0},null,null,null,null,null,null,null,null,null,null,null,null,null,null,null,null,null,null,null,null,null,null,null,null,null,null,null,null,null,null,null,null,null,null,null,null,null,null,null,null,null,null,null,null,null,null,null,null,null,null,null,null,null,null,null,null,null,null,null,null,null,null,null,null,null,null,null,null,null,null,null,null,null,null,null,null,null,null,null,null,null,null,null,null,null,null,null,null,null,null,null,null,null,null,null,null,null,null,null,null,null,null,null,null,null,null,null,null,null,null,null,null,null,null,null,null,{"$f":"IF(AN66=\"※\",AF66,\"\")","v":""}]
[]
[]
[null,null,null,null,null,"　　　　　　　②前回迄累計 領収済額(税別)",null,null,null,null,null,null,null,null,null,null,null,null,null,null,null,null,null,null,null,null,null,null,null,null,null,null,null,null,null,null,null,null,null,null,null,null,null,null,null,null,null,null,null,null,null,null,null,null,null,null,null,null,null,null,null,null,null,null,null,null,null,null,null,null,null,null,null,null,null,null,null,null,null,null,null,null,null,null,null,null,null,null,null,null,null,null,null,null,null,null,null,null,null,null,null,null,null,null,null,null,null,null,null,null,null,null,null,null,null,null,null,null,null,null,null,null,null,null,null,null,null,null,null,null,null,null,null,null,null,null,null,null,null,null,null,null,null,null,null,null,null,null,{"$f":"IF(AN69=\"※\",AF69,\"\")","v":""}]
[]
[]
[null,null,null,null,null,"　　　　　 ①-②今回請求額 小計(10％対象 税別)",null,null,null,null,null,null,null,null,null,null,null,null,null,null,null,null,null,null,null,null,null,null,null,null,null,{"$f":"AF66-AF69","v":0}]
[]
[]
[null,null,null,null,null,"　　　　　　　　消費税(10％対象)",null,null,null,null,null,null,null,null,null,null,null,null,null,null,null,null,null,null,null,null,null,null,null,null,null,{"$f":"AF72*1.1-AF72","v":0}]
[]
[]
[null,null,null,null,null,"　　　　　　　　小　計(非課税)",null,null,null,null,null,null,null,null,null,null,null,null,null,null,null,null,null,null,null,null,null,null,null,null,null,{"$f":"ES78","v":0},null,null,null,null,null,null,null,null,null,null,null,null,null,null,null,null,null,null,null,null,null,null,null,null,null,null,null,null,null,null,null,null,null,null,null,null,null,null,null,null,null,null,null,null,null,null,null,null,null,null,null,null,null,null,null,null,null,null,null,null,null,null,null,null,null,null,null,null,null,null,null,null,null,null,null,null,null,null,null,null,null,null,null,null,null,null,null,null,null,null,null,null,null,null,null,null,null,null,null,null,null,null,null,null,null,null,null,null,null,null,null,null,null,null,null,null,{"$f":"SUM(ES27:EZ71)","v":0}]
[]
[]
[]
[null,null,null,null,null,null,null,null,null,"(註)",null,null,null,null,null,null,null,null,null,null,null,null,null,null,null,null,null,null,null,null,null,"住　所"]
[]
[null,null,null,null,null,null,null,null,null," 1．請求者は※印欄に記入しないこと。",null,null,null,null,null,null,null,null,null,null,null,null,null,null,null,null,null,null,null,null,null,"請求者",null,null,null,{"$f":"請求基本情報!K23","v":0}]
[null,"受付年月日",null,null,null,null,null,null,null," 2．各作業所毎に請求書を作成すること。"]
[null,null,null,null,null,null,null,null,null," 3．請求書は毎月15日締切18日本社必着のこと。",null,null,null,null,null,null,null,null,null,null,null,null,null,null,null,null,null,null,null,null,null,null,null,null,null,{"$f":"請求基本情報!K12","v":0}]
[]
[null,null,null,null,null,null,null,null,null,"取引",null,null,{"$f":"請求基本情報!M32","v":0},null,null,null,null,null,null,null,null,{"$f":"請求基本情報!Y32","v":0},null,null,null,null,null,null,null,null,null,null,null,null,null,{"$f":"請求基本情報!O16","v":0},null,null,null,null,null,null,null,{"$f":"請求基本情報!AK16","v":0}]
[null,null,null,null,null,null,null,null,null,"銀行"]
[null,null,null,null,null,null,null,null,null,"　   普通",null,null,null,"　   当座",null,null,null,"口座番号：",null,null,null,null,{"$f":"請求基本情報!AT32","v":0},null,null,null,null,null,null,null,null,null,null,null,null,"TEL",null,{"$f":"請求基本情報!O27","v":0},null,null,null,null,null,null,"FAX",null,{"$f":"請求基本情報!AK27","v":0}]
[]
[null,null,null,null,null,null,null,null,null,"口座\n名義",null,null,{"$f":"請求基本情報!R36","v":0},null,null,null,null,null,null,null,null,null,null,null,null,null,null,null,null,null,null,"登録番号　：",null,null,null,null,{"$f":"請求基本情報!K30","v":0}]
[]
[null,null,null,null,null,null,null,null,null,null,null,null,{"$f":"請求基本情報!R38","v":0},null,null,null,null,null,null,null,null,null,null,null,null,null,null,null,null,null,null,"業者コード：",null,null,null,null,{"$f":"請求基本情報!K31","v":0}]
[]
[]
[null,"役　員",null,null,null,null,null,null,null,null,null,null,null,null,null,null,null,null,null,null,null,"担　当　部　長",null,null,null,null,null,null,null,null,null,null,null,null,null,null,null,null,null,null,null,"作　業　所"]
[]
[]
[]
[]
[]
[null,"【提 出 用】",null,null,null,null,null,null,null,null,null,null,null,null,null,null,null,null,null,null,null,null,null,null,null,null,null,null,null,null,null,null,null,null,null,{"$f":"AJ1","v":0},null,null,null,null,null,null,null,"年",null,{"$f":"AT1","v":0},null,"月",null,{"$f":"AX1","v":0},null,"日"]
[]
[null,"請　求　書（契約）",null,null,null,null,null,null,null,null,null,null,null,null,null,null,null,null,null,null,null,null,null,null,null,null,null,null,null,null,"※ 註",null,null,null,null,"第　　　号"]
[]
[null,null,null,null,null,null,null,null,null,null,null,null,null,null,null,null,null,null,null,null,null,null,null,null,null,null,null,null,null,null,"契 約 額"]
[null,"中 国 建 設 工 業 ㈱　 御 中"]
[null,null,null,null,null,null,null,null,null,null,null,null,null,null,null,null,null,null,null,null,null,null,null,null,null,null,null,null,null,null,"支払済額"]
[]
[null,"下記の通りご請求申し上げます。",null,null,null,null,null,null,null,null,null,null,null,null,null,null,null,null,null,null,null,null,null,null,null,null,null,null,null,null,"今回支払額"]
[]
[null,"税別金額",null,null,null,null,"金",null,null,{"$f":"J11","v":0},null,null,null,null,null,null,null,null,null,null,null,null,null,null,null,null,null,null,null,null,"差引残高"]
[]
[null,null,null,null,null,null,null,null,null,null,null,null,null,null,null,null,null,null,null,null,null,null,null,null,null,null,null,null,null,null,"立 替 分"]
[null,"消 費 税",null,null,null,null,"金",null,null,{"$f":"J14","v":0}]
[null,null,null,null,null,null,null,null,null,null,null,null,null,null,null,null,null,null,null,null,null,null,null,null,null,null,null,null,null,null,"支払合計"]
[]
[]
[null,"作業所及び担当者",null,null,null,null,null,null,"：",{"$f":"J18","v":0},null,null,null,null,null,null,null,null,null,null,null,null,null,null,null,null,null,null,null,null,"現場査定額"]
[]
[null,"※作業所コード",null,null,null,null,null,null,"：",{"$f":"J20","v":0},null,null,null,null,null,null,null,null,null,null,null,null,null,null,null,null,null,null,null,null,"上記の90％"]
[]
[]
[]
[null,"月",null,"日",null,"品　名",null,null,null,null,null,null,null,null,null,"契約金額",null,null,null,null,null,null,null,"累計出来高",null,null,null,null,null,null,null,"金　額",null,null,null,null,null,null,null,"非課税",null,null,null,"備　考"]
[]
[]
[null,{"$f":"B27","v":0},null,{"$f":"D27","v":0},null,{"$f":"F27","v":0},null,null,null,null,null,null,null,null,null,{"$f":"P27","v":0},null,null,null,null,null,null,null,{"$f":"X27","v":0},null,null,null,{"$f":"AB27","v":0},null,null,null,{"$f":"AF27","v":0},null,null,null,null,null,null,null,{"$f":"AN27","v":0},null,null,null,{"$f":"AR27","v":0},null,null,null,null,null,null,null,null,null,null,null,null,null,null,null,null,null,null,null,null,null,null,null,null,null,null,null,null,null,null,null,null,null,null,null,null,null,null,null,null,null,null,null,null,null,null,null,null,null,null,null,null,null,null,null,null,null,null,null,null,null,null,null,null,null,null,null,null,null,null,null,null,null,null,null,null,null,null,null,null,null,null,null,null,null,null,null,null,null,null,null,null,null,null,null,null,null,null,null,null,null,null,null,null,{"$f":"IF(AN129=\"※\",AF129,\"\")","v":""}]
[]
[]
[null,{"$f":"B30","v":0},null,{"$f":"D30","v":0},null,{"$f":"F30","v":0},null,null,null,null,null,null,null,null,null,{"$f":"P30","v":0},null,null,null,null,null,null,null,{"$f":"X30","v":0},null,null,null,{"$f":"AB30","v":0},null,null,null,{"$f":"AF30","v":0},null,null,null,null,null,null,null,{"$f":"AN30","v":0},null,null,null,{"$f":"AR30","v":0},null,null,null,null,null,null,null,null,null,null,null,null,null,null,null,null,null,null,null,null,null,null,null,null,null,null,null,null,null,null,null,null,null,null,null,null,null,null,null,null,null,null,null,null,null,null,null,null,null,null,null,null,null,null,null,null,null,null,null,null,null,null,null,null,null,null,null,null,null,null,null,null,null,null,null,null,null,null,null,null,null,null,null,null,null,null,null,null,null,null,null,null,null,null,null,null,null,null,null,null,null,null,null,null,{"$f":"IF(AN132=\"※\",AF132,\"\")","v":""}]
[]
[]
[null,{"$f":"B33","v":0},null,{"$f":"D33","v":0},null,{"$f":"F33","v":0},null,null,null,null,null,null,null,null,null,{"$f":"P33","v":0},null,null,null,null,null,null,null,{"$f":"X33","v":0},null,null,null,{"$f":"AB33","v":0},null,null,null,{"$f":"AF33","v":0},null,null,null,null,null,null,null,{"$f":"AN33","v":0},null,null,null,{"$f":"AR33","v":0},null,null,null,null,null,null,null,null,null,null,null,null,null,null,null,null,null,null,null,null,null,null,null,null,null,null,null,null,null,null,null,null,null,null,null,null,null,null,null,null,null,null,null,null,null,null,null,null,null,null,null,null,null,null,null,null,null,null,null,null,null,null,null,null,null,null,null,null,null,null,null,null,null,null,null,null,null,null,null,null,null,null,null,null,null,null,null,null,null,null,null,null,null,null,null,null,null,null,null,null,null,null,null,null,{"$f":"IF(AN135=\"※\",AF135,\"\")","v":""}]
[]
[]
[null,{"$f":"B36","v":0},null,{"$f":"D36","v":0},null,{"$f":"F36","v":0},null,null,null,null,null,null,null,null,null,{"$f":"P36","v":0},null,null,null,null,null,null,null,{"$f":"X36","v":0},null,null,null,{"$f":"AB36","v":0},null,null,null,{"$f":"AF36","v":0},null,null,null,null,null,null,null,{"$f":"AN36","v":0},null,null,null,{"$f":"AR36","v":0},null,null,null,null,null,null,null,null,null,null,null,null,null,null,null,null,null,null,null,null,null,null,null,null,null,null,null,null,null,null,null,null,null,null,null,null,null,null,null,null,null,null,null,null,null,null,null,null,null,null,null,null,null,null,null,null,null,null,null,null,null,null,null,null,null,null,null,null,null,null,null,null,null,null,null,null,null,null,null,null,null,null,null,null,null,null,null,null,null,null,null,null,null,null,null,null,null,null,null,null,null,null,null,null,{"$f":"IF(AN138=\"※\",AF138,\"\")","v":""}]
[]
[]
[null,{"$f":"B39","v":0},null,{"$f":"D39","v":0},null,{"$f":"F39","v":0},null,null,null,null,null,null,null,null,null,{"$f":"P39","v":0},null,null,null,null,null,null,null,{"$f":"X39","v":0},null,null,null,{"$f":"AB39","v":0},null,null,null,{"$f":"AF39","v":0},null,null,null,null,null,null,null,{"$f":"AN39","v":0},null,null,null,{"$f":"AR39","v":0},null,null,null,null,null,null,null,null,null,null,null,null,null,null,null,null,null,null,null,null,null,null,null,null,null,null,null,null,null,null,null,null,null,null,null,null,null,null,null,null,null,null,null,null,null,null,null,null,null,null,null,null,null,null,null,null,null,null,null,null,null,null,null,null,null,null,null,null,null,null,null,null,null,null,null,null,null,null,null,null,null,null,null,null,null,null,null,null,null,null,null,null,null,null,null,null,null,null,null,null,null,null,null,null,{"$f":"IF(AN141=\"※\",AF141,\"\")","v":""}]
[]
[]
[null,{"$f":"B42","v":0},null,{"$f":"D42","v":0},null,{"$f":"F42","v":0},null,null,null,null,null,null,null,null,null,{"$f":"P42","v":0},null,null,null,null,null,null,null,{"$f":"X42","v":0},null,null,null,{"$f":"AB42","v":0},null,null,null,{"$f":"AF42","v":0},null,null,null,null,null,null,null,{"$f":"AN42","v":0},null,null,null,{"$f":"AR42","v":0},null,null,null,null,null,null,null,null,null,null,null,null,null,null,null,null,null,null,null,null,null,null,null,null,null,null,null,null,null,null,null,null,null,null,null,null,null,null,null,null,null,null,null,null,null,null,null,null,null,null,null,null,null,null,null,null,null,null,null,null,null,null,null,null,null,null,null,null,null,null,null,null,null,null,null,null,null,null,null,null,null,null,null,null,null,null,null,null,null,null,null,null,null,null,null,null,null,null,null,null,null,null,null,null,{"$f":"IF(AN144=\"※\",AF144,\"\")","v":""}]
[]
[]
[null,{"$f":"B45","v":0},null,{"$f":"D45","v":0},null,{"$f":"F45","v":0},null,null,null,null,null,null,null,null,null,{"$f":"P45","v":0},null,null,null,null,null,null,null,{"$f":"X45","v":0},null,null,null,{"$f":"AB45","v":0},null,null,null,{"$f":"AF45","v":0},null,null,null,null,null,null,null,{"$f":"AN45","v":0},null,null,null,{"$f":"AR45","v":0},null,null,null,null,null,null,null,null,null,null,null,null,null,null,null,null,null,null,null,null,null,null,null,null,null,null,null,null,null,null,null,null,null,null,null,null,null,null,null,null,null,null,null,null,null,null,null,null,null,null,null,null,null,null,null,null,null,null,null,null,null,null,null,null,null,null,null,null,null,null,null,null,null,null,null,null,null,null,null,null,null,null,null,null,null,null,null,null,null,null,null,null,null,null,null,null,null,null,null,null,null,null,null,null,{"$f":"IF(AN147=\"※\",AF147,\"\")","v":""}]
[]
[]
[null,{"$f":"B48","v":0},null,{"$f":"D48","v":0},null,{"$f":"F48","v":0},null,null,null,null,null,null,null,null,null,{"$f":"P48","v":0},null,null,null,null,null,null,null,{"$f":"X48","v":0},null,null,null,{"$f":"AB48","v":0},null,null,null,{"$f":"AF48","v":0},null,null,null,null,null,null,null,{"$f":"AN48","v":0},null,null,null,{"$f":"AR48","v":0},null,null,null,null,null,null,null,null,null,null,null,null,null,null,null,null,null,null,null,null,null,null,null,null,null,null,null,null,null,null,null,null,null,null,null,null,null,null,null,null,null,null,null,null,null,null,null,null,null,null,null,null,null,null,null,null,null,null,null,null,null,null,null,null,null,null,null,null,null,null,null,null,null,null,null,null,null,null,null,null,null,null,null,null,null,null,null,null,null,null,null,null,null,null,null,null,null,null,null,null,null,null,null,null,{"$f":"IF(AN150=\"※\",AF150,\"\")","v":""}]
[]
[]
[null,{"$f":"B51","v":0},null,{"$f":"D51","v":0},null,{"$f":"F51","v":0},null,null,null,null,null,null,null,null,null,{"$f":"P51","v":0},null,null,null,null,null,null,null,{"$f":"X51","v":0},null,null,null,{"$f":"AB51","v":0},null,null,null,{"$f":"AF51","v":0},null,null,null,null,null,null,null,{"$f":"AN51","v":0},null,null,null,{"$f":"AR51","v":0},null,null,null,null,null,null,null,null,null,null,null,null,null,null,null,null,null,null,null,null,null,null,null,null,null,null,null,null,null,null,null,null,null,null,null,null,null,null,null,null,null,null,null,null,null,null,null,null,null,null,null,null,null,null,null,null,null,null,null,null,null,null,null,null,null,null,null,null,null,null,null,null,null,null,null,null,null,null,null,null,null,null,null,null,null,null,null,null,null,null,null,null,null,null,null,null,null,null,null,null,null,null,null,null,{"$f":"IF(AN153=\"※\",AF153,\"\")","v":""}]
[]
[]
[null,{"$f":"B54","v":0},null,{"$f":"D54","v":0},null,{"$f":"F54","v":0},null,null,null,null,null,null,null,null,null,{"$f":"P54","v":0},null,null,null,null,null,null,null,{"$f":"X54","v":0},null,null,null,{"$f":"AB54","v":0},null,null,null,{"$f":"AF54","v":0},null,null,null,null,null,null,null,{"$f":"AN54","v":0},null,null,null,{"$f":"AR54","v":0},null,null,null,null,null,null,null,null,null,null,null,null,null,null,null,null,null,null,null,null,null,null,null,null,null,null,null,null,null,null,null,null,null,null,null,null,null,null,null,null,null,null,null,null,null,null,null,null,null,null,null,null,null,null,null,null,null,null,null,null,null,null,null,null,null,null,null,null,null,null,null,null,null,null,null,null,null,null,null,null,null,null,null,null,null,null,null,null,null,null,null,null,null,null,null,null,null,null,null,null,null,null,null,null,{"$f":"IF(AN156=\"※\",AF156,\"\")","v":""}]
[]
[]
[null,{"$f":"B57","v":0},null,{"$f":"D57","v":0},null,{"$f":"F57","v":0},null,null,null,null,null,null,null,null,null,{"$f":"P57","v":0},null,null,null,null,null,null,null,{"$f":"X57","v":0},null,null,null,{"$f":"AB57","v":0},null,null,null,{"$f":"AF57","v":0},null,null,null,null,null,null,null,{"$f":"AN57","v":0},null,null,null,{"$f":"AR57","v":0},null,null,null,null,null,null,null,null,null,null,null,null,null,null,null,null,null,null,null,null,null,null,null,null,null,null,null,null,null,null,null,null,null,null,null,null,null,null,null,null,null,null,null,null,null,null,null,null,null,null,null,null,null,null,null,null,null,null,null,null,null,null,null,null,null,null,null,null,null,null,null,null,null,null,null,null,null,null,null,null,null,null,null,null,null,null,null,null,null,null,null,null,null,null,null,null,null,null,null,null,null,null,null,null,{"$f":"IF(AN159=\"※\",AF159,\"\")","v":""}]
[]
[]
[null,{"$f":"B60","v":0},null,{"$f":"D60","v":0},null,{"$f":"F60","v":0},null,null,null,null,null,null,null,null,null,{"$f":"P60","v":0},null,null,null,null,null,null,null,{"$f":"X60","v":0},null,null,null,{"$f":"AB60","v":0},null,null,null,{"$f":"AF60","v":0},null,null,null,null,null,null,null,{"$f":"AN60","v":0},null,null,null,{"$f":"AR60","v":0},null,null,null,null,null,null,null,null,null,null,null,null,null,null,null,null,null,null,null,null,null,null,null,null,null,null,null,null,null,null,null,null,null,null,null,null,null,null,null,null,null,null,null,null,null,null,null,null,null,null,null,null,null,null,null,null,null,null,null,null,null,null,null,null,null,null,null,null,null,null,null,null,null,null,null,null,null,null,null,null,null,null,null,null,null,null,null,null,null,null,null,null,null,null,null,null,null,null,null,null,null,null,null,null,{"$f":"IF(AN162=\"※\",AF162,\"\")","v":""}]
[]
[]
[null,{"$f":"B63","v":0},null,{"$f":"D63","v":0},null,{"$f":"F63","v":0},null,null,null,null,null,null,null,null,null,{"$f":"P63","v":0},null,null,null,null,null,null,null,{"$f":"X63","v":0},null,null,null,{"$f":"AB63","v":0},null,null,null,{"$f":"AF63","v":0},null,null,null,null,null,null,null,{"$f":"AN63","v":0},null,null,null,{"$f":"AR63","v":0},null,null,null,null,null,null,null,null,null,null,null,null,null,null,null,null,null,null,null,null,null,null,null,null,null,null,null,null,null,null,null,null,null,null,null,null,null,null,null,null,null,null,null,null,null,null,null,null,null,null,null,null,null,null,null,null,null,null,null,null,null,null,null,null,null,null,null,null,null,null,null,null,null,null,null,null,null,null,null,null,null,null,null,null,null,null,null,null,null,null,null,null,null,null,null,null,null,null,null,null,null,null,null,null,{"$f":"IF(AN165=\"※\",AF165,\"\")","v":""}]
[]
[]
[null,null,null,null,null,"　　　　　　　①小　計",null,null,null,null,null,null,null,null,null,null,null,null,null,null,null,null,null,null,null,null,null,null,null,null,null,{"$f":"AF66","v":0},null,null,null,null,null,null,null,null,null,null,null,null,null,null,null,null,null,null,null,null,null,null,null,null,null,null,null,null,null,null,null,null,null,null,null,null,null,null,null,null,null,null,null,null,null,null,null,null,null,null,null,null,null,null,null,null,null,null,null,null,null,null,null,null,null,null,null,null,null,null,null,null,null,null,null,null,null,null,null,null,null,null,null,null,null,null,null,null,null,null,null,null,null,null,null,null,null,null,null,null,null,null,null,null,null,null,null,null,null,null,null,null,null,null,null,null,{"$f":"IF(AN168=\"※\",AF168,\"\")","v":""}]
[]
[]
[null,null,null,null,null,"　　　　　　　②前回迄累計 領収済額(税別)",null,null,null,null,null,null,null,null,null,null,null,null,null,null,null,null,null,null,null,null,null,null,null,null,null,{"$f":"AF69","v":0},null,null,null,null,null,null,null,null,null,null,null,null,null,null,null,null,null,null,null,null,null,null,null,null,null,null,null,null,null,null,null,null,null,null,null,null,null,null,null,null,null,null,null,null,null,null,null,null,null,null,null,null,null,null,null,null,null,null,null,null,null,null,null,null,null,null,null,null,null,null,null,null,null,null,null,null,null,null,null,null,null,null,null,null,null,null,null,null,null,null,null,null,null,null,null,null,null,null,null,null,null,null,null,null,null,null,null,null,null,null,null,null,null,null,null,null,{"$f":"IF(AN171=\"※\",AF171,\"\")","v":""}]
[]
[]
[null,null,null,null,null,"　　　　　 ①-②今回請求額 小計(10％対象 税別)",null,null,null,null,null,null,null,null,null,null,null,null,null,null,null,null,null,null,null,null,null,null,null,null,null,{"$f":"AF72","v":0}]
[]
[]
[null,null,null,null,null,"　　　　　　　　消費税(10％対象)",null,null,null,null,null,null,null,null,null,null,null,null,null,null,null,null,null,null,null,null,null,null,null,null,null,{"$f":"AF75","v":0}]
[]
[]
[null,null,null,null,null,"　　　　　　　　小　計(非課税)",null,null,null,null,null,null,null,null,null,null,null,null,null,null,null,null,null,null,null,null,null,null,null,null,null,{"$f":"AF78","v":0},null,null,null,null,null,null,null,null,null,null,null,null,null,null,null,null,null,null,null,null,null,null,null,null,null,null,null,null,null,null,null,null,null,null,null,null,null,null,null,null,null,null,null,null,null,null,null,null,null,null,null,null,null,null,null,null,null,null,null,null,null,null,null,null,null,null,null,null,null,null,null,null,null,null,null,null,null,null,null,null,null,null,null,null,null,null,null,null,null,null,null,null,null,null,null,null,null,null,null,null,null,null,null,null,null,null,null,null,null,null,null,null,null,null,null,null,{"$f":"SUM(ES129:EZ173)","v":0}]
[]
[]
[]
[null,null,null,null,null,null,null,null,null,"(註)",null,null,null,null,null,null,null,null,null,null,null,null,null,null,null,null,null,null,null,null,null,"住　所"]
[]
[null,null,null,null,null,null,null,null,null," 1．請求者は※印欄に記入しないこと。",null,null,null,null,null,null,null,null,null,null,null,null,null,null,null,null,null,null,null,null,null,"請求者",null,null,null,{"$f":"請求基本情報!K23","v":0}]
[null,"受付年月日",null,null,null,null,null,null,null," 2．各作業所毎に請求書を作成すること。"]
[null,null,null,null,null,null,null,null,null," 3．請求書は毎月15日締切18日本社必着のこと。",null,null,null,null,null,null,null,null,null,null,null,null,null,null,null,null,null,null,null,null,null,null,null,null,null,{"$f":"請求基本情報!K12","v":0}]
[]
[null,null,null,null,null,null,null,null,null,"取引",null,null,{"$f":"請求基本情報!M32","v":0},null,null,null,null,null,null,null,null,{"$f":"請求基本情報!Y32","v":0},null,null,null,null,null,null,null,null,null,null,null,null,null,{"$f":"請求基本情報!O16","v":0},null,null,null,null,null,null,null,{"$f":"請求基本情報!AK16","v":0}]
[null,null,null,null,null,null,null,null,null,"銀行"]
[null,null,null,null,null,null,null,null,null,"　   普通",null,null,null,"　   当座",null,null,null,"口座番号：",null,null,null,null,{"$f":"請求基本情報!AT32","v":0},null,null,null,null,null,null,null,null,null,null,null,null,"TEL",null,{"$f":"請求基本情報!O27","v":0},null,null,null,null,null,null,"FAX",null,{"$f":"請求基本情報!AK27","v":0}]
[]
[null,null,null,null,null,null,null,null,null,"口座\n名義",null,null,{"$f":"請求基本情報!R36","v":0},null,null,null,null,null,null,null,null,null,null,null,null,null,null,null,null,null,null,"登録番号　：",null,null,null,null,{"$f":"請求基本情報!K30","v":0}]
[]
[null,null,null,null,null,null,null,null,null,null,null,null,{"$f":"請求基本情報!R38","v":0},null,null,null,null,null,null,null,null,null,null,null,null,null,null,null,null,null,null,"業者コード：",null,null,null,null,{"$f":"請求基本情報!K31","v":0}]
[]
[]
[null,"役　員",null,null,null,null,null,null,null,null,null,null,null,null,null,null,null,null,null,null,null,"担　当　部　長",null,null,null,null,null,null,null,null,null,null,null,null,null,null,null,null,null,null,null,"作　業　所"]

{"sheet":"契約 (10%) 内訳金額手入力","index":6,"n_rows":199,"n_cols":149,"rows_kept":199,"cut":false,"hidden":false,"merged":[[198,1,199,20],[198,21,199,40],[198,41,199,52],[200,1,203,20],[200,21,203,40],[200,41,203,52],[191,35,192,36],[191,37,192,43],[191,44,192,45],[191,46,192,52],[193,9,196,11],[193,12,194,29],[193,31,194,35],[193,36,194,52],[195,12,196,29],[195,31,196,35],[190,9,190,11],[191,9,192,12],[191,13,192,16],[191,17,192,21],[191,22,192,29],[191,31,192,34],[185,31,186,33],[185,35,186,52],[186,1,187,8],[187,35,188,52],[188,1,196,8],[189,9,189,11],[189,12,190,20],[189,21,190,29],[189,35,190,42],[189,43,190,52],[195,36,196,52],[183,9,184,12],[183,31,184,33],[170,148,172,155],[173,1,175,4],[173,5,175,30],[173,31,175,38],[176,1,178,4],[176,5,178,30],[176,31,178,38],[164,148,166,155],[167,1,169,4],[167,5,169,30],[167,31,169,38],[167,39,181,52],[167,148,169,155],[170,1,172,4],[170,5,172,30],[170,31,172,38],[179,1,181,4],[179,5,181,30],[179,31,181,38],[179,148,181,155],[164,1,166,2],[164,3,166,4],[164,5,166,14],[164,15,166,22],[164,23,166,26],[164,27,166,30],[164,31,166,38],[164,39,166,42],[164,43,166,52],[158,148,160,155],[161,1,163,2],[161,3,163,4],[161,5,163,14],[161,15,163,22],[161,23,163,26],[161,27,163,30],[161,31,163,38],[161,39,163,42],[161,43,163,52],[161,148,163,155],[158,1,160,2],[158,3,160,4],[158,5,160,14],[158,15,160,22],[158,23,160,26],[158,27,160,30],[158,31,160,38],[158,39,160,42],[158,43,160,52],[152,148,154,155],[155,1,157,2],[155,3,157,4],[155,5,157,14],[155,15,157,22],[155,23,157,26],[155,27,157,30],[155,31,157,38],[155,39,157,42],[155,43,157,52],[155,148,157,155],[152,1,154,2],[152,3,154,4],[152,5,154,14],[152,15,154,22],[152,23,154,26],[152,27,154,30],[152,31,154,38],[152,39,154,42],[152,43,154,52],[146,148,148,155],[149,1,151,2],[149,3,151,4],[149,5,151,14],[149,15,151,22],[149,23,151,26],[149,27,151,30],[149,31,151,38],[149,39,151,42],[149,43,151,52],[149,148,151,155],[146,1,148,2],[146,3,148,4],[146,5,148,14],[146,15,148,22],[146,23,148,26],[146,27,148,30],[146,31,148,38],[146,39,148,42],[146,43,148,52],[140,148,142,155],[143,1,145,2],[143,3,145,4],[143,5,145,14],[143,15,145,22],[143,23,145,26],[143,27,145,30],[143,31,145,38],[143,39,145,42],[143,43,145,52],[143,148,145,155],[140,1,142,2],[140,3,142,4],[140,5,142,14],[140,15,142,22],[140,23,142,26],[140,27,142,30],[140,31,142,38],[140,39,142,42],[140,43,142,52],[134,148,136,155],[137,1,139,2],[137,3,139,4],[137,5,139,14],[137,15,139,22],[137,23,139,26],[137,27,139,30],[137,31,139,38],[137,39,139,42],[137,43,139,52],[137,148,139,155],[134,1,136,2],[134,3,136,4],[134,5,136,14],[134,15,136,22],[134,23,136,26],[134,27,136,30],[134,31,136,38],[134,39,136,42],[134,43,136,52],[128,148,130,155],[131,1,133,2],[131,3,133,4],[131,5,133,14],[131,15,133,22],[131,23,133,26],[131,27,133,30],[131,31,133,38],[131,39,133,42],[131,43,133,52],[131,148,133,155],[128,1,130,2],[128,3,130,4],[128,5,130,14],[128,15,130,22],[128,23,130,26],[128,27,130,30],[128,31,130,38],[128,39,130,42],[128,43,130,52],[121,50,122,52],[125,1,127,2],[125,3,127,4],[125,5,127,14],[125,15,127,22],[125,23,127,30],[125,31,127,38],[125,39,127,42],[125,43,127,52],[121,1,122,7],[121,8,122,8],[121,9,122,27],[121,30,122,34],[121,35,122,37],[121,38,122,40],[121,41,122,43],[121,44,122,46],[121,47,122,49],[114,44,115,46],[114,47,115,49],[114,50,115,52],[116,41,117,43],[116,44,117,46],[116,47,117,49],[116,50,117,52],[119,1,120,7],[119,8,120,8],[119,9,120,27],[119,30,120,34],[119,35,120,37],[119,38,120,40],[115,1,117,5],[115,6,117,8],[115,9,117,27],[116,30,117,34],[116,35,117,37],[116,38,117,40],[119,41,120,43],[119,44,120,46],[119,47,120,49],[119,50,120,52],[108,47,109,49],[108,50,109,52],[110,47,111,49],[110,50,111,52],[112,1,114,5],[112,6,114,8],[112,9,114,27],[112,30,113,34],[112,35,113,37],[112,38,113,40],[112,41,113,43],[112,44,113,46],[110,1,111,27],[110,30,111,34],[110,35,111,37],[110,38,111,40],[110,41,111,43],[110,44,111,46],[112,47,113,49],[112,50,113,52],[114,30,115,34],[114,35,115,37],[114,38,115,40],[114,41,115,43],[102,51,103,52],[104,1,106,27],[104,30,105,34],[104,35,105,43],[104,44,105,52],[106,30,107,34],[106,35,107,37],[106,38,107,40],[106,41,107,43],[106,44,107,46],[102,1,103,27],[102,35,103,42],[102,43,103,44],[102,45,103,46],[102,47,103,48],[102,49,103,50],[106,47,107,49],[106,50,107,52],[107,1,109,27],[108,30,109,34],[108,35,109,37],[108,38,109,40],[108,41,109,43],[108,44,109,46],[96,1,97,20],[96,21,97,40],[96,41,97,52],[98,1,101,20],[98,21,101,40],[98,41,101,52],[89,37,90,43],[89,44,90,45],[89,46,90,52],[91,9,94,11],[91,12,92,29],[91,31,92,35],[91,36,92,52],[93,12,94,29],[93,31,94,35],[93,36,94,52],[77,148,79,155],[81,9,82,12],[81,31,82,33],[83,31,84,33],[83,35,84,52],[84,1,85,8],[85,35,86,52],[86,1,94,8],[87,9,87,11],[87,12,88,20],[87,21,88,29],[87,35,88,42],[87,43,88,52],[88,9,88,11],[89,9,90,12],[89,13,90,16],[89,17,90,21],[89,22,90,29],[89,31,90,34],[89,35,90,36],[74,1,76,4],[74,5,76,30],[74,31,76,38],[74,39,79,52],[77,1,79,4],[77,5,79,30],[77,31,79,38],[68,1,70,4],[68,5,70,30],[68,31,70,38],[68,39,70,52],[71,1,73,4],[71,5,73,30],[71,31,73,38],[71,39,73,52],[65,5,67,30],[65,31,67,38],[65,39,67,52],[65,148,67,155],[62,1,64,2],[62,3,64,4],[62,5,64,14],[62,15,64,22],[62,23,64,26],[62,27,64,30],[62,31,64,38],[62,39,64,42],[68,148,70,155],[56,148,58,155],[59,1,61,2],[59,3,61,4],[59,5,61,14],[59,15,61,22],[59,23,61,26],[59,27,61,30],[59,31,61,38],[59,39,61,42],[59,43,61,52],[59,148,61,155],[56,1,58,2],[56,3,58,4],[56,5,58,14],[56,15,58,22],[56,23,58,26],[56,27,58,30],[56,31,58,38],[56,39,58,42],[56,43,58,52],[62,43,64,52],[62,148,64,155],[65,1,67,4],[50,148,52,155],[53,1,55,2],[53,3,55,4],[53,5,55,14],[53,15,55,22],[53,23,55,26],[53,27,55,30],[53,31,55,38],[53,39,55,42],[53,43,55,52],[53,148,55,155],[50,1,52,2],[50,3,52,4],[50,5,52,14],[50,15,52,22],[50,23,52,26],[50,27,52,30],[50,31,52,38],[50,39,52,42],[50,43,52,52],[44,148,46,155],[47,1,49,2],[47,3,49,4],[47,5,49,14],[47,15,49,22],[47,23,49,26],[47,27,49,30],[47,31,49,38],[47,39,49,42],[47,43,49,52],[47,148,49,155],[44,1,46,2],[44,3,46,4],[44,5,46,14],[44,15,46,22],[44,23,46,26],[44,27,46,30],[44,31,46,38],[44,39,46,42],[44,43,46,52],[38,148,40,155],[41,1,43,2],[41,3,43,4],[41,5,43,14],[41,15,43,22],[41,23,43,26],[41,27,43,30],[41,31,43,38],[41,39,43,42],[41,43,43,52],[41,148,43,155],[38,1,40,2],[38,3,40,4],[38,5,40,14],[38,15,40,22],[38,23,40,26],[38,27,40,30],[38,31,40,38],[38,39,40,42],[38,43,40,52],[32,148,34,155],[35,1,37,2],[35,3,37,4],[35,5,37,14],[35,15,37,22],[35,23,37,26],[35,27,37,30],[35,31,37,38],[35,39,37,42],[35,43,37,52],[35,148,37,155],[32,1,34,2],[32,3,34,4],[32,5,34,14],[32,15,34,22],[32,23,34,26],[32,27,34,30],[32,31,34,38],[32,39,34,42],[32,43,34,52],[26,148,28,155],[29,1,31,2],[29,3,31,4],[29,5,31,14],[29,15,31,22],[29,23,31,26],[29,27,31,30],[29,31,31,38],[29,39,31,42],[29,43,31,52],[29,148,31,155],[26,1,28,2],[26,3,28,4],[26,5,28,14],[26,15,28,22],[26,23,28,26],[26,27,28,30],[26,31,28,38],[26,39,28,42],[26,43,28,52],[19,50,20,52],[23,1,25,2],[23,3,25,4],[23,5,25,14],[23,15,25,22],[23,23,25,30],[23,31,25,38],[23,39,25,42],[23,43,25,52],[19,1,20,7],[19,8,20,8],[19,9,20,27],[19,30,20,34],[19,35,20,37],[19,38,20,40],[19,41,20,43],[19,44,20,46],[19,47,20,49],[12,44,13,46],[12,47,13,49],[12,50,13,52],[14,41,15,43],[14,44,15,46],[14,47,15,49],[14,50,15,52],[17,1,18,7],[17,8,18,8],[17,9,18,27],[17,30,18,34],[17,35,18,37],[17,38,18,40],[13,1,15,5],[13,6,15,8],[13,9,15,27],[14,30,15,34],[14,35,15,37],[14,38,15,40],[17,41,18,43],[17,44,18,46],[17,47,18,49],[17,50,18,52],[6,47,7,49],[6,50,7,52],[8,47,9,49],[8,50,9,52],[10,1,12,5],[10,6,12,8],[10,9,12,27],[10,30,11,34],[10,35,11,37],[10,38,11,40],[10,41,11,43],[10,44,11,46],[8,1,9,27],[8,30,9,34],[8,35,9,37],[8,38,9,40],[8,41,9,43],[8,44,9,46],[10,47,11,49],[10,50,11,52],[12,30,13,34],[12,35,13,37],[12,38,13,40],[12,41,13,43],[0,51,1,52],[2,1,4,27],[2,30,3,34],[2,35,3,43],[2,44,3,52],[4,30,5,34],[4,35,5,37],[4,38,5,40],[4,41,5,43],[4,44,5,46],[0,1,1,27],[0,35,1,42],[0,43,1,44],[0,45,1,46],[0,47,1,48],[0,49,1,50],[4,47,5,49],[4,50,5,52],[5,1,7,27],[6,30,7,34],[6,35,7,37],[6,38,7,40],[6,41,7,43],[6,44,7,46]]}
[null,"【業 者 控】",null,null,null,null,null,null,null,null,null,null,null,null,null,null,null,null,null,null,null,null,null,null,null,null,null,null,null,null,null,null,null,null,null,null,null,null,null,null,null,null,null,"年",null,null,null,"月",null,null,null,"日"]
[]
[null,"請　求　書（契約）",null,null,null,null,null,null,null,null,null,null,null,null,null,null,null,null,null,null,null,null,null,null,null,null,null,null,null,null,"※ 註",null,null,null,null,"第　　　号"]
[]
[null,null,null,null,null,null,null,null,null,null,null,null,null,null,null,null,null,null,null,null,null,null,null,null,null,null,null,null,null,null,"契 約 額"]
[null,"中 国 建 設 工 業 ㈱　 御 中"]
[null,null,null,null,null,null,null,null,null,null,null,null,null,null,null,null,null,null,null,null,null,null,null,null,null,null,null,null,null,null,"支払済額"]
[]
[null,"下記の通りご請求申し上げます。",null,null,null,null,null,null,null,null,null,null,null,null,null,null,null,null,null,null,null,null,null,null,null,null,null,null,null,null,"今回支払額"]
[]
[null,"税別金額",null,null,null,null,"金",null,null,{"$f":"AF72+AF78","v":0},null,null,null,null,null,null,null,null,null,null,null,null,null,null,null,null,null,null,null,null,"差引残高"]
[]
[null,null,null,null,null,null,null,null,null,null,null,null,null,null,null,null,null,null,null,null,null,null,null,null,null,null,null,null,null,null,"立 替 分"]
[null,"消 費 税",null,null,null,null,"金",null,null,{"$f":"AF75","v":0}]
[null,null,null,null,null,null,null,null,null,null,null,null,null,null,null,null,null,null,null,null,null,null,null,null,null,null,null,null,null,null,"支払合計"]
[]
[]
[null,"作業所及び担当者",null,null,null,null,null,null,"：",null,null,null,null,null,null,null,null,null,null,null,null,null,null,null,null,null,null,null,null,null,"現場査定額"]
[]
[null,"※作業所コード",null,null,null,null,null,null,"：",null,null,null,null,null,null,null,null,null,null,null,null,null,null,null,null,null,null,null,null,null,"上記の90％"]
[]
[]
[]
[null,"月",null,"日",null,"品　名",null,null,null,null,null,null,null,null,null,"契約金額",null,null,null,null,null,null,null,"累計出来高",null,null,null,null,null,null,null,"金　額",null,null,null,null,null,null,null,"非課税",null,null,null,"備　考"]
[]
[]
[null,null,null,null,null,null,null,null,null,null,null,null,null,null,null,null,null,null,null,null,null,null,null,null,null,null,null,null,null,null,null,null,null,null,null,null,null,null,null,null,null,null,null,null,null,null,null,null,null,null,null,null,null,null,null,null,null,null,null,null,null,null,null,null,null,null,null,null,null,null,null,null,null,null,null,null,null,null,null,null,null,null,null,null,null,null,null,null,null,null,null,null,null,null,null,null,null,null,null,null,null,null,null,null,null,null,null,null,null,null,null,null,null,null,null,null,null,null,null,null,null,null,null,null,null,null,null,null,null,null,null,null,null,null,null,null,null,null,null,null,null,null,null,null,null,null,null,null,{"$f":"IF(AN27=\"※\",AF27,\"\")","v":""}]
[]
[]
[null,null,null,null,null,null,null,null,null,null,null,null,null,null,null,null,null,null,null,null,null,null,null,null,null,null,null,null,null,null,null,null,null,null,null,null,null,null,null,null,null,null,null,null,null,null,null,null,null,null,null,null,null,null,null,null,null,null,null,null,null,null,null,null,null,null,null,null,null,null,null,null,null,null,null,null,null,null,null,null,null,null,null,null,null,null,null,null,null,null,null,null,null,null,null,null,null,null,null,null,null,null,null,null,null,null,null,null,null,null,null,null,null,null,null,null,null,null,null,null,null,null,null,null,null,null,null,null,null,null,null,null,null,null,null,null,null,null,null,null,null,null,null,null,null,null,null,null,{"$f":"IF(AN30=\"※\",AF30,\"\")","v":""}]
[]
[]
[null,null,null,null,null,null,null,null,null,null,null,null,null,null,null,null,null,null,null,null,null,null,null,null,null,null,null,null,null,null,null,null,null,null,null,null,null,null,null,null,null,null,null,null,null,null,null,null,null,null,null,null,null,null,null,null,null,null,null,null,null,null,null,null,null,null,null,null,null,null,null,null,null,null,null,null,null,null,null,null,null,null,null,null,null,null,null,null,null,null,null,null,null,null,null,null,null,null,null,null,null,null,null,null,null,null,null,null,null,null,null,null,null,null,null,null,null,null,null,null,null,null,null,null,null,null,null,null,null,null,null,null,null,null,null,null,null,null,null,null,null,null,null,null,null,null,null,null,{"$f":"IF(AN33=\"※\",AF33,\"\")","v":""}]
[]
[]
[null,null,null,null,null,null,null,null,null,null,null,null,null,null,null,null,null,null,null,null,null,null,null,null,null,null,null,null,null,null,null,null,null,null,null,null,null,null,null,null,null,null,null,null,null,null,null,null,null,null,null,null,null,null,null,null,null,null,null,null,null,null,null,null,null,null,null,null,null,null,null,null,null,null,null,null,null,null,null,null,null,null,null,null,null,null,null,null,null,null,null,null,null,null,null,null,null,null,null,null,null,null,null,null,null,null,null,null,null,null,null,null,null,null,null,null,null,null,null,null,null,null,null,null,null,null,null,null,null,null,null,null,null,null,null,null,null,null,null,null,null,null,null,null,null,null,null,null,{"$f":"IF(AN36=\"※\",AF36,\"\")","v":""}]
[]
[]
[null,null,null,null,null,null,null,null,null,null,null,null,null,null,null,null,null,null,null,null,null,null,null,null,null,null,null,null,null,null,null,null,null,null,null,null,null,null,null,null,null,null,null,null,null,null,null,null,null,null,null,null,null,null,null,null,null,null,null,null,null,null,null,null,null,null,null,null,null,null,null,null,null,null,null,null,null,null,null,null,null,null,null,null,null,null,null,null,null,null,null,null,null,null,null,null,null,null,null,null,null,null,null,null,null,null,null,null,null,null,null,null,null,null,null,null,null,null,null,null,null,null,null,null,null,null,null,null,null,null,null,null,null,null,null,null,null,null,null,null,null,null,null,null,null,null,null,null,{"$f":"IF(AN39=\"※\",AF39,\"\")","v":""}]
[]
[]
[null,null,null,null,null,null,null,null,null,null,null,null,null,null,null,null,null,null,null,null,null,null,null,null,null,null,null,null,null,null,null,null,null,null,null,null,null,null,null,null,null,null,null,null,null,null,null,null,null,null,null,null,null,null,null,null,null,null,null,null,null,null,null,null,null,null,null,null,null,null,null,null,null,null,null,null,null,null,null,null,null,null,null,null,null,null,null,null,null,null,null,null,null,null,null,null,null,null,null,null,null,null,null,null,null,null,null,null,null,null,null,null,null,null,null,null,null,null,null,null,null,null,null,null,null,null,null,null,null,null,null,null,null,null,null,null,null,null,null,null,null,null,null,null,null,null,null,null,{"$f":"IF(AN42=\"※\",AF42,\"\")","v":""}]
[]
[]
[null,null,null,null,null,null,null,null,null,null,null,null,null,null,null,null,null,null,null,null,null,null,null,null,null,null,null,null,null,null,null,null,null,null,null,null,null,null,null,null,null,null,null,null,null,null,null,null,null,null,null,null,null,null,null,null,null,null,null,null,null,null,null,null,null,null,null,null,null,null,null,null,null,null,null,null,null,null,null,null,null,null,null,null,null,null,null,null,null,null,null,null,null,null,null,null,null,null,null,null,null,null,null,null,null,null,null,null,null,null,null,null,null,null,null,null,null,null,null,null,null,null,null,null,null,null,null,null,null,null,null,null,null,null,null,null,null,null,null,null,null,null,null,null,null,null,null,null,{"$f":"IF(AN45=\"※\",AF45,\"\")","v":""}]
[]
[]
[null,null,null,null,null,null,null,null,null,null,null,null,null,null,null,null,null,null,null,null,null,null,null,null,null,null,null,null,null,null,null,null,null,null,null,null,null,null,null,null,null,null,null,null,null,null,null,null,null,null,null,null,null,null,null,null,null,null,null,null,null,null,null,null,null,null,null,null,null,null,null,null,null,null,null,null,null,null,null,null,null,null,null,null,null,null,null,null,null,null,null,null,null,null,null,null,null,null,null,null,null,null,null,null,null,null,null,null,null,null,null,null,null,null,null,null,null,null,null,null,null,null,null,null,null,null,null,null,null,null,null,null,null,null,null,null,null,null,null,null,null,null,null,null,null,null,null,null,{"$f":"IF(AN48=\"※\",AF48,\"\")","v":""}]
[]
[]
[null,null,null,null,null,null,null,null,null,null,null,null,null,null,null,null,null,null,null,null,null,null,null,null,null,null,null,null,null,null,null,null,null,null,null,null,null,null,null,null,null,null,null,null,null,null,null,null,null,null,null,null,null,null,null,null,null,null,null,null,null,null,null,null,null,null,null,null,null,null,null,null,null,null,null,null,null,null,null,null,null,null,null,null,null,null,null,null,null,null,null,null,null,null,null,null,null,null,null,null,null,null,null,null,null,null,null,null,null,null,null,null,null,null,null,null,null,null,null,null,null,null,null,null,null,null,null,null,null,null,null,null,null,null,null,null,null,null,null,null,null,null,null,null,null,null,null,null,{"$f":"IF(AN51=\"※\",AF51,\"\")","v":""}]
[]
[]
[null,null,null,null,null,null,null,null,null,null,null,null,null,null,null,null,null,null,null,null,null,null,null,null,null,null,null,null,null,null,null,null,null,null,null,null,null,null,null,null,null,null,null,null,null,null,null,null,null,null,null,null,null,null,null,null,null,null,null,null,null,null,null,null,null,null,null,null,null,null,null,null,null,null,null,null,null,null,null,null,null,null,null,null,null,null,null,null,null,null,null,null,null,null,null,null,null,null,null,null,null,null,null,null,null,null,null,null,null,null,null,null,null,null,null,null,null,null,null,null,null,null,null,null,null,null,null,null,null,null,null,null,null,null,null,null,null,null,null,null,null,null,null,null,null,null,null,null,{"$f":"IF(AN54=\"※\",AF54,\"\")","v":""}]
[]
[]
[null,null,null,null,null,null,null,null,null,null,null,null,null,null,null,null,null,null,null,null,null,null,null,null,null,null,null,null,null,null,null,null,null,null,null,null,null,null,null,null,null,null,null,null,null,null,null,null,null,null,null,null,null,null,null,null,null,null,null,null,null,null,null,null,null,null,null,null,null,null,null,null,null,null,null,null,null,null,null,null,null,null,null,null,null,null,null,null,null,null,null,null,null,null,null,null,null,null,null,null,null,null,null,null,null,null,null,null,null,null,null,null,null,null,null,null,null,null,null,null,null,null,null,null,null,null,null,null,null,null,null,null,null,null,null,null,null,null,null,null,null,null,null,null,null,null,null,null,{"$f":"IF(AN57=\"※\",AF57,\"\")","v":""}]
[]
[]
[null,null,null,null,null,null,null,null,null,null,null,null,null,null,null,null,null,null,null,null,null,null,null,null,null,null,null,null,null,null,null,null,null,null,null,null,null,null,null,null,null,null,null,null,null,null,null,null,null,null,null,null,null,null,null,null,null,null,null,null,null,null,null,null,null,null,null,null,null,null,null,null,null,null,null,null,null,null,null,null,null,null,null,null,null,null,null,null,null,null,null,null,null,null,null,null,null,null,null,null,null,null,null,null,null,null,null,null,null,null,null,null,null,null,null,null,null,null,null,null,null,null,null,null,null,null,null,null,null,null,null,null,null,null,null,null,null,null,null,null,null,null,null,null,null,null,null,null,{"$f":"IF(AN60=\"※\",AF60,\"\")","v":""}]
[]
[]
[null,null,null,null,null,null,null,null,null,null,null,null,null,null,null,null,null,null,null,null,null,null,null,null,null,null,null,null,null,null,null,null,null,null,null,null,null,null,null,null,null,null,null,null,null,null,null,null,null,null,null,null,null,null,null,null,null,null,null,null,null,null,null,null,null,null,null,null,null,null,null,null,null,null,null,null,null,null,null,null,null,null,null,null,null,null,null,null,null,null,null,null,null,null,null,null,null,null,null,null,null,null,null,null,null,null,null,null,null,null,null,null,null,null,null,null,null,null,null,null,null,null,null,null,null,null,null,null,null,null,null,null,null,null,null,null,null,null,null,null,null,null,null,null,null,null,null,null,{"$f":"IF(AN63=\"※\",AF63,\"\")","v":""}]
[]
[]
[null,null,null,null,null,"　　　　　　　①小　計",null,null,null,null,null,null,null,null,null,null,null,null,null,null,null,null,null,null,null,null,null,null,null,null,null,{"$f":"SUM(AF27:AM65)-ES78","v":0},null,null,null,null,null,null,null,null,null,null,null,null,null,null,null,null,null,null,null,null,null,null,null,null,null,null,null,null,null,null,null,null,null,null,null,null,null,null,null,null,null,null,null,null,null,null,null,null,null,null,null,null,null,null,null,null,null,null,null,null,null,null,null,null,null,null,null,null,null,null,null,null,null,null,null,null,null,null,null,null,null,null,null,null,null,null,null,null,null,null,null,null,null,null,null,null,null,null,null,null,null,null,null,null,null,null,null,null,null,null,null,null,null,null,null,null,{"$f":"IF(AN66=\"※\",AF66,\"\")","v":""}]
[]
[]
[null,null,null,null,null,"　　　　　　　②前回迄累計 領収済額(税別)",null,null,null,null,null,null,null,null,null,null,null,null,null,null,null,null,null,null,null,null,null,null,null,null,null,null,null,null,null,null,null,null,null,null,null,null,null,null,null,null,null,null,null,null,null,null,null,null,null,null,null,null,null,null,null,null,null,null,null,null,null,null,null,null,null,null,null,null,null,null,null,null,null,null,null,null,null,null,null,null,null,null,null,null,null,null,null,null,null,null,null,null,null,null,null,null,null,null,null,null,null,null,null,null,null,null,null,null,null,null,null,null,null,null,null,null,null,null,null,null,null,null,null,null,null,null,null,null,null,null,null,null,null,null,null,null,null,null,null,null,null,null,{"$f":"IF(AN69=\"※\",AF69,\"\")","v":""}]
[]
[]
[null,null,null,null,null,"　　　　　 ①-②今回請求額 小計(10％対象 税別)",null,null,null,null,null,null,null,null,null,null,null,null,null,null,null,null,null,null,null,null,null,null,null,null,null,{"$f":"AF66-AF69","v":0}]
[]
[]
[null,null,null,null,null,"　　　　　　　　消費税(10％対象)",null,null,null,null,null,null,null,null,null,null,null,null,null,null,null,null,null,null,null,null,null,null,null,null,null,{"$f":"AF72*1.1-AF72","v":0}]
[]
[]
[null,null,null,null,null,"　　　　　　　　小　計(非課税)",null,null,null,null,null,null,null,null,null,null,null,null,null,null,null,null,null,null,null,null,null,null,null,null,null,{"$f":"ES78","v":0},null,null,null,null,null,null,null,null,null,null,null,null,null,null,null,null,null,null,null,null,null,null,null,null,null,null,null,null,null,null,null,null,null,null,null,null,null,null,null,null,null,null,null,null,null,null,null,null,null,null,null,null,null,null,null,null,null,null,null,null,null,null,null,null,null,null,null,null,null,null,null,null,null,null,null,null,null,null,null,null,null,null,null,null,null,null,null,null,null,null,null,null,null,null,null,null,null,null,null,null,null,null,null,null,null,null,null,null,null,null,null,null,null,null,null,null,{"$f":"SUM(ES27:EZ71)","v":0}]
[]
[]
[]
[null,null,null,null,null,null,null,null,null,"(註)",null,null,null,null,null,null,null,null,null,null,null,null,null,null,null,null,null,null,null,null,null,"住　所"]
[]
[null,null,null,null,null,null,null,null,null," 1．請求者は※印欄に記入しないこと。",null,null,null,null,null,null,null,null,null,null,null,null,null,null,null,null,null,null,null,null,null,"請求者",null,null,null,{"$f":"請求基本情報!K23","v":0}]
[null,"受付年月日",null,null,null,null,null,null,null," 2．各作業所毎に請求書を作成すること。"]
[null,null,null,null,null,null,null,null,null," 3．請求書は毎月15日締切18日本社必着のこと。",null,null,null,null,null,null,null,null,null,null,null,null,null,null,null,null,null,null,null,null,null,null,null,null,null,{"$f":"請求基本情報!K12","v":0}]
[]
[null,null,null,null,null,null,null,null,null,"取引",null,null,{"$f":"請求基本情報!M32","v":0},null,null,null,null,null,null,null,null,{"$f":"請求基本情報!Y32","v":0},null,null,null,null,null,null,null,null,null,null,null,null,null,{"$f":"請求基本情報!O16","v":0},null,null,null,null,null,null,null,{"$f":"請求基本情報!AK16","v":0}]
[null,null,null,null,null,null,null,null,null,"銀行"]
[null,null,null,null,null,null,null,null,null,"　   普通",null,null,null,"　   当座",null,null,null,"口座番号：",null,null,null,null,{"$f":"請求基本情報!AT32","v":0},null,null,null,null,null,null,null,null,null,null,null,null,"TEL",null,{"$f":"請求基本情報!O27","v":0},null,null,null,null,null,null,"FAX",null,{"$f":"請求基本情報!AK27","v":0}]
[]
[null,null,null,null,null,null,null,null,null,"口座\n名義",null,null,{"$f":"請求基本情報!R36","v":0},null,null,null,null,null,null,null,null,null,null,null,null,null,null,null,null,null,null,"登録番号　：",null,null,null,null,{"$f":"請求基本情報!K30","v":0}]
[]
[null,null,null,null,null,null,null,null,null,null,null,null,{"$f":"請求基本情報!R38","v":0},null,null,null,null,null,null,null,null,null,null,null,null,null,null,null,null,null,null,"業者コード：",null,null,null,null,{"$f":"請求基本情報!K31","v":0}]
[]
[]
[null,"役　員",null,null,null,null,null,null,null,null,null,null,null,null,null,null,null,null,null,null,null,"担　当　部　長",null,null,null,null,null,null,null,null,null,null,null,null,null,null,null,null,null,null,null,"作　業　所"]
[]
[]
[]
[]
[]
[null,"【提 出 用】",null,null,null,null,null,null,null,null,null,null,null,null,null,null,null,null,null,null,null,null,null,null,null,null,null,null,null,null,null,null,null,null,null,{"$f":"AJ1","v":0},null,null,null,null,null,null,null,"年",null,{"$f":"AT1","v":0},null,"月",null,{"$f":"AX1","v":0},null,"日"]
[]
[null,"請　求　書（契約）",null,null,null,null,null,null,null,null,null,null,null,null,null,null,null,null,null,null,null,null,null,null,null,null,null,null,null,null,"※ 註",null,null,null,null,"第　　　号"]
[]
[null,null,null,null,null,null,null,null,null,null,null,null,null,null,null,null,null,null,null,null,null,null,null,null,null,null,null,null,null,null,"契 約 額"]
[null,"中 国 建 設 工 業 ㈱　 御 中"]
[null,null,null,null,null,null,null,null,null,null,null,null,null,null,null,null,null,null,null,null,null,null,null,null,null,null,null,null,null,null,"支払済額"]
[]
[null,"下記の通りご請求申し上げます。",null,null,null,null,null,null,null,null,null,null,null,null,null,null,null,null,null,null,null,null,null,null,null,null,null,null,null,null,"今回支払額"]
[]
[null,"税別金額",null,null,null,null,"金",null,null,{"$f":"J11","v":0},null,null,null,null,null,null,null,null,null,null,null,null,null,null,null,null,null,null,null,null,"差引残高"]
[]
[null,null,null,null,null,null,null,null,null,null,null,null,null,null,null,null,null,null,null,null,null,null,null,null,null,null,null,null,null,null,"立 替 分"]
[null,"消 費 税",null,null,null,null,"金",null,null,{"$f":"J14","v":0}]
[null,null,null,null,null,null,null,null,null,null,null,null,null,null,null,null,null,null,null,null,null,null,null,null,null,null,null,null,null,null,"支払合計"]
[]
[]
[null,"作業所及び担当者",null,null,null,null,null,null,"：",{"$f":"J18","v":0},null,null,null,null,null,null,null,null,null,null,null,null,null,null,null,null,null,null,null,null,"現場査定額"]
[]
[null,"※作業所コード",null,null,null,null,null,null,"：",{"$f":"J20","v":0},null,null,null,null,null,null,null,null,null,null,null,null,null,null,null,null,null,null,null,null,"上記の90％"]
[]
[]
[]
[null,"月",null,"日",null,"品　名",null,null,null,null,null,null,null,null,null,"契約金額",null,null,null,null,null,null,null,"累計出来高",null,null,null,null,null,null,null,"金　額",null,null,null,null,null,null,null,"非課税",null,null,null,"備　考"]
[]
[]
[null,{"$f":"B27","v":0},null,{"$f":"D27","v":0},null,{"$f":"F27","v":0},null,null,null,null,null,null,null,null,null,{"$f":"P27","v":0},null,null,null,null,null,null,null,{"$f":"X27","v":0},null,null,null,{"$f":"AB27","v":0},null,null,null,{"$f":"AF27","v":0},null,null,null,null,null,null,null,{"$f":"AN27","v":0},null,null,null,{"$f":"AR27","v":0},null,null,null,null,null,null,null,null,null,null,null,null,null,null,null,null,null,null,null,null,null,null,null,null,null,null,null,null,null,null,null,null,null,null,null,null,null,null,null,null,null,null,null,null,null,null,null,null,null,null,null,null,null,null,null,null,null,null,null,null,null,null,null,null,null,null,null,null,null,null,null,null,null,null,null,null,null,null,null,null,null,null,null,null,null,null,null,null,null,null,null,null,null,null,null,null,null,null,null,null,null,null,null,null,{"$f":"IF(AN129=\"※\",AF129,\"\")","v":""}]
[]
[]
[null,{"$f":"B30","v":0},null,{"$f":"D30","v":0},null,{"$f":"F30","v":0},null,null,null,null,null,null,null,null,null,{"$f":"P30","v":0},null,null,null,null,null,null,null,{"$f":"X30","v":0},null,null,null,{"$f":"AB30","v":0},null,null,null,{"$f":"AF30","v":0},null,null,null,null,null,null,null,{"$f":"AN30","v":0},null,null,null,{"$f":"AR30","v":0},null,null,null,null,null,null,null,null,null,null,null,null,null,null,null,null,null,null,null,null,null,null,null,null,null,null,null,null,null,null,null,null,null,null,null,null,null,null,null,null,null,null,null,null,null,null,null,null,null,null,null,null,null,null,null,null,null,null,null,null,null,null,null,null,null,null,null,null,null,null,null,null,null,null,null,null,null,null,null,null,null,null,null,null,null,null,null,null,null,null,null,null,null,null,null,null,null,null,null,null,null,null,null,null,{"$f":"IF(AN132=\"※\",AF132,\"\")","v":""}]
[]
[]
[null,{"$f":"B33","v":0},null,{"$f":"D33","v":0},null,{"$f":"F33","v":0},null,null,null,null,null,null,null,null,null,{"$f":"P33","v":0},null,null,null,null,null,null,null,{"$f":"X33","v":0},null,null,null,{"$f":"AB33","v":0},null,null,null,{"$f":"AF33","v":0},null,null,null,null,null,null,null,{"$f":"AN33","v":0},null,null,null,{"$f":"AR33","v":0},null,null,null,null,null,null,null,null,null,null,null,null,null,null,null,null,null,null,null,null,null,null,null,null,null,null,null,null,null,null,null,null,null,null,null,null,null,null,null,null,null,null,null,null,null,null,null,null,null,null,null,null,null,null,null,null,null,null,null,null,null,null,null,null,null,null,null,null,null,null,null,null,null,null,null,null,null,null,null,null,null,null,null,null,null,null,null,null,null,null,null,null,null,null,null,null,null,null,null,null,null,null,null,null,{"$f":"IF(AN135=\"※\",AF135,\"\")","v":""}]
[]
[]
[null,{"$f":"B36","v":0},null,{"$f":"D36","v":0},null,{"$f":"F36","v":0},null,null,null,null,null,null,null,null,null,{"$f":"P36","v":0},null,null,null,null,null,null,null,{"$f":"X36","v":0},null,null,null,{"$f":"AB36","v":0},null,null,null,{"$f":"AF36","v":0},null,null,null,null,null,null,null,{"$f":"AN36","v":0},null,null,null,{"$f":"AR36","v":0},null,null,null,null,null,null,null,null,null,null,null,null,null,null,null,null,null,null,null,null,null,null,null,null,null,null,null,null,null,null,null,null,null,null,null,null,null,null,null,null,null,null,null,null,null,null,null,null,null,null,null,null,null,null,null,null,null,null,null,null,null,null,null,null,null,null,null,null,null,null,null,null,null,null,null,null,null,null,null,null,null,null,null,null,null,null,null,null,null,null,null,null,null,null,null,null,null,null,null,null,null,null,null,null,{"$f":"IF(AN138=\"※\",AF138,\"\")","v":""}]
[]
[]
[null,{"$f":"B39","v":0},null,{"$f":"D39","v":0},null,{"$f":"F39","v":0},null,null,null,null,null,null,null,null,null,{"$f":"P39","v":0},null,null,null,null,null,null,null,{"$f":"X39","v":0},null,null,null,{"$f":"AB39","v":0},null,null,null,{"$f":"AF39","v":0},null,null,null,null,null,null,null,{"$f":"AN39","v":0},null,null,null,{"$f":"AR39","v":0},null,null,null,null,null,null,null,null,null,null,null,null,null,null,null,null,null,null,null,null,null,null,null,null,null,null,null,null,null,null,null,null,null,null,null,null,null,null,null,null,null,null,null,null,null,null,null,null,null,null,null,null,null,null,null,null,null,null,null,null,null,null,null,null,null,null,null,null,null,null,null,null,null,null,null,null,null,null,null,null,null,null,null,null,null,null,null,null,null,null,null,null,null,null,null,null,null,null,null,null,null,null,null,null,{"$f":"IF(AN141=\"※\",AF141,\"\")","v":""}]
[]
[]
[null,{"$f":"B42","v":0},null,{"$f":"D42","v":0},null,{"$f":"F42","v":0},null,null,null,null,null,null,null,null,null,{"$f":"P42","v":0},null,null,null,null,null,null,null,{"$f":"X42","v":0},null,null,null,{"$f":"AB42","v":0},null,null,null,{"$f":"AF42","v":0},null,null,null,null,null,null,null,{"$f":"AN42","v":0},null,null,null,{"$f":"AR42","v":0},null,null,null,null,null,null,null,null,null,null,null,null,null,null,null,null,null,null,null,null,null,null,null,null,null,null,null,null,null,null,null,null,null,null,null,null,null,null,null,null,null,null,null,null,null,null,null,null,null,null,null,null,null,null,null,null,null,null,null,null,null,null,null,null,null,null,null,null,null,null,null,null,null,null,null,null,null,null,null,null,null,null,null,null,null,null,null,null,null,null,null,null,null,null,null,null,null,null,null,null,null,null,null,null,{"$f":"IF(AN144=\"※\",AF144,\"\")","v":""}]
[]
[]
[null,{"$f":"B45","v":0},null,{"$f":"D45","v":0},null,{"$f":"F45","v":0},null,null,null,null,null,null,null,null,null,{"$f":"P45","v":0},null,null,null,null,null,null,null,{"$f":"X45","v":0},null,null,null,{"$f":"AB45","v":0},null,null,null,{"$f":"AF45","v":0},null,null,null,null,null,null,null,{"$f":"AN45","v":0},null,null,null,{"$f":"AR45","v":0},null,null,null,null,null,null,null,null,null,null,null,null,null,null,null,null,null,null,null,null,null,null,null,null,null,null,null,null,null,null,null,null,null,null,null,null,null,null,null,null,null,null,null,null,null,null,null,null,null,null,null,null,null,null,null,null,null,null,null,null,null,null,null,null,null,null,null,null,null,null,null,null,null,null,null,null,null,null,null,null,null,null,null,null,null,null,null,null,null,null,null,null,null,null,null,null,null,null,null,null,null,null,null,null,{"$f":"IF(AN147=\"※\",AF147,\"\")","v":""}]
[]
[]
[null,{"$f":"B48","v":0},null,{"$f":"D48","v":0},null,{"$f":"F48","v":0},null,null,null,null,null,null,null,null,null,{"$f":"P48","v":0},null,null,null,null,null,null,null,{"$f":"X48","v":0},null,null,null,{"$f":"AB48","v":0},null,null,null,{"$f":"AF48","v":0},null,null,null,null,null,null,null,{"$f":"AN48","v":0},null,null,null,{"$f":"AR48","v":0},null,null,null,null,null,null,null,null,null,null,null,null,null,null,null,null,null,null,null,null,null,null,null,null,null,null,null,null,null,null,null,null,null,null,null,null,null,null,null,null,null,null,null,null,null,null,null,null,null,null,null,null,null,null,null,null,null,null,null,null,null,null,null,null,null,null,null,null,null,null,null,null,null,null,null,null,null,null,null,null,null,null,null,null,null,null,null,null,null,null,null,null,null,null,null,null,null,null,null,null,null,null,null,null,{"$f":"IF(AN150=\"※\",AF150,\"\")","v":""}]
[]
[]
[null,{"$f":"B51","v":0},null,{"$f":"D51","v":0},null,{"$f":"F51","v":0},null,null,null,null,null,null,null,null,null,{"$f":"P51","v":0},null,null,null,null,null,null,null,{"$f":"X51","v":0},null,null,null,{"$f":"AB51","v":0},null,null,null,{"$f":"AF51","v":0},null,null,null,null,null,null,null,{"$f":"AN51","v":0},null,null,null,{"$f":"AR51","v":0},null,null,null,null,null,null,null,null,null,null,null,null,null,null,null,null,null,null,null,null,null,null,null,null,null,null,null,null,null,null,null,null,null,null,null,null,null,null,null,null,null,null,null,null,null,null,null,null,null,null,null,null,null,null,null,null,null,null,null,null,null,null,null,null,null,null,null,null,null,null,null,null,null,null,null,null,null,null,null,null,null,null,null,null,null,null,null,null,null,null,null,null,null,null,null,null,null,null,null,null,null,null,null,null,{"$f":"IF(AN153=\"※\",AF153,\"\")","v":""}]
[]
[]
[null,{"$f":"B54","v":0},null,{"$f":"D54","v":0},null,{"$f":"F54","v":0},null,null,null,null,null,null,null,null,null,{"$f":"P54","v":0},null,null,null,null,null,null,null,{"$f":"X54","v":0},null,null,null,{"$f":"AB54","v":0},null,null,null,{"$f":"AF54","v":0},null,null,null,null,null,null,null,{"$f":"AN54","v":0},null,null,null,{"$f":"AR54","v":0},null,null,null,null,null,null,null,null,null,null,null,null,null,null,null,null,null,null,null,null,null,null,null,null,null,null,null,null,null,null,null,null,null,null,null,null,null,null,null,null,null,null,null,null,null,null,null,null,null,null,null,null,null,null,null,null,null,null,null,null,null,null,null,null,null,null,null,null,null,null,null,null,null,null,null,null,null,null,null,null,null,null,null,null,null,null,null,null,null,null,null,null,null,null,null,null,null,null,null,null,null,null,null,null,{"$f":"IF(AN156=\"※\",AF156,\"\")","v":""}]
[]
[]
[null,{"$f":"B57","v":0},null,{"$f":"D57","v":0},null,{"$f":"F57","v":0},null,null,null,null,null,null,null,null,null,{"$f":"P57","v":0},null,null,null,null,null,null,null,{"$f":"X57","v":0},null,null,null,{"$f":"AB57","v":0},null,null,null,{"$f":"AF57","v":0},null,null,null,null,null,null,null,{"$f":"AN57","v":0},null,null,null,{"$f":"AR57","v":0},null,null,null,null,null,null,null,null,null,null,null,null,null,null,null,null,null,null,null,null,null,null,null,null,null,null,null,null,null,null,null,null,null,null,null,null,null,null,null,null,null,null,null,null,null,null,null,null,null,null,null,null,null,null,null,null,null,null,null,null,null,null,null,null,null,null,null,null,null,null,null,null,null,null,null,null,null,null,null,null,null,null,null,null,null,null,null,null,null,null,null,null,null,null,null,null,null,null,null,null,null,null,null,null,{"$f":"IF(AN159=\"※\",AF159,\"\")","v":""}]
[]
[]
[null,{"$f":"B60","v":0},null,{"$f":"D60","v":0},null,{"$f":"F60","v":0},null,null,null,null,null,null,null,null,null,{"$f":"P60","v":0},null,null,null,null,null,null,null,{"$f":"X60","v":0},null,null,null,{"$f":"AB60","v":0},null,null,null,{"$f":"AF60","v":0},null,null,null,null,null,null,null,{"$f":"AN60","v":0},null,null,null,{"$f":"AR60","v":0},null,null,null,null,null,null,null,null,null,null,null,null,null,null,null,null,null,null,null,null,null,null,null,null,null,null,null,null,null,null,null,null,null,null,null,null,null,null,null,null,null,null,null,null,null,null,null,null,null,null,null,null,null,null,null,null,null,null,null,null,null,null,null,null,null,null,null,null,null,null,null,null,null,null,null,null,null,null,null,null,null,null,null,null,null,null,null,null,null,null,null,null,null,null,null,null,null,null,null,null,null,null,null,null,{"$f":"IF(AN162=\"※\",AF162,\"\")","v":""}]
[]
[]
[null,{"$f":"B63","v":0},null,{"$f":"D63","v":0},null,{"$f":"F63","v":0},null,null,null,null,null,null,null,null,null,{"$f":"P63","v":0},null,null,null,null,null,null,null,{"$f":"X63","v":0},null,null,null,{"$f":"AB63","v":0},null,null,null,{"$f":"AF63","v":0},null,null,null,null,null,null,null,{"$f":"AN63","v":0},null,null,null,{"$f":"AR63","v":0},null,null,null,null,null,null,null,null,null,null,null,null,null,null,null,null,null,null,null,null,null,null,null,null,null,null,null,null,null,null,null,null,null,null,null,null,null,null,null,null,null,null,null,null,null,null,null,null,null,null,null,null,null,null,null,null,null,null,null,null,null,null,null,null,null,null,null,null,null,null,null,null,null,null,null,null,null,null,null,null,null,null,null,null,null,null,null,null,null,null,null,null,null,null,null,null,null,null,null,null,null,null,null,null,{"$f":"IF(AN165=\"※\",AF165,\"\")","v":""}]
[]
[]
[null,null,null,null,null,"　　　　　　　①小　計",null,null,null,null,null,null,null,null,null,null,null,null,null,null,null,null,null,null,null,null,null,null,null,null,null,{"$f":"AF66","v":0},null,null,null,null,null,null,null,null,null,null,null,null,null,null,null,null,null,null,null,null,null,null,null,null,null,null,null,null,null,null,null,null,null,null,null,null,null,null,null,null,null,null,null,null,null,null,null,null,null,null,null,null,null,null,null,null,null,null,null,null,null,null,null,null,null,null,null,null,null,null,null,null,null,null,null,null,null,null,null,null,null,null,null,null,null,null,null,null,null,null,null,null,null,null,null,null,null,null,null,null,null,null,null,null,null,null,null,null,null,null,null,null,null,null,null,null,{"$f":"IF(AN168=\"※\",AF168,\"\")","v":""}]
[]
[]
[null,null,null,null,null,"　　　　　　　②前回迄累計 領収済額(税別)",null,null,null,null,null,null,null,null,null,null,null,null,null,null,null,null,null,null,null,null,null,null,null,null,null,{"$f":"AF69","v":0},null,null,null,null,null,null,null,null,null,null,null,null,null,null,null,null,null,null,null,null,null,null,null,null,null,null,null,null,null,null,null,null,null,null,null,null,null,null,null,null,null,null,null,null,null,null,null,null,null,null,null,null,null,null,null,null,null,null,null,null,null,null,null,null,null,null,null,null,null,null,null,null,null,null,null,null,null,null,null,null,null,null,null,null,null,null,null,null,null,null,null,null,null,null,null,null,null,null,null,null,null,null,null,null,null,null,null,null,null,null,null,null,null,null,null,null,{"$f":"IF(AN171=\"※\",AF171,\"\")","v":""}]
[]
[]
[null,null,null,null,null,"　　　　　 ①-②今回請求額 小計(10％対象 税別)",null,null,null,null,null,null,null,null,null,null,null,null,null,null,null,null,null,null,null,null,null,null,null,null,null,{"$f":"AF72","v":0}]
[]
[]
[null,null,null,null,null,"　　　　　　　　消費税(10％対象)",null,null,null,null,null,null,null,null,null,null,null,null,null,null,null,null,null,null,null,null,null,null,null,null,null,{"$f":"AF75","v":0}]
[]
[]
[null,null,null,null,null,"　　　　　　　　小　計(非課税)",null,null,null,null,null,null,null,null,null,null,null,null,null,null,null,null,null,null,null,null,null,null,null,null,null,{"$f":"AF78","v":0},null,null,null,null,null,null,null,null,null,null,null,null,null,null,null,null,null,null,null,null,null,null,null,null,null,null,null,null,null,null,null,null,null,null,null,null,null,null,null,null,null,null,null,null,null,null,null,null,null,null,null,null,null,null,null,null,null,null,null,null,null,null,null,null,null,null,null,null,null,null,null,null,null,null,null,null,null,null,null,null,null,null,null,null,null,null,null,null,null,null,null,null,null,null,null,null,null,null,null,null,null,null,null,null,null,null,null,null,null,null,null,null,null,null,null,null,{"$f":"SUM(ES129:EZ173)","v":0}]
[]
[]
[]
[null,null,null,null,null,null,null,null,null,"(註)",null,null,null,null,null,null,null,null,null,null,null,null,null,null,null,null,null,null,null,null,null,"住　所"]
[]
[null,null,null,null,null,null,null,null,null," 1．請求者は※印欄に記入しないこと。",null,null,null,null,null,null,null,null,null,null,null,null,null,null,null,null,null,null,null,null,null,"請求者",null,null,null,{"$f":"請求基本情報!K23","v":0}]
[null,"受付年月日",null,null,null,null,null,null,null," 2．各作業所毎に請求書を作成すること。"]
[null,null,null,null,null,null,null,null,null," 3．請求書は毎月15日締切18日本社必着のこと。",null,null,null,null,null,null,null,null,null,null,null,null,null,null,null,null,null,null,null,null,null,null,null,null,null,{"$f":"請求基本情報!K12","v":0}]
[]
[null,null,null,null,null,null,null,null,null,"取引",null,null,{"$f":"請求基本情報!M32","v":0},null,null,null,null,null,null,null,null,{"$f":"請求基本情報!Y32","v":0},null,null,null,null,null,null,null,null,null,null,null,null,null,{"$f":"請求基本情報!O16","v":0},null,null,null,null,null,null,null,{"$f":"請求基本情報!AK16","v":0}]
[null,null,null,null,null,null,null,null,null,"銀行"]
[null,null,null,null,null,null,null,null,null,"　   普通",null,null,null,"　   当座",null,null,null,"口座番号：",null,null,null,null,{"$f":"請求基本情報!AT32","v":0},null,null,null,null,null,null,null,null,null,null,null,null,"TEL",null,{"$f":"請求基本情報!O27","v":0},null,null,null,null,null,null,"FAX",null,{"$f":"請求基本情報!AK27","v":0}]
[]
[null,null,null,null,null,null,null,null,null,"口座\n名義",null,null,{"$f":"請求基本情報!R36","v":0},null,null,null,null,null,null,null,null,null,null,null,null,null,null,null,null,null,null,"登録番号　：",null,null,null,null,{"$f":"請求基本情報!K30","v":0}]
[]
[null,null,null,null,null,null,null,null,null,null,null,null,{"$f":"請求基本情報!R38","v":0},null,null,null,null,null,null,null,null,null,null,null,null,null,null,null,null,null,null,"業者コード：",null,null,null,null,{"$f":"請求基本情報!K31","v":0}]
[]
[]
[null,"役　員",null,null,null,null,null,null,null,null,null,null,null,null,null,null,null,null,null,null,null,"担　当　部　長",null,null,null,null,null,null,null,null,null,null,null,null,null,null,null,null,null,null,null,"作　業　所"]

{"sheet":"契約外_記入例","index":7,"n_rows":97,"n_cols":149,"rows_kept":97,"cut":false,"hidden":false,"merged":[[96,1,97,20],[96,21,97,40],[96,41,97,52],[98,1,101,20],[98,21,101,40],[98,41,101,52],[84,1,85,8],[85,35,86,52],[86,1,94,8],[87,35,88,42],[87,43,88,52],[89,31,90,34],[89,35,90,36],[89,37,90,43],[89,44,90,45],[89,46,90,52],[91,9,94,11],[91,12,92,29],[93,12,94,29],[93,31,94,35],[93,36,94,52],[88,9,88,11],[87,21,88,29],[87,12,88,20],[87,9,87,11],[83,35,84,52],[81,9,82,12],[91,36,92,52],[91,31,92,35],[89,22,90,29],[89,17,90,21],[89,13,90,16],[89,9,90,12],[81,31,82,33],[83,31,84,33],[68,45,70,52],[68,148,70,155],[71,1,73,4],[71,5,73,31],[71,32,73,40],[71,41,79,52],[74,1,76,4],[74,5,76,31],[74,32,76,40],[74,148,76,155],[68,1,70,2],[68,3,70,4],[68,5,70,18],[68,19,70,21],[68,22,70,24],[68,25,70,31],[68,32,70,40],[68,41,70,44],[77,1,79,4],[77,5,79,31],[77,32,79,40],[62,148,64,155],[65,1,67,2],[65,3,67,4],[65,5,67,18],[65,19,67,21],[65,22,67,24],[65,25,67,31],[65,32,67,40],[65,41,67,44],[65,45,67,52],[65,148,67,155],[62,1,64,2],[62,3,64,4],[62,5,64,18],[62,19,64,21],[62,22,64,24],[62,25,64,31],[62,32,64,40],[62,41,64,44],[62,45,64,52],[56,148,58,155],[59,1,61,2],[59,3,61,4],[59,5,61,18],[59,19,61,21],[59,22,61,24],[59,25,61,31],[59,32,61,40],[59,41,61,44],[59,45,61,52],[59,148,61,155],[56,1,58,2],[56,3,58,4],[56,5,58,18],[56,19,58,21],[56,22,58,24],[56,25,58,31],[56,32,58,40],[56,41,58,44],[56,45,58,52],[50,148,52,155],[53,1,55,2],[53,3,55,4],[53,5,55,18],[53,19,55,21],[53,22,55,24],[53,25,55,31],[53,32,55,40],[53,41,55,44],[53,45,55,52],[53,148,55,155],[50,1,52,2],[50,3,52,4],[50,5,52,18],[50,19,52,21],[50,22,52,24],[50,25,52,31],[50,32,52,40],[50,41,52,44],[50,45,52,52],[44,148,46,155],[47,1,49,2],[47,3,49,4],[47,5,49,18],[47,19,49,21],[47,22,49,24],[47,25,49,31],[47,32,49,40],[47,41,49,44],[47,45,49,52],[47,148,49,155],[44,1,46,2],[44,3,46,4],[44,5,46,18],[44,19,46,21],[44,22,46,24],[44,25,46,31],[44,32,46,40],[44,41,46,44],[44,45,46,52],[38,148,40,155],[41,1,43,2],[41,3,43,4],[41,5,43,18],[41,19,43,21],[41,22,43,24],[41,25,43,31],[41,32,43,40],[41,41,43,44],[41,45,43,52],[41,148,43,155],[38,1,40,2],[38,3,40,4],[38,5,40,18],[38,19,40,21],[38,22,40,24],[38,25,40,31],[38,32,40,40],[38,41,40,44],[38,45,40,52],[32,148,34,155],[35,1,37,2],[35,3,37,4],[35,5,37,18],[35,19,37,21],[35,22,37,24],[35,25,37,31],[35,32,37,40],[35,41,37,44],[35,45,37,52],[35,148,37,155],[32,1,34,2],[32,3,34,4],[32,5,34,18],[32,19,34,21],[32,22,34,24],[32,25,34,31],[32,32,34,40],[32,41,34,44],[32,45,34,52],[23,41,25,44],[23,45,25,52],[26,148,28,155],[29,1,31,2],[29,3,31,4],[29,5,31,18],[29,19,31,21],[29,22,31,24],[29,25,31,31],[29,32,31,40],[29,41,31,44],[29,45,31,52],[29,148,31,155],[26,1,28,2],[26,3,28,4],[26,5,28,18],[26,19,28,21],[26,22,28,24],[26,25,28,31],[26,32,28,40],[26,41,28,44],[26,45,28,52],[20,1,21,7],[20,8,21,27],[23,1,25,2],[23,3,25,4],[23,5,25,18],[23,19,25,21],[23,22,25,24],[23,25,25,31],[23,32,25,40],[1,1,2,27],[1,35,2,52],[3,1,5,27],[3,35,4,42],[3,43,4,44],[3,45,4,46],[3,47,4,48],[3,49,4,50],[3,51,4,52],[5,30,7,32],[6,1,8,27],[8,29,8,52],[9,1,10,27],[9,29,9,52],[10,29,10,52],[12,29,12,52],[13,29,13,52],[17,1,18,8],[17,9,18,27],[14,29,14,52],[15,29,15,52],[12,1,14,5],[12,6,14,8],[12,9,14,27],[11,29,11,52],[16,29,16,52]]}
[]
[null,"【業 者 控】",null,null,null,null,null,null,null,null,null,null,null,null,null,null,null,null,null,null,null,null,null,null,null,null,null,null,null,null,null,null,null,null,null," No."]
[]
[null,"請　求　書（契約外）",null,null,null,null,null,null,null,null,null,null,null,null,null,null,null,null,null,null,null,null,null,null,null,null,null,null,null,null,null,null,null,null,null,2023,null,null,null,null,null,null,null,"年",null,8,null,"月",null,15,null,"日"]
[]
[null,null,null,null,null,null,null,null,null,null,null,null,null,null,null,null,null,null,null,null,null,null,null,null,null,null,null,null,null,null,"(註)"]
[null,"中 国 建 設 工 業 ㈱　 御 中"]
[]
[null,null,null,null,null,null,null,null,null,null,null,null,null,null,null,null,null,null,null,null,null,null,null,null,null,null,null,null,null," ※請求者は太枠のみ記入すること。"]
[null," 下記の通りご請求申し上げます。",null,null,null,null,null,null,null,null,null,null,null,null,null,null,null,null,null,null,null,null,null,null,null,null,null,null,null," ※各作業所毎に請求書を作成すること。"]
[null,null,null,null,null,null,null,null,null,null,null,null,null,null,null,null,null,null,null,null,null,null,null,null,null,null,null,null,null," ※請求書は毎月15日締切18日本社必着のこと。"]
[null,null,null,null,null,null,null,null,null,null,null,null,null,null,null,null,null,null,null,null,null,null,null,null,null,null,null,null,null," ※請求内訳には消費税額を除いた金額を入力して下さい。"]
[null,"税別金額",null,null,null,null,"金",null,null,{"$f":"AG72+AG78","v":510000},null,null,null,null,null,null,null,null,null,null,null,null,null,null,null,null,null,null,null," ※提出期日を経過したものは当該月の支払対象になりません｡"]
[null,null,null,null,null,null,null,null,null,null,null,null,null,null,null,null,null,null,null,null,null,null,null,null,null,null,null,null,null," ※請求書､請求書明細については総務課にお問い合わせ下さい｡"]
[null,null,null,null,null,null,null,null,null,null,null,null,null,null,null,null,null,null,null,null,null,null,null,null,null,null,null,null,null," ※直接工事に係る材料費､労務費､外注費等の請求については､"]
[null,null,null,null,null,null,null,null,null,null,null,null,null,null,null,null,null,null,null,null,null,null,null,null,null,null,null,null,null,"　 安全衛生協議会費としまして､共栄会会員 2/1000､非会員"]
[null,null,null,null,null,null,null,null,null,null,null,null,null,null,null,null,null,null,null,null,null,null,null,null,null,null,null,null,null,"　 3/1000を支払金額より徴収させて頂きます。"]
[null,"作業所及び担当者：",null,null,null,null,null,null,null,"〇〇〇〇〇新築工事　〇〇所長"]
[]
[]
[null,"※作業所コード："]
[]
[]
[null,"月",null,"日",null,"品　名",null,null,null,null,null,null,null,null,null,null,null,null,null,"数量",null,null,"単位",null,null,"単　価",null,null,null,null,null,null,"金　額",null,null,null,null,null,null,null,null,"非課税",null,null,null,"備　考"]
[]
[]
[null,12,null,2,null,"お茶代",null,null,null,null,null,null,null,null,null,null,null,null,null,30,null,null,"本",null,null,200,null,null,null,null,null,null,{"$f":"T27*Z27","v":6000},null,null,null,null,null,null,null,null,null,null,null,null,null,null,null,null,null,null,null,null,null,null,null,null,null,null,null,null,null,null,null,null,null,null,null,null,null,null,null,null,null,null,null,null,null,null,null,null,null,null,null,null,null,null,null,null,null,null,null,null,null,null,null,null,null,null,null,null,null,null,null,null,null,null,null,null,null,null,null,null,null,null,null,null,null,null,null,null,null,null,null,null,null,null,null,null,null,null,null,null,null,null,null,null,null,null,null,null,null,null,null,null,null,null,null,{"$f":"IF(AP27=\"※\",AG27,\"\")","v":""}]
[]
[]
[null,null,null,null,null,null,null,null,null,null,null,null,null,null,null,null,null,null,null,null,null,null,null,null,null,null,null,null,null,null,null,null,{"$f":"T30*Z30","v":0},null,null,null,null,null,null,null,null,null,null,null,null,null,null,null,null,null,null,null,null,null,null,null,null,null,null,null,null,null,null,null,null,null,null,null,null,null,null,null,null,null,null,null,null,null,null,null,null,null,null,null,null,null,null,null,null,null,null,null,null,null,null,null,null,null,null,null,null,null,null,null,null,null,null,null,null,null,null,null,null,null,null,null,null,null,null,null,null,null,null,null,null,null,null,null,null,null,null,null,null,null,null,null,null,null,null,null,null,null,null,null,null,null,null,null,{"$f":"IF(AP30=\"※\",AG30,\"\")","v":""}]
[]
[]
[null,12,null,2,null,"産廃税",null,null,null,null,null,null,null,null,null,null,null,null,null,1,null,null,"式",null,null,4000,null,null,null,null,null,null,{"$f":"T33*Z33","v":4000},null,null,null,null,null,null,null,null,"※",null,null,null,null,null,null,null,null,null,null,null,null,null,null,null,null,null,null,null,null,null,null,null,null,null,null,null,null,null,null,null,null,null,null,null,null,null,null,null,null,null,null,null,null,null,null,null,null,null,null,null,null,null,null,null,null,null,null,null,null,null,null,null,null,null,null,null,null,null,null,null,null,null,null,null,null,null,null,null,null,null,null,null,null,null,null,null,null,null,null,null,null,null,null,null,null,null,null,null,null,null,null,null,null,null,null,{"$f":"IF(AP33=\"※\",AG33,\"\")","v":4000}]
[]
[]
[null,null,null,null,null,null,null,null,null,null,null,null,null,null,null,null,null,null,null,null,null,null,null,null,null,null,null,null,null,null,null,null,{"$f":"T36*Z36","v":0},null,null,null,null,null,null,null,null,null,null,null,null,null,null,null,null,null,null,null,null,null,null,null,null,null,null,null,null,null,null,null,null,null,null,null,null,null,null,null,null,null,null,null,null,null,null,null,null,null,null,null,null,null,null,null,null,null,null,null,null,null,null,null,null,null,null,null,null,null,null,null,null,null,null,null,null,null,null,null,null,null,null,null,null,null,null,null,null,null,null,null,null,null,null,null,null,null,null,null,null,null,null,null,null,null,null,null,null,null,null,null,null,null,null,null,{"$f":"IF(AP36=\"※\",AG36,\"\")","v":""}]
[]
[]
[null,12,null,2,null,"協定給与",null,null,null,null,null,null,null,null,null,null,null,null,null,1,null,null,"式",null,null,500000,null,null,null,null,null,null,{"$f":"T39*Z39","v":500000},null,null,null,null,null,null,null,null,"※",null,null,null,null,null,null,null,null,null,null,null,null,null,null,null,null,null,null,null,null,null,null,null,null,null,null,null,null,null,null,null,null,null,null,null,null,null,null,null,null,null,null,null,null,null,null,null,null,null,null,null,null,null,null,null,null,null,null,null,null,null,null,null,null,null,null,null,null,null,null,null,null,null,null,null,null,null,null,null,null,null,null,null,null,null,null,null,null,null,null,null,null,null,null,null,null,null,null,null,null,null,null,null,null,null,null,{"$f":"IF(AP39=\"※\",AG39,\"\")","v":500000}]
[]
[]
[null,null,null,null,null,null,null,null,null,null,null,null,null,null,null,null,null,null,null,null,null,null,null,null,null,null,null,null,null,null,null,null,{"$f":"T42*Z42","v":0},null,null,null,null,null,null,null,null,null,null,null,null,null,null,null,null,null,null,null,null,null,null,null,null,null,null,null,null,null,null,null,null,null,null,null,null,null,null,null,null,null,null,null,null,null,null,null,null,null,null,null,null,null,null,null,null,null,null,null,null,null,null,null,null,null,null,null,null,null,null,null,null,null,null,null,null,null,null,null,null,null,null,null,null,null,null,null,null,null,null,null,null,null,null,null,null,null,null,null,null,null,null,null,null,null,null,null,null,null,null,null,null,null,null,null,{"$f":"IF(AP42=\"※\",AG42,\"\")","v":""}]
[]
[]
[null,null,null,null,null,null,null,null,null,null,null,null,null,null,null,null,null,null,null,null,null,null,null,null,null,null,null,null,null,null,null,null,{"$f":"T45*Z45","v":0},null,null,null,null,null,null,null,null,null,null,null,null,null,null,null,null,null,null,null,null,null,null,null,null,null,null,null,null,null,null,null,null,null,null,null,null,null,null,null,null,null,null,null,null,null,null,null,null,null,null,null,null,null,null,null,null,null,null,null,null,null,null,null,null,null,null,null,null,null,null,null,null,null,null,null,null,null,null,null,null,null,null,null,null,null,null,null,null,null,null,null,null,null,null,null,null,null,null,null,null,null,null,null,null,null,null,null,null,null,null,null,null,null,null,null,{"$f":"IF(AP45=\"※\",AG45,\"\")","v":""}]
[]
[]
[null,null,null,null,null,null,null,null,null,null,null,null,null,null,null,null,null,null,null,null,null,null,null,null,null,null,null,null,null,null,null,null,{"$f":"T48*Z48","v":0},null,null,null,null,null,null,null,null,null,null,null,null,null,null,null,null,null,null,null,null,null,null,null,null,null,null,null,null,null,null,null,null,null,null,null,null,null,null,null,null,null,null,null,null,null,null,null,null,null,null,null,null,null,null,null,null,null,null,null,null,null,null,null,null,null,null,null,null,null,null,null,null,null,null,null,null,null,null,null,null,null,null,null,null,null,null,null,null,null,null,null,null,null,null,null,null,null,null,null,null,null,null,null,null,null,null,null,null,null,null,null,null,null,null,null,{"$f":"IF(AP48=\"※\",AG48,\"\")","v":""}]
[]
[]
[null,null,null,null,null,null,null,null,null,null,null,null,null,null,null,null,null,null,null,null,null,null,null,null,null,null,null,null,null,null,null,null,{"$f":"T51*Z51","v":0},null,null,null,null,null,null,null,null,null,null,null,null,null,null,null,null,null,null,null,null,null,null,null,null,null,null,null,null,null,null,null,null,null,null,null,null,null,null,null,null,null,null,null,null,null,null,null,null,null,null,null,null,null,null,null,null,null,null,null,null,null,null,null,null,null,null,null,null,null,null,null,null,null,null,null,null,null,null,null,null,null,null,null,null,null,null,null,null,null,null,null,null,null,null,null,null,null,null,null,null,null,null,null,null,null,null,null,null,null,null,null,null,null,null,null,{"$f":"IF(AP51=\"※\",AG51,\"\")","v":""}]
[]
[]
[null,null,null,null,null,null,null,null,null,null,null,null,null,null,null,null,null,null,null,null,null,null,null,null,null,null,null,null,null,null,null,null,{"$f":"T54*Z54","v":0},null,null,null,null,null,null,null,null,null,null,null,null,null,null,null,null,null,null,null,null,null,null,null,null,null,null,null,null,null,null,null,null,null,null,null,null,null,null,null,null,null,null,null,null,null,null,null,null,null,null,null,null,null,null,null,null,null,null,null,null,null,null,null,null,null,null,null,null,null,null,null,null,null,null,null,null,null,null,null,null,null,null,null,null,null,null,null,null,null,null,null,null,null,null,null,null,null,null,null,null,null,null,null,null,null,null,null,null,null,null,null,null,null,null,null,{"$f":"IF(AP54=\"※\",AG54,\"\")","v":""}]
[]
[]
[null,null,null,null,null,null,null,null,null,null,null,null,null,null,null,null,null,null,null,null,null,null,null,null,null,null,null,null,null,null,null,null,{"$f":"T57*Z57","v":0},null,null,null,null,null,null,null,null,null,null,null,null,null,null,null,null,null,null,null,null,null,null,null,null,null,null,null,null,null,null,null,null,null,null,null,null,null,null,null,null,null,null,null,null,null,null,null,null,null,null,null,null,null,null,null,null,null,null,null,null,null,null,null,null,null,null,null,null,null,null,null,null,null,null,null,null,null,null,null,null,null,null,null,null,null,null,null,null,null,null,null,null,null,null,null,null,null,null,null,null,null,null,null,null,null,null,null,null,null,null,null,null,null,null,null,{"$f":"IF(AP57=\"※\",AG57,\"\")","v":""}]
[]
[]
[null,null,null,null,null,null,null,null,null,null,null,null,null,null,null,null,null,null,null,null,null,null,null,null,null,null,null,null,null,null,null,null,{"$f":"T60*Z60","v":0},null,null,null,null,null,null,null,null,null,null,null,null,null,null,null,null,null,null,null,null,null,null,null,null,null,null,null,null,null,null,null,null,null,null,null,null,null,null,null,null,null,null,null,null,null,null,null,null,null,null,null,null,null,null,null,null,null,null,null,null,null,null,null,null,null,null,null,null,null,null,null,null,null,null,null,null,null,null,null,null,null,null,null,null,null,null,null,null,null,null,null,null,null,null,null,null,null,null,null,null,null,null,null,null,null,null,null,null,null,null,null,null,null,null,null,{"$f":"IF(AP60=\"※\",AG60,\"\")","v":""}]
[]
[]
[null,null,null,null,null,null,null,null,null,null,null,null,null,null,null,null,null,null,null,null,null,null,null,null,null,null,null,null,null,null,null,null,{"$f":"T63*Z63","v":0},null,null,null,null,null,null,null,null,null,null,null,null,null,null,null,null,null,null,null,null,null,null,null,null,null,null,null,null,null,null,null,null,null,null,null,null,null,null,null,null,null,null,null,null,null,null,null,null,null,null,null,null,null,null,null,null,null,null,null,null,null,null,null,null,null,null,null,null,null,null,null,null,null,null,null,null,null,null,null,null,null,null,null,null,null,null,null,null,null,null,null,null,null,null,null,null,null,null,null,null,null,null,null,null,null,null,null,null,null,null,null,null,null,null,null,{"$f":"IF(AP63=\"※\",AG63,\"\")","v":""}]
[]
[]
[null,null,null,null,null,null,null,null,null,null,null,null,null,null,null,null,null,null,null,null,null,null,null,null,null,null,null,null,null,null,null,null,{"$f":"T66*Z66","v":0},null,null,null,null,null,null,null,null,null,null,null,null,null,null,null,null,null,null,null,null,null,null,null,null,null,null,null,null,null,null,null,null,null,null,null,null,null,null,null,null,null,null,null,null,null,null,null,null,null,null,null,null,null,null,null,null,null,null,null,null,null,null,null,null,null,null,null,null,null,null,null,null,null,null,null,null,null,null,null,null,null,null,null,null,null,null,null,null,null,null,null,null,null,null,null,null,null,null,null,null,null,null,null,null,null,null,null,null,null,null,null,null,null,null,null,{"$f":"IF(AP66=\"※\",AG66,\"\")","v":""}]
[]
[]
[null,null,null,null,null,null,null,null,null,null,null,null,null,null,null,null,null,null,null,null,null,null,null,null,null,null,null,null,null,null,null,null,null,null,null,null,null,null,null,null,null,null,null,null,null,null,null,null,null,null,null,null,null,null,null,null,null,null,null,null,null,null,null,null,null,null,null,null,null,null,null,null,null,null,null,null,null,null,null,null,null,null,null,null,null,null,null,null,null,null,null,null,null,null,null,null,null,null,null,null,null,null,null,null,null,null,null,null,null,null,null,null,null,null,null,null,null,null,null,null,null,null,null,null,null,null,null,null,null,null,null,null,null,null,null,null,null,null,null,null,null,null,null,null,null,null,null,null,{"$f":"IF(AP69=\"※\",AG69,\"\")","v":""}]
[]
[]
[null,null,null,null,null,"　　　　　　　　　　　　　小　計(8％対象税別)",null,null,null,null,null,null,null,null,null,null,null,null,null,null,null,null,null,null,null,null,null,null,null,null,null,null,{"$f":"SUM(AG27:AO71)-ES75","v":6000}]
[]
[]
[null,null,null,null,null,"　　　　　　　　　　　　　消費税(8％対象)",null,null,null,null,null,null,null,null,null,null,null,null,null,null,null,null,null,null,null,null,null,null,null,null,null,null,{"$f":"(SUM(AG27:AO71)-ES75)*1.08-AG72","v":480},null,null,null,null,null,null,null,null,null,null,null,null,null,null,null,null,null,null,null,null,null,null,null,null,null,null,null,null,null,null,null,null,null,null,null,null,null,null,null,null,null,null,null,null,null,null,null,null,null,null,null,null,null,null,null,null,null,null,null,null,null,null,null,null,null,null,null,null,null,null,null,null,null,null,null,null,null,null,null,null,null,null,null,null,null,null,null,null,null,null,null,null,null,null,null,null,null,null,null,null,null,null,null,null,null,null,null,null,null,null,null,null,null,null,null,{"$f":"SUM(ES27:EZ71)","v":504000}]
[]
[]
[null,null,null,null,null,"　　　　　　　　　　　　　小　計(非課税)",null,null,null,null,null,null,null,null,null,null,null,null,null,null,null,null,null,null,null,null,null,null,null,null,null,null,{"$f":"ES75","v":504000}]
[]
[]
[]
[null,null,null,null,null,null,null,null,null,"(註)",null,null,null,null,null,null,null,null,null,null,null,null,null,null,null,null,null,null,null,null,null,"住　所"]
[]
[null,null,null,null,null,null,null,null,null," 1．請求者は※印欄に記入しないこと。",null,null,null,null,null,null,null,null,null,null,null,null,null,null,null,null,null,null,null,null,null,"請求者",null,null,null,{"$f":"請求基本情報!K23","v":0}]
[null,"受付年月日",null,null,null,null,null,null,null," 2．各作業所毎に請求書を作成すること。"]
[null,null,null,null,null,null,null,null,null," 3．請求書は毎月15日締切18日本社必着のこと。",null,null,null,null,null,null,null,null,null,null,null,null,null,null,null,null,null,null,null,null,null,null,null,null,null,{"$f":"請求基本情報!K12","v":0}]
[]
[null,null,null,null,null,null,null,null,null,"取引",null,null,{"$f":"請求基本情報!M32","v":0},null,null,null,null,null,null,null,null,{"$f":"請求基本情報!Y32","v":0},null,null,null,null,null,null,null,null,null,null,null,null,null,{"$f":"請求基本情報!O16","v":0},null,null,null,null,null,null,null,{"$f":"請求基本情報!AK16","v":0}]
[null,null,null,null,null,null,null,null,null,"銀行"]
[null,null,null,null,null,null,null,null,null,"　   普通",null,null,null,"　   当座",null,null,null,"口座番号：",null,null,null,null,{"$f":"請求基本情報!AT32","v":0},null,null,null,null,null,null,null,null,null,null,null,null,"TEL",null,{"$f":"請求基本情報!O27","v":0},null,null,null,null,null,null,"FAX",null,{"$f":"請求基本情報!AK27","v":0}]
[]
[null,null,null,null,null,null,null,null,null,"口座\n名義",null,null,{"$f":"請求基本情報!R36","v":0},null,null,null,null,null,null,null,null,null,null,null,null,null,null,null,null,null,null,"登録番号　：",null,null,null,null,{"$f":"請求基本情報!K30","v":0}]
[]
[null,null,null,null,null,null,null,null,null,null,null,null,{"$f":"請求基本情報!R38","v":0},null,null,null,null,null,null,null,null,null,null,null,null,null,null,null,null,null,null,"業者コード：",null,null,null,null,{"$f":"請求基本情報!K31","v":0}]
[]
[]
[null,"役　員",null,null,null,null,null,null,null,null,null,null,null,null,null,null,null,null,null,null,null,"担　当　部　長",null,null,null,null,null,null,null,null,null,null,null,null,null,null,null,null,null,null,null,"作　業　所"]

{"sheet":"契約外(8%)","index":8,"n_rows":181,"n_cols":152,"rows_kept":181,"cut":false,"hidden":false,"merged":[[174,9,177,11],[174,12,175,29],[176,12,177,29],[164,31,165,33],[166,31,167,33],[71,9,72,10],[78,9,78,11],[79,9,80,12],[79,13,80,16],[79,17,80,21],[79,22,80,29],[81,31,82,35],[148,25,150,31],[148,32,150,40],[172,17,173,21],[172,22,173,29],[174,31,175,35],[174,36,175,52],[176,31,177,35],[176,36,177,52],[73,35,74,52],[93,1,94,27],[93,35,94,52],[95,1,97,27],[180,1,181,20],[180,21,181,40],[180,41,181,52],[182,1,185,20],[182,21,185,40],[182,41,185,52],[83,31,84,35],[83,36,84,52],[166,35,167,52],[167,1,168,8],[168,35,169,52],[169,1,177,8],[170,35,171,42],[170,43,171,52],[170,12,171,20],[164,9,165,11],[105,30,105,52],[106,30,106,52],[104,30,104,52],[118,1,120,2],[118,3,120,4],[118,19,120,21],[118,25,120,31],[118,32,120,40],[95,35,96,42],[95,43,96,44],[95,45,96,46],[95,47,96,48],[95,49,96,50],[95,51,96,52],[97,30,99,32],[98,1,100,27],[100,30,100,52],[75,35,76,52],[76,1,84,8],[77,35,78,42],[77,43,78,52],[77,12,78,20],[77,21,78,29],[79,31,80,34],[79,35,80,36],[79,37,80,43],[79,44,80,45],[79,46,80,52],[81,36,82,52],[77,9,77,11],[81,9,84,11],[81,12,82,29],[83,12,84,29],[74,1,75,8],[25,1,27,2],[25,3,27,4],[25,19,27,21],[25,25,27,31],[37,5,39,18],[40,5,42,18],[43,5,45,18],[46,5,48,18],[49,5,51,18],[34,1,36,2],[34,3,36,4],[31,1,33,2],[31,3,33,4],[31,25,33,31],[40,1,42,2],[40,3,42,4],[40,19,42,21],[40,25,42,31],[25,32,27,40],[7,29,7,52],[8,1,9,27],[8,29,8,52],[9,29,9,52],[0,1,1,27],[0,35,1,52],[2,1,4,27],[2,35,3,42],[2,43,3,44],[2,45,3,46],[2,47,3,48],[2,49,3,50],[2,51,3,52],[4,30,6,32],[5,1,7,27],[10,29,10,52],[15,29,15,52],[19,1,20,7],[19,8,20,27],[22,1,24,2],[22,3,24,4],[22,19,24,21],[22,25,24,31],[22,32,24,40],[22,41,24,44],[22,45,24,52],[22,5,24,18],[22,22,24,24],[11,29,11,52],[12,29,12,52],[16,1,17,8],[16,9,17,27],[13,29,13,52],[14,29,14,52],[11,1,13,5],[11,6,13,8],[11,9,13,27],[25,41,27,44],[25,45,27,52],[25,151,27,158],[25,5,27,18],[25,22,27,24],[28,5,30,18],[31,5,33,18],[34,5,36,18],[28,32,30,40],[28,22,30,24],[31,22,33,24],[34,22,36,24],[28,41,30,44],[28,45,30,52],[28,151,30,158],[31,41,33,44],[31,45,33,52],[31,151,33,158],[34,19,36,21],[34,25,36,31],[34,32,36,40],[34,41,36,44],[31,19,33,21],[31,32,33,40],[34,45,36,52],[34,151,36,158],[28,1,30,2],[28,3,30,4],[28,19,30,21],[28,25,30,31],[37,41,39,44],[37,45,39,52],[37,151,39,158],[40,32,42,40],[40,41,42,44],[40,45,42,52],[40,151,42,158],[37,1,39,2],[37,3,39,4],[37,19,39,21],[37,25,39,31],[37,32,39,40],[37,22,39,24],[40,22,42,24],[43,41,45,44],[43,45,45,52],[43,151,45,158],[46,1,48,2],[46,3,48,4],[46,19,48,21],[46,25,48,31],[46,32,48,40],[46,41,48,44],[43,1,45,2],[43,3,45,4],[43,19,45,21],[43,25,45,31],[43,32,45,40],[46,45,48,52],[46,151,48,158],[43,22,45,24],[46,22,48,24],[49,41,51,44],[49,45,51,52],[49,151,51,158],[52,1,54,2],[52,3,54,4],[52,19,54,21],[52,25,54,31],[52,32,54,40],[52,41,54,44],[52,45,54,52],[52,151,54,158],[52,22,54,24],[49,1,51,2],[49,3,51,4],[49,19,51,21],[49,25,51,31],[49,32,51,40],[52,5,54,18],[49,22,51,24],[55,41,57,44],[55,45,57,52],[55,151,57,158],[55,1,57,2],[55,3,57,4],[55,19,57,21],[55,25,57,31],[55,32,57,40],[55,22,57,24],[55,5,57,18],[58,41,60,44],[58,45,60,52],[58,151,60,158],[61,1,63,4],[61,5,63,31],[61,32,63,40],[61,41,69,52],[64,1,66,4],[64,5,66,31],[64,32,66,40],[58,1,60,2],[58,3,60,4],[58,19,60,21],[58,25,60,31],[58,32,60,40],[64,151,66,158],[67,1,69,4],[67,5,69,31],[67,32,69,40],[58,5,60,18],[58,22,60,24],[101,1,102,27],[101,30,101,52],[102,30,102,52],[103,30,103,52],[111,30,111,52],[112,1,113,7],[112,8,113,27],[115,1,117,2],[115,3,117,4],[115,19,117,21],[115,25,117,31],[115,32,117,40],[115,41,117,44],[115,45,117,52],[107,30,107,52],[108,30,108,52],[109,1,110,8],[109,9,110,27],[109,30,109,52],[110,30,110,52],[104,1,106,5],[104,6,106,8],[104,9,106,27],[118,41,120,44],[118,45,120,52],[115,5,117,18],[121,41,123,44],[121,45,123,52],[115,22,117,24],[118,22,120,24],[118,5,120,18],[124,1,126,2],[124,3,126,4],[124,19,126,21],[124,25,126,31],[124,32,126,40],[124,41,126,44],[124,45,126,52],[121,1,123,2],[121,3,123,4],[121,19,123,21],[121,25,123,31],[121,32,123,40],[121,22,123,24],[124,22,126,24],[121,5,123,18],[124,5,126,18],[127,41,129,44],[127,45,129,52],[130,1,132,2],[130,3,132,4],[130,19,132,21],[130,25,132,31],[130,32,132,40],[130,41,132,44],[130,45,132,52],[127,1,129,2],[127,3,129,4],[127,19,129,21],[127,25,129,31],[127,32,129,40],[127,22,129,24],[130,22,132,24],[127,5,129,18],[130,5,132,18],[133,41,135,44],[133,45,135,52],[136,1,138,2],[136,3,138,4],[136,19,138,21],[136,25,138,31],[136,32,138,40],[136,41,138,44],[136,45,138,52],[133,1,135,2],[133,3,135,4],[133,19,135,21],[133,25,135,31],[133,32,135,40],[133,22,135,24],[136,5,138,18],[133,5,135,18],[136,22,138,24],[139,41,141,44],[139,45,141,52],[142,1,144,2],[142,3,144,4],[142,19,144,21],[142,25,144,31],[142,32,144,40],[142,41,144,44],[142,45,144,52],[139,1,141,2],[139,3,141,4],[139,19,141,21],[139,25,141,31],[139,32,141,40],[139,5,141,18],[139,22,141,24],[142,22,144,24],[142,5,144,18],[172,13,173,16],[170,21,171,29],[172,31,173,34],[172,35,173,36],[148,41,150,44],[148,45,150,52],[170,9,170,11],[171,9,171,11],[148,19,150,21],[148,22,150,24],[148,5,150,18],[160,1,162,4],[160,5,162,31],[160,32,162,40],[172,37,173,43],[71,31,72,33],[73,31,74,33],[89,1,92,20],[89,21,92,40],[89,41,92,52],[87,1,88,20],[87,41,88,52],[87,21,88,40],[154,1,156,4],[154,5,156,31],[154,32,156,40],[154,41,162,52],[151,41,153,44],[151,45,153,52],[151,5,153,18],[151,22,153,24],[151,1,153,2],[172,44,173,45],[172,46,173,52],[172,9,173,12],[151,3,153,4],[151,19,153,21],[151,25,153,31],[151,32,153,40],[145,41,147,44],[145,45,147,52],[148,1,150,2],[157,1,159,4],[157,5,159,31],[157,32,159,40],[145,1,147,2],[145,3,147,4],[145,19,147,21],[145,25,147,31],[145,32,147,40],[145,22,147,24],[145,5,147,18],[148,3,150,4]]}
[null,"【業 者 控】",null,null,null,null,null,null,null,null,null,null,null,null,null,null,null,null,null,null,null,null,null,null,null,null,null,null,null,null,null,null,null,null,null," No."]
[]
[null,"請　求　書（契約外）",null,null,null,null,null,null,null,null,null,null,null,null,null,null,null,null,null,null,null,null,null,null,null,null,null,null,null,null,null,null,null,null,null,null,null,null,null,null,null,null,null,"年",null,null,null,"月",null,null,null,"日"]
[]
[null,null,null,null,null,null,null,null,null,null,null,null,null,null,null,null,null,null,null,null,null,null,null,null,null,null,null,null,null,null,"(註)"]
[null,"中 国 建 設 工 業 ㈱　 御 中"]
[]
[null,null,null,null,null,null,null,null,null,null,null,null,null,null,null,null,null,null,null,null,null,null,null,null,null,null,null,null,null," ※請求者は太枠のみ記入すること。"]
[null," 下記の通りご請求申し上げます。",null,null,null,null,null,null,null,null,null,null,null,null,null,null,null,null,null,null,null,null,null,null,null,null,null,null,null," ※各作業所毎に請求書を作成すること。"]
[null,null,null,null,null,null,null,null,null,null,null,null,null,null,null,null,null,null,null,null,null,null,null,null,null,null,null,null,null," ※請求書は毎月15日締切18日本社必着のこと。"]
[null,null,null,null,null,null,null,null,null,null,null,null,null,null,null,null,null,null,null,null,null,null,null,null,null,null,null,null,null," ※請求内訳には消費税額を除いた金額を入力して下さい。"]
[null,"税別金額",null,null,null,null,"金",null,null,{"$f":"AG62+AG68","v":0},null,null,null,null,null,null,null,null,null,null,null,null,null,null,null,null,null,null,null," ※提出期日を経過したものは当該月の支払対象になりません｡"]
[null,null,null,null,null,null,null,null,null,null,null,null,null,null,null,null,null,null,null,null,null,null,null,null,null,null,null,null,null," ※請求書､請求書明細については総務課にお問い合わせ下さい｡"]
[null,null,null,null,null,null,null,null,null,null,null,null,null,null,null,null,null,null,null,null,null,null,null,null,null,null,null,null,null," ※直接工事に係る材料費､労務費､外注費等の請求については､"]
[null,null,null,null,null,null,null,null,null,null,null,null,null,null,null,null,null,null,null,null,null,null,null,null,null,null,null,null,null,"　 安全衛生協議会費としまして､共栄会会員 2/1000､非会員"]
[null,null,null,null,null,null,null,null,null,null,null,null,null,null,null,null,null,null,null,null,null,null,null,null,null,null,null,null,null,"　 3/1000を支払金額より徴収させて頂きます。"]
[null,"作業所及び担当者："]
[]
[]
[null,"※作業所コード："]
[]
[]
[null,"月",null,"日",null,"品　名",null,null,null,null,null,null,null,null,null,null,null,null,null,"数量",null,null,"単位",null,null,"単　価",null,null,null,null,null,null,"金　額",null,null,null,null,null,null,null,null,"非課税",null,null,null,"備　考"]
[]
[]
[null,null,null,null,null,null,null,null,null,null,null,null,null,null,null,null,null,null,null,null,null,null,null,null,null,null,null,null,null,null,null,null,{"$f":"T26*Z26","v":0},null,null,null,null,null,null,null,null,null,null,null,null,null,null,null,null,null,null,null,null,null,null,null,null,null,null,null,null,null,null,null,null,null,null,null,null,null,null,null,null,null,null,null,null,null,null,null,null,null,null,null,null,null,null,null,null,null,null,null,null,null,null,null,null,null,null,null,null,null,null,null,null,null,null,null,null,null,null,null,null,null,null,null,null,null,null,null,null,null,null,null,null,null,null,null,null,null,null,null,null,null,null,null,null,null,null,null,null,null,null,null,null,null,null,null,null,null,null,{"$f":"IF(AP26=\"※\",AG26,\"\")","v":""}]
[]
[]
[null,null,null,null,null,null,null,null,null,null,null,null,null,null,null,null,null,null,null,null,null,null,null,null,null,null,null,null,null,null,null,null,{"$f":"T29*Z29","v":0},null,null,null,null,null,null,null,null,null,null,null,null,null,null,null,null,null,null,null,null,null,null,null,null,null,null,null,null,null,null,null,null,null,null,null,null,null,null,null,null,null,null,null,null,null,null,null,null,null,null,null,null,null,null,null,null,null,null,null,null,null,null,null,null,null,null,null,null,null,null,null,null,null,null,null,null,null,null,null,null,null,null,null,null,null,null,null,null,null,null,null,null,null,null,null,null,null,null,null,null,null,null,null,null,null,null,null,null,null,null,null,null,null,null,null,null,null,null,{"$f":"IF(AP29=\"※\",AG29,\"\")","v":""}]
[]
[]
[null,null,null,null,null,null,null,null,null,null,null,null,null,null,null,null,null,null,null,null,null,null,null,null,null,null,null,null,null,null,null,null,{"$f":"T32*Z32","v":0},null,null,null,null,null,null,null,null,null,null,null,null,null,null,null,null,null,null,null,null,null,null,null,null,null,null,null,null,null,null,null,null,null,null,null,null,null,null,null,null,null,null,null,null,null,null,null,null,null,null,null,null,null,null,null,null,null,null,null,null,null,null,null,null,null,null,null,null,null,null,null,null,null,null,null,null,null,null,null,null,null,null,null,null,null,null,null,null,null,null,null,null,null,null,null,null,null,null,null,null,null,null,null,null,null,null,null,null,null,null,null,null,null,null,null,null,null,null,{"$f":"IF(AP32=\"※\",AG32,\"\")","v":""}]
[]
[]
[null,null,null,null,null,null,null,null,null,null,null,null,null,null,null,null,null,null,null,null,null,null,null,null,null,null,null,null,null,null,null,null,{"$f":"T35*Z35","v":0},null,null,null,null,null,null,null,null,null,null,null,null,null,null,null,null,null,null,null,null,null,null,null,null,null,null,null,null,null,null,null,null,null,null,null,null,null,null,null,null,null,null,null,null,null,null,null,null,null,null,null,null,null,null,null,null,null,null,null,null,null,null,null,null,null,null,null,null,null,null,null,null,null,null,null,null,null,null,null,null,null,null,null,null,null,null,null,null,null,null,null,null,null,null,null,null,null,null,null,null,null,null,null,null,null,null,null,null,null,null,null,null,null,null,null,null,null,null,{"$f":"IF(AP35=\"※\",AG35,\"\")","v":""}]
[]
[]
[null,null,null,null,null,null,null,null,null,null,null,null,null,null,null,null,null,null,null,null,null,null,null,null,null,null,null,null,null,null,null,null,{"$f":"T38*Z38","v":0},null,null,null,null,null,null,null,null,null,null,null,null,null,null,null,null,null,null,null,null,null,null,null,null,null,null,null,null,null,null,null,null,null,null,null,null,null,null,null,null,null,null,null,null,null,null,null,null,null,null,null,null,null,null,null,null,null,null,null,null,null,null,null,null,null,null,null,null,null,null,null,null,null,null,null,null,null,null,null,null,null,null,null,null,null,null,null,null,null,null,null,null,null,null,null,null,null,null,null,null,null,null,null,null,null,null,null,null,null,null,null,null,null,null,null,null,null,null,{"$f":"IF(AP38=\"※\",AG38,\"\")","v":""}]
[]
[]
[null,null,null,null,null,null,null,null,null,null,null,null,null,null,null,null,null,null,null,null,null,null,null,null,null,null,null,null,null,null,null,null,{"$f":"T41*Z41","v":0},null,null,null,null,null,null,null,null,null,null,null,null,null,null,null,null,null,null,null,null,null,null,null,null,null,null,null,null,null,null,null,null,null,null,null,null,null,null,null,null,null,null,null,null,null,null,null,null,null,null,null,null,null,null,null,null,null,null,null,null,null,null,null,null,null,null,null,null,null,null,null,null,null,null,null,null,null,null,null,null,null,null,null,null,null,null,null,null,null,null,null,null,null,null,null,null,null,null,null,null,null,null,null,null,null,null,null,null,null,null,null,null,null,null,null,null,null,null,{"$f":"IF(AP41=\"※\",AG41,\"\")","v":""}]
[]
[]
[null,null,null,null,null,null,null,null,null,null,null,null,null,null,null,null,null,null,null,null,null,null,null,null,null,null,null,null,null,null,null,null,{"$f":"T44*Z44","v":0},null,null,null,null,null,null,null,null,null,null,null,null,null,null,null,null,null,null,null,null,null,null,null,null,null,null,null,null,null,null,null,null,null,null,null,null,null,null,null,null,null,null,null,null,null,null,null,null,null,null,null,null,null,null,null,null,null,null,null,null,null,null,null,null,null,null,null,null,null,null,null,null,null,null,null,null,null,null,null,null,null,null,null,null,null,null,null,null,null,null,null,null,null,null,null,null,null,null,null,null,null,null,null,null,null,null,null,null,null,null,null,null,null,null,null,null,null,null,{"$f":"IF(AP44=\"※\",AG44,\"\")","v":""}]
[]
[]
[null,null,null,null,null,null,null,null,null,null,null,null,null,null,null,null,null,null,null,null,null,null,null,null,null,null,null,null,null,null,null,null,{"$f":"T47*Z47","v":0},null,null,null,null,null,null,null,null,null,null,null,null,null,null,null,null,null,null,null,null,null,null,null,null,null,null,null,null,null,null,null,null,null,null,null,null,null,null,null,null,null,null,null,null,null,null,null,null,null,null,null,null,null,null,null,null,null,null,null,null,null,null,null,null,null,null,null,null,null,null,null,null,null,null,null,null,null,null,null,null,null,null,null,null,null,null,null,null,null,null,null,null,null,null,null,null,null,null,null,null,null,null,null,null,null,null,null,null,null,null,null,null,null,null,null,null,null,null,{"$f":"IF(AP47=\"※\",AG47,\"\")","v":""}]
[]
[]
[null,null,null,null,null,null,null,null,null,null,null,null,null,null,null,null,null,null,null,null,null,null,null,null,null,null,null,null,null,null,null,null,{"$f":"T50*Z50","v":0},null,null,null,null,null,null,null,null,null,null,null,null,null,null,null,null,null,null,null,null,null,null,null,null,null,null,null,null,null,null,null,null,null,null,null,null,null,null,null,null,null,null,null,null,null,null,null,null,null,null,null,null,null,null,null,null,null,null,null,null,null,null,null,null,null,null,null,null,null,null,null,null,null,null,null,null,null,null,null,null,null,null,null,null,null,null,null,null,null,null,null,null,null,null,null,null,null,null,null,null,null,null,null,null,null,null,null,null,null,null,null,null,null,null,null,null,null,null,{"$f":"IF(AP50=\"※\",AG50,\"\")","v":""}]
[]
[]
[null,null,null,null,null,null,null,null,null,null,null,null,null,null,null,null,null,null,null,null,null,null,null,null,null,null,null,null,null,null,null,null,{"$f":"T53*Z53","v":0},null,null,null,null,null,null,null,null,null,null,null,null,null,null,null,null,null,null,null,null,null,null,null,null,null,null,null,null,null,null,null,null,null,null,null,null,null,null,null,null,null,null,null,null,null,null,null,null,null,null,null,null,null,null,null,null,null,null,null,null,null,null,null,null,null,null,null,null,null,null,null,null,null,null,null,null,null,null,null,null,null,null,null,null,null,null,null,null,null,null,null,null,null,null,null,null,null,null,null,null,null,null,null,null,null,null,null,null,null,null,null,null,null,null,null,null,null,null,{"$f":"IF(AP53=\"※\",AG53,\"\")","v":""}]
[]
[]
[null,null,null,null,null,null,null,null,null,null,null,null,null,null,null,null,null,null,null,null,null,null,null,null,null,null,null,null,null,null,null,null,{"$f":"T56*Z56","v":0},null,null,null,null,null,null,null,null,null,null,null,null,null,null,null,null,null,null,null,null,null,null,null,null,null,null,null,null,null,null,null,null,null,null,null,null,null,null,null,null,null,null,null,null,null,null,null,null,null,null,null,null,null,null,null,null,null,null,null,null,null,null,null,null,null,null,null,null,null,null,null,null,null,null,null,null,null,null,null,null,null,null,null,null,null,null,null,null,null,null,null,null,null,null,null,null,null,null,null,null,null,null,null,null,null,null,null,null,null,null,null,null,null,null,null,null,null,null,{"$f":"IF(AP56=\"※\",AG56,\"\")","v":""}]
[]
[]
[null,null,null,null,null,null,null,null,null,null,null,null,null,null,null,null,null,null,null,null,null,null,null,null,null,null,null,null,null,null,null,null,null,null,null,null,null,null,null,null,null,null,null,null,null,null,null,null,null,null,null,null,null,null,null,null,null,null,null,null,null,null,null,null,null,null,null,null,null,null,null,null,null,null,null,null,null,null,null,null,null,null,null,null,null,null,null,null,null,null,null,null,null,null,null,null,null,null,null,null,null,null,null,null,null,null,null,null,null,null,null,null,null,null,null,null,null,null,null,null,null,null,null,null,null,null,null,null,null,null,null,null,null,null,null,null,null,null,null,null,null,null,null,null,null,null,null,null,null,null,null,{"$f":"IF(AP59=\"※\",AG59,\"\")","v":""}]
[]
[]
[null,null,null,null,null,"　　　　　　　　　　　　　小　計(8％対象税別)",null,null,null,null,null,null,null,null,null,null,null,null,null,null,null,null,null,null,null,null,null,null,null,null,null,null,{"$f":"SUM(AG26:AO61)-EV65","v":0}]
[]
[]
[null,null,null,null,null,"　　　　　　　　　　　消費税(8％対象)",null,null,null,null,null,null,null,null,null,null,null,null,null,null,null,null,null,null,null,null,null,null,null,null,null,null,{"$f":"(SUM(AG26:AO61)-EV65)*1.08-AG62","v":0},null,null,null,null,null,null,null,null,null,null,null,null,null,null,null,null,null,null,null,null,null,null,null,null,null,null,null,null,null,null,null,null,null,null,null,null,null,null,null,null,null,null,null,null,null,null,null,null,null,null,null,null,null,null,null,null,null,null,null,null,null,null,null,null,null,null,null,null,null,null,null,null,null,null,null,null,null,null,null,null,null,null,null,null,null,null,null,null,null,null,null,null,null,null,null,null,null,null,null,null,null,null,null,null,null,null,null,null,null,null,null,null,null,null,null,null,null,null,{"$f":"SUM(EV26:FC61)","v":0}]
[]
[]
[null,null,null,null,null,"　　　　　　　　　　 小　計(非課税)",null,null,null,null,null,null,null,null,null,null,null,null,null,null,null,null,null,null,null,null,null,null,null,null,null,null,{"$f":"EV65","v":0}]
[]
[]
[]
[null,null,null,null,null,null,null,null,null,"(註)",null,null,null,null,null,null,null,null,null,null,null,null,null,null,null,null,null,null,null,null,null,"住　所"]
[]
[null,null,null,null,null,null,null,null,null," 1．請求者は※印欄に記入しないこと。",null,null,null,null,null,null,null,null,null,null,null,null,null,null,null,null,null,null,null,null,null,"請求者",null,null,null,{"$f":"請求基本情報!K23","v":0}]
[null,"受付年月日",null,null,null,null,null,null,null," 2．各作業所毎に請求書を作成すること。"]
[null,null,null,null,null,null,null,null,null," 3．請求書は毎月15日締切18日本社必着のこと。",null,null,null,null,null,null,null,null,null,null,null,null,null,null,null,null,null,null,null,null,null,null,null,null,null,{"$f":"請求基本情報!K12","v":0}]
[]
[null,null,null,null,null,null,null,null,null,"取引",null,null,{"$f":"請求基本情報!M32","v":0},null,null,null,null,null,null,null,null,{"$f":"請求基本情報!Y32","v":0},null,null,null,null,null,null,null,null,null,null,null,null,null,{"$f":"請求基本情報!O16","v":0},null,null,null,null,null,null,null,{"$f":"請求基本情報!AK16","v":0}]
[null,null,null,null,null,null,null,null,null,"銀行"]
[null,null,null,null,null,null,null,null,null,"　   普通",null,null,null,"　   当座",null,null,null,"口座番号：",null,null,null,null,{"$f":"請求基本情報!AT32","v":0},null,null,null,null,null,null,null,null,null,null,null,null,"TEL",null,{"$f":"請求基本情報!O27","v":0},null,null,null,null,null,null,"FAX",null,{"$f":"請求基本情報!AK27","v":0}]
[]
[null,null,null,null,null,null,null,null,null,"口座\n名義",null,null,{"$f":"請求基本情報!R36","v":0},null,null,null,null,null,null,null,null,null,null,null,null,null,null,null,null,null,null,"登録番号　：",null,null,null,null,{"$f":"請求基本情報!K30","v":0}]
[]
[null,null,null,null,null,null,null,null,null,null,null,null,{"$f":"請求基本情報!R38","v":0},null,null,null,null,null,null,null,null,null,null,null,null,null,null,null,null,null,null,"業者コード：",null,null,null,null,{"$f":"請求基本情報!K31","v":0}]
[]
[]
[]
[null,"役　員",null,null,null,null,null,null,null,null,null,null,null,null,null,null,null,null,null,null,null,"担　当　部　長",null,null,null,null,null,null,null,null,null,null,null,null,null,null,null,null,null,null,null,"作　業　所"]
[]
[]
[]
[]
[]
[null,"【提 出 用】",null,null,null,null,null,null,null,null,null,null,null,null,null,null,null,null,null,null,null,null,null,null,null,null,null,null,null,null,null,null,null,null,null," No."]
[]
[null,"請　求　書（契約外）",null,null,null,null,null,null,null,null,null,null,null,null,null,null,null,null,null,null,null,null,null,null,null,null,null,null,null,null,null,null,null,null,null,{"$f":"AJ3","v":0},null,null,null,null,null,null,null,"年",null,{"$f":"AT3","v":0},null,"月",null,{"$f":"AX3","v":0},null,"日"]
[]
[]
[null,"中 国 建 設 工 業 ㈱　 御 中"]
[]
[]
[null," 下記の通りご請求申し上げます。"]
[]
[]
[null,"税別金額",null,null,null,null,"金",null,null,{"$f":"J12","v":0}]
[]
[]
[]
[]
[null,"作業所及び担当者：",null,null,null,null,null,null,null,{"$f":"J17","v":0}]
[]
[]
[null,"※作業所コード：",null,null,null,null,null,null,{"$f":"I20","v":0}]
[]
[]
[null,"月",null,"日",null,"品　名",null,null,null,null,null,null,null,null,null,null,null,null,null,"数量",null,null,"単位",null,null,"単　価",null,null,null,null,null,null,"金　額",null,null,null,null,null,null,null,null,"非課税",null,null,null,"備　考"]
[]
[]
[null,{"$f":"B26","v":0},null,{"$f":"D26","v":0},null,{"$f":"F26","v":0},null,null,null,null,null,null,null,null,null,null,null,null,null,{"$f":"T26","v":0},null,null,{"$f":"W26","v":0},null,null,{"$f":"Z26","v":0},null,null,null,null,null,null,{"$f":"AG26","v":0},null,null,null,null,null,null,null,null,{"$f":"AP26","v":0},null,null,null,{"$f":"AT26","v":0}]
[]
[]
[null,{"$f":"B29","v":0},null,{"$f":"D29","v":0},null,{"$f":"F29","v":0},null,null,null,null,null,null,null,null,null,null,null,null,null,{"$f":"T29","v":0},null,null,{"$f":"W29","v":0},null,null,{"$f":"Z29","v":0},null,null,null,null,null,null,{"$f":"AG29","v":0},null,null,null,null,null,null,null,null,{"$f":"AP29","v":0},null,null,null,{"$f":"AT29","v":0}]
[]
[]
[null,{"$f":"B32","v":0},null,{"$f":"D32","v":0},null,{"$f":"F32","v":0},null,null,null,null,null,null,null,null,null,null,null,null,null,{"$f":"T32","v":0},null,null,{"$f":"W32","v":0},null,null,{"$f":"Z32","v":0},null,null,null,null,null,null,{"$f":"AG32","v":0},null,null,null,null,null,null,null,null,{"$f":"AP32","v":0},null,null,null,{"$f":"AT32","v":0}]
[]
[]
[null,{"$f":"B35","v":0},null,{"$f":"D35","v":0},null,{"$f":"F35","v":0},null,null,null,null,null,null,null,null,null,null,null,null,null,{"$f":"T35","v":0},null,null,{"$f":"W35","v":0},null,null,{"$f":"Z35","v":0},null,null,null,null,null,null,{"$f":"AG35","v":0},null,null,null,null,null,null,null,null,{"$f":"AP35","v":0},null,null,null,{"$f":"AT35","v":0}]
[]
[]
[null,{"$f":"B38","v":0},null,{"$f":"D38","v":0},null,{"$f":"F38","v":0},null,null,null,null,null,null,null,null,null,null,null,null,null,{"$f":"T38","v":0},null,null,{"$f":"W38","v":0},null,null,{"$f":"Z38","v":0},null,null,null,null,null,null,{"$f":"AG38","v":0},null,null,null,null,null,null,null,null,{"$f":"AP38","v":0},null,null,null,{"$f":"AT38","v":0}]
[]
[]
[null,{"$f":"B41","v":0},null,{"$f":"D41","v":0},null,{"$f":"F41","v":0},null,null,null,null,null,null,null,null,null,null,null,null,null,{"$f":"T41","v":0},null,null,{"$f":"W41","v":0},null,null,{"$f":"Z41","v":0},null,null,null,null,null,null,{"$f":"AG41","v":0},null,null,null,null,null,null,null,null,{"$f":"AP41","v":0},null,null,null,{"$f":"AT41","v":0}]
[]
[]
[null,{"$f":"B44","v":0},null,{"$f":"D44","v":0},null,{"$f":"F44","v":0},null,null,null,null,null,null,null,null,null,null,null,null,null,{"$f":"T44","v":0},null,null,{"$f":"W44","v":0},null,null,{"$f":"Z44","v":0},null,null,null,null,null,null,{"$f":"AG44","v":0},null,null,null,null,null,null,null,null,{"$f":"AP44","v":0},null,null,null,{"$f":"AT44","v":0}]
[]
[]
[null,{"$f":"B47","v":0},null,{"$f":"D47","v":0},null,{"$f":"F47","v":0},null,null,null,null,null,null,null,null,null,null,null,null,null,{"$f":"T47","v":0},null,null,{"$f":"W47","v":0},null,null,{"$f":"Z47","v":0},null,null,null,null,null,null,{"$f":"AG47","v":0},null,null,null,null,null,null,null,null,{"$f":"AP47","v":0},null,null,null,{"$f":"AT47","v":0}]
[]
[]
[null,{"$f":"B50","v":0},null,{"$f":"D50","v":0},null,{"$f":"F50","v":0},null,null,null,null,null,null,null,null,null,null,null,null,null,{"$f":"T50","v":0},null,null,{"$f":"W50","v":0},null,null,{"$f":"Z50","v":0},null,null,null,null,null,null,{"$f":"AG50","v":0},null,null,null,null,null,null,null,null,{"$f":"AP50","v":0},null,null,null,{"$f":"AT50","v":0}]
[]
[]
[null,{"$f":"B53","v":0},null,{"$f":"D53","v":0},null,{"$f":"F53","v":0},null,null,null,null,null,null,null,null,null,null,null,null,null,{"$f":"T53","v":0},null,null,{"$f":"W53","v":0},null,null,{"$f":"Z53","v":0},null,null,null,null,null,null,{"$f":"AG53","v":0},null,null,null,null,null,null,null,null,{"$f":"AP53","v":0},null,null,null,{"$f":"AT53","v":0}]
[]
[]
[null,{"$f":"B56","v":0},null,{"$f":"D56","v":0},null,{"$f":"F56","v":0},null,null,null,null,null,null,null,null,null,null,null,null,null,{"$f":"T56","v":0},null,null,{"$f":"W56","v":0},null,null,{"$f":"Z56","v":0},null,null,null,null,null,null,{"$f":"AG56","v":0},null,null,null,null,null,null,null,null,{"$f":"AP56","v":0},null,null,null,{"$f":"AT56","v":0}]
[]
[]
[null,{"$f":"B59","v":0},null,{"$f":"D59","v":0},null,{"$f":"F59","v":0},null,null,null,null,null,null,null,null,null,null,null,null,null,{"$f":"T59","v":0},null,null,{"$f":"W59","v":0},null,null,{"$f":"Z59","v":0},null,null,null,null,null,null,{"$f":"AG59","v":0},null,null,null,null,null,null,null,null,{"$f":"AP59","v":0},null,null,null,{"$f":"AT59","v":0}]
[]
[]
[null,null,null,null,null,"　　　　　　　　　　　　　小　計(8％対象税別)",null,null,null,null,null,null,null,null,null,null,null,null,null,null,null,null,null,null,null,null,null,null,null,null,null,null,{"$f":"AG62","v":0}]
[]
[]
[null,null,null,null,null,"　　　　　　　　　　　消費税(8％対象)",null,null,null,null,null,null,null,null,null,null,null,null,null,null,null,null,null,null,null,null,null,null,null,null,null,null,{"$f":"AG65","v":0}]
[]
[]
[null,null,null,null,null,"　　　　　　　　　　 小　計(非課税)",null,null,null,null,null,null,null,null,null,null,null,null,null,null,null,null,null,null,null,null,null,null,null,null,null,null,{"$f":"AG68","v":0}]
[]
[]
[]
[null,null,null,null,null,null,null,null,null,"(註)",null,null,null,null,null,null,null,null,null,null,null,null,null,null,null,null,null,null,null,null,null,"住　所"]
[]
[null,null,null,null,null,null,null,null,null," 1．請求者は※印欄に記入しないこと。",null,null,null,null,null,null,null,null,null,null,null,null,null,null,null,null,null,null,null,null,null,"請求者",null,null,null,{"$f":"請求基本情報!K23","v":0}]
[null,"受付年月日",null,null,null,null,null,null,null," 2．各作業所毎に請求書を作成すること。"]
[null,null,null,null,null,null,null,null,null," 3．請求書は毎月15日締切18日本社必着のこと。",null,null,null,null,null,null,null,null,null,null,null,null,null,null,null,null,null,null,null,null,null,null,null,null,null,{"$f":"請求基本情報!K12","v":0}]
[]
[null,null,null,null,null,null,null,null,null,"取引",null,null,{"$f":"請求基本情報!M32","v":0},null,null,null,null,null,null,null,null,{"$f":"請求基本情報!Y32","v":0},null,null,null,null,null,null,null,null,null,null,null,null,null,{"$f":"請求基本情報!O16","v":0},null,null,null,null,null,null,null,{"$f":"請求基本情報!AK16","v":0}]
[null,null,null,null,null,null,null,null,null,"銀行"]
[null,null,null,null,null,null,null,null,null,"　   普通",null,null,null,"　   当座",null,null,null,"口座番号：",null,null,null,null,{"$f":"請求基本情報!AT32","v":0},null,null,null,null,null,null,null,null,null,null,null,null,"TEL",null,{"$f":"請求基本情報!O27","v":0},null,null,null,null,null,null,"FAX",null,{"$f":"請求基本情報!AK27","v":0}]
[]
[null,null,null,null,null,null,null,null,null,"口座\n名義",null,null,{"$f":"請求基本情報!R36","v":0},null,null,null,null,null,null,null,null,null,null,null,null,null,null,null,null,null,null,"登録番号　：",null,null,null,null,{"$f":"請求基本情報!K30","v":0}]
[]
[null,null,null,null,null,null,null,null,null,null,null,null,{"$f":"請求基本情報!R38","v":0},null,null,null,null,null,null,null,null,null,null,null,null,null,null,null,null,null,null,"業者コード：",null,null,null,null,{"$f":"請求基本情報!K31","v":0}]
[]
[]
[]
[null,"役　員",null,null,null,null,null,null,null,null,null,null,null,null,null,null,null,null,null,null,null,"担　当　部　長",null,null,null,null,null,null,null,null,null,null,null,null,null,null,null,null,null,null,null,"作　業　所"]

{"sheet":"契約外(10%)","index":9,"n_rows":181,"n_cols":156,"rows_kept":181,"cut":false,"hidden":false,"merged":[[180,1,181,20],[180,21,181,40],[180,41,181,52],[182,1,185,20],[182,21,185,40],[182,41,185,52],[172,35,173,36],[172,37,173,43],[172,44,173,45],[172,46,173,52],[174,9,177,11],[174,12,175,29],[174,31,175,35],[174,36,175,52],[176,12,177,29],[176,31,177,35],[164,9,165,11],[164,31,165,33],[166,31,167,33],[166,35,167,52],[167,1,168,8],[168,35,169,52],[169,1,177,8],[170,9,170,11],[170,12,171,20],[170,21,171,29],[170,35,171,42],[170,43,171,52],[171,9,171,11],[172,9,173,12],[172,13,173,16],[172,17,173,21],[172,22,173,29],[172,31,173,34],[176,36,177,52],[154,1,156,4],[154,5,156,31],[154,32,156,40],[154,41,162,52],[157,1,159,4],[157,5,159,31],[157,32,159,40],[160,1,162,4],[160,5,162,31],[160,32,162,40],[148,32,150,40],[148,41,150,44],[148,45,150,52],[151,1,153,2],[151,3,153,4],[151,5,153,18],[151,19,153,21],[151,22,153,24],[151,25,153,31],[151,32,153,40],[148,1,150,2],[148,3,150,4],[148,5,150,18],[148,19,150,21],[148,22,150,24],[148,25,150,31],[151,41,153,44],[151,45,153,52],[145,1,147,2],[145,3,147,4],[145,5,147,18],[145,19,147,21],[145,22,147,24],[145,25,147,31],[145,32,147,40],[145,41,147,44],[145,45,147,52],[142,1,144,2],[142,3,144,4],[142,5,144,18],[142,19,144,21],[142,22,144,24],[142,25,144,31],[142,32,144,40],[142,41,144,44],[142,45,144,52],[136,32,138,40],[136,41,138,44],[136,45,138,52],[139,1,141,2],[139,3,141,4],[139,5,141,18],[139,19,141,21],[139,22,141,24],[139,25,141,31],[139,32,141,40],[136,1,138,2],[136,3,138,4],[136,5,138,18],[136,19,138,21],[136,22,138,24],[136,25,138,31],[139,41,141,44],[139,45,141,52],[133,1,135,2],[133,3,135,4],[133,5,135,18],[133,19,135,21],[133,22,135,24],[133,25,135,31],[133,32,135,40],[133,41,135,44],[133,45,135,52],[130,1,132,2],[130,3,132,4],[130,5,132,18],[130,19,132,21],[130,22,132,24],[130,25,132,31],[130,32,132,40],[130,41,132,44],[130,45,132,52],[124,32,126,40],[124,41,126,44],[124,45,126,52],[127,1,129,2],[127,3,129,4],[127,5,129,18],[127,19,129,21],[127,22,129,24],[127,25,129,31],[127,32,129,40],[124,1,126,2],[124,3,126,4],[124,5,126,18],[124,19,126,21],[124,22,126,24],[124,25,126,31],[127,41,129,44],[127,45,129,52],[121,1,123,2],[121,3,123,4],[121,5,123,18],[121,19,123,21],[121,22,123,24],[121,25,123,31],[121,32,123,40],[121,41,123,44],[121,45,123,52],[118,1,120,2],[118,3,120,4],[118,5,120,18],[118,19,120,21],[118,22,120,24],[118,25,120,31],[118,32,120,40],[118,41,120,44],[118,45,120,52],[111,30,111,52],[112,1,113,7],[112,8,113,27],[115,1,117,2],[115,3,117,4],[115,5,117,18],[115,19,117,21],[115,22,117,24],[115,25,117,31],[115,32,117,40],[115,41,117,44],[115,45,117,52],[107,30,107,52],[108,30,108,52],[109,1,110,8],[109,9,110,27],[109,30,109,52],[110,30,110,52],[104,1,106,5],[104,6,106,8],[104,9,106,27],[104,30,104,52],[105,30,105,52],[106,30,106,52],[98,1,100,27],[100,30,100,52],[101,1,102,27],[101,30,101,52],[102,30,102,52],[103,30,103,52],[93,1,94,27],[93,35,94,52],[95,1,97,27],[95,35,96,42],[95,43,96,44],[95,45,96,46],[95,47,96,48],[95,49,96,50],[95,51,96,52],[97,30,99,32],[87,1,88,20],[87,21,88,40],[87,41,88,52],[89,1,92,20],[89,21,92,40],[89,41,92,52],[79,35,80,36],[79,37,80,43],[79,44,80,45],[79,46,80,52],[81,9,84,11],[81,12,82,29],[81,31,82,35],[81,36,82,52],[83,12,84,29],[83,31,84,35],[73,31,74,33],[78,9,78,11],[79,9,80,12],[79,13,80,16],[79,17,80,21],[79,22,80,29],[79,31,80,34],[73,35,74,52],[74,1,75,8],[75,35,76,52],[76,1,84,8],[77,9,77,11],[77,12,78,20],[77,21,78,29],[77,35,78,42],[77,43,78,52],[83,36,84,52],[67,1,69,4],[67,5,69,31],[67,32,69,40],[71,9,72,10],[58,41,60,44],[58,45,60,52],[58,155,60,162],[61,1,63,4],[61,5,63,31],[61,32,63,40],[61,41,69,52],[64,1,66,4],[64,5,66,31],[64,32,66,40],[71,31,72,33],[55,155,57,162],[58,1,60,2],[58,3,60,4],[58,5,60,18],[58,19,60,21],[58,22,60,24],[58,25,60,31],[58,32,60,40],[64,155,66,162],[55,1,57,2],[55,3,57,4],[55,5,57,18],[55,19,57,21],[55,22,57,24],[55,25,57,31],[55,32,57,40],[55,41,57,44],[55,45,57,52],[49,155,51,162],[52,1,54,2],[52,3,54,4],[52,5,54,18],[52,19,54,21],[52,22,54,24],[52,25,54,31],[52,32,54,40],[52,41,54,44],[52,45,54,52],[52,155,54,162],[49,1,51,2],[49,3,51,4],[49,5,51,18],[49,19,51,21],[49,22,51,24],[49,25,51,31],[49,32,51,40],[49,41,51,44],[49,45,51,52],[43,155,45,162],[46,1,48,2],[46,3,48,4],[46,5,48,18],[46,19,48,21],[46,22,48,24],[46,25,48,31],[46,32,48,40],[46,41,48,44],[46,45,48,52],[46,155,48,162],[43,1,45,2],[43,3,45,4],[43,5,45,18],[43,19,45,21],[43,22,45,24],[43,25,45,31],[43,32,45,40],[43,41,45,44],[43,45,45,52],[37,155,39,162],[40,1,42,2],[40,3,42,4],[40,5,42,18],[40,19,42,21],[40,22,42,24],[40,25,42,31],[40,32,42,40],[40,41,42,44],[40,45,42,52],[40,155,42,162],[37,1,39,2],[37,3,39,4],[37,5,39,18],[37,19,39,21],[37,22,39,24],[37,25,39,31],[37,32,39,40],[37,41,39,44],[37,45,39,52],[31,155,33,162],[34,1,36,2],[34,3,36,4],[34,5,36,18],[34,19,36,21],[34,22,36,24],[34,25,36,31],[34,32,36,40],[34,41,36,44],[34,45,36,52],[34,155,36,162],[31,1,33,2],[31,3,33,4],[31,5,33,18],[31,19,33,21],[31,22,33,24],[31,25,33,31],[31,32,33,40],[31,41,33,44],[31,45,33,52],[25,155,27,162],[28,1,30,2],[28,3,30,4],[28,5,30,18],[28,19,30,21],[28,22,30,24],[28,25,30,31],[28,32,30,40],[28,41,30,44],[28,45,30,52],[28,155,30,162],[22,32,24,40],[22,41,24,44],[22,45,24,52],[25,1,27,2],[25,3,27,4],[25,5,27,18],[25,19,27,21],[25,22,27,24],[25,25,27,31],[25,32,27,40],[22,1,24,2],[22,3,24,4],[22,5,24,18],[22,19,24,21],[22,22,24,24],[22,25,24,31],[25,41,27,44],[25,45,27,52],[14,29,14,52],[15,29,15,52],[16,1,17,8],[16,9,17,27],[19,1,20,7],[19,8,20,27],[11,1,13,5],[11,6,13,8],[11,9,13,27],[11,29,11,52],[12,29,12,52],[13,29,13,52],[5,1,7,27],[7,29,7,52],[8,1,9,27],[8,29,8,52],[9,29,9,52],[10,29,10,52],[0,1,1,27],[0,35,1,52],[2,1,4,27],[2,35,3,42],[2,43,3,44],[2,45,3,46],[2,47,3,48],[2,49,3,50],[2,51,3,52],[4,30,6,32]]}
[null,"【業 者 控】",null,null,null,null,null,null,null,null,null,null,null,null,null,null,null,null,null,null,null,null,null,null,null,null,null,null,null,null,null,null,null,null,null," No."]
[]
[null,"請　求　書（契約外）",null,null,null,null,null,null,null,null,null,null,null,null,null,null,null,null,null,null,null,null,null,null,null,null,null,null,null,null,null,null,null,null,null,null,null,null,null,null,null,null,null,"年",null,null,null,"月",null,null,null,"日"]
[]
[null,null,null,null,null,null,null,null,null,null,null,null,null,null,null,null,null,null,null,null,null,null,null,null,null,null,null,null,null,null,"(註)"]
[null,"中 国 建 設 工 業 ㈱　 御 中"]
[]
[null,null,null,null,null,null,null,null,null,null,null,null,null,null,null,null,null,null,null,null,null,null,null,null,null,null,null,null,null," ※請求者は太枠のみ記入すること。"]
[null," 下記の通りご請求申し上げます。",null,null,null,null,null,null,null,null,null,null,null,null,null,null,null,null,null,null,null,null,null,null,null,null,null,null,null," ※各作業所毎に請求書を作成すること。"]
[null,null,null,null,null,null,null,null,null,null,null,null,null,null,null,null,null,null,null,null,null,null,null,null,null,null,null,null,null," ※請求書は毎月15日締切18日本社必着のこと。"]
[null,null,null,null,null,null,null,null,null,null,null,null,null,null,null,null,null,null,null,null,null,null,null,null,null,null,null,null,null," ※請求内訳には消費税額を除いた金額を入力して下さい。"]
[null,"税別金額",null,null,null,null,"金",null,null,{"$f":"AG62+AG68","v":0},null,null,null,null,null,null,null,null,null,null,null,null,null,null,null,null,null,null,null," ※提出期日を経過したものは当該月の支払対象になりません｡"]
[null,null,null,null,null,null,null,null,null,null,null,null,null,null,null,null,null,null,null,null,null,null,null,null,null,null,null,null,null," ※請求書､請求書明細については総務課にお問い合わせ下さい｡"]
[null,null,null,null,null,null,null,null,null,null,null,null,null,null,null,null,null,null,null,null,null,null,null,null,null,null,null,null,null," ※直接工事に係る材料費､労務費､外注費等の請求については､"]
[null,null,null,null,null,null,null,null,null,null,null,null,null,null,null,null,null,null,null,null,null,null,null,null,null,null,null,null,null,"　 安全衛生協議会費としまして､共栄会会員 2/1000､非会員"]
[null,null,null,null,null,null,null,null,null,null,null,null,null,null,null,null,null,null,null,null,null,null,null,null,null,null,null,null,null,"　 3/1000を支払金額より徴収させて頂きます。"]
[null,"作業所及び担当者："]
[]
[]
[null,"※作業所コード："]
[]
[]
[null,"月",null,"日",null,"品　名",null,null,null,null,null,null,null,null,null,null,null,null,null,"数量",null,null,"単位",null,null,"単　価",null,null,null,null,null,null,"金　額",null,null,null,null,null,null,null,null,"非課税",null,null,null,"備　考"]
[]
[]
[null,null,null,null,null,null,null,null,null,null,null,null,null,null,null,null,null,null,null,null,null,null,null,null,null,null,null,null,null,null,null,null,{"$f":"T26*Z26","v":0},null,null,null,null,null,null,null,null,null,null,null,null,null,null,null,null,null,null,null,null,null,null,null,null,null,null,null,null,null,null,null,null,null,null,null,null,null,null,null,null,null,null,null,null,null,null,null,null,null,null,null,null,null,null,null,null,null,null,null,null,null,null,null,null,null,null,null,null,null,null,null,null,null,null,null,null,null,null,null,null,null,null,null,null,null,null,null,null,null,null,null,null,null,null,null,null,null,null,null,null,null,null,null,null,null,null,null,null,null,null,null,null,null,null,null,null,null,null,null,null,null,null,{"$f":"IF(AP26=\"※\",AG26,\"\")","v":""}]
[]
[]
[null,null,null,null,null,null,null,null,null,null,null,null,null,null,null,null,null,null,null,null,null,null,null,null,null,null,null,null,null,null,null,null,{"$f":"T29*Z29","v":0},null,null,null,null,null,null,null,null,null,null,null,null,null,null,null,null,null,null,null,null,null,null,null,null,null,null,null,null,null,null,null,null,null,null,null,null,null,null,null,null,null,null,null,null,null,null,null,null,null,null,null,null,null,null,null,null,null,null,null,null,null,null,null,null,null,null,null,null,null,null,null,null,null,null,null,null,null,null,null,null,null,null,null,null,null,null,null,null,null,null,null,null,null,null,null,null,null,null,null,null,null,null,null,null,null,null,null,null,null,null,null,null,null,null,null,null,null,null,null,null,null,null,{"$f":"IF(AP29=\"※\",AG29,\"\")","v":""}]
[]
[]
[null,null,null,null,null,null,null,null,null,null,null,null,null,null,null,null,null,null,null,null,null,null,null,null,null,null,null,null,null,null,null,null,{"$f":"T32*Z32","v":0},null,null,null,null,null,null,null,null,null,null,null,null,null,null,null,null,null,null,null,null,null,null,null,null,null,null,null,null,null,null,null,null,null,null,null,null,null,null,null,null,null,null,null,null,null,null,null,null,null,null,null,null,null,null,null,null,null,null,null,null,null,null,null,null,null,null,null,null,null,null,null,null,null,null,null,null,null,null,null,null,null,null,null,null,null,null,null,null,null,null,null,null,null,null,null,null,null,null,null,null,null,null,null,null,null,null,null,null,null,null,null,null,null,null,null,null,null,null,null,null,null,null,{"$f":"IF(AP32=\"※\",AG32,\"\")","v":""}]
[]
[]
[null,null,null,null,null,null,null,null,null,null,null,null,null,null,null,null,null,null,null,null,null,null,null,null,null,null,null,null,null,null,null,null,{"$f":"T35*Z35","v":0},null,null,null,null,null,null,null,null,null,null,null,null,null,null,null,null,null,null,null,null,null,null,null,null,null,null,null,null,null,null,null,null,null,null,null,null,null,null,null,null,null,null,null,null,null,null,null,null,null,null,null,null,null,null,null,null,null,null,null,null,null,null,null,null,null,null,null,null,null,null,null,null,null,null,null,null,null,null,null,null,null,null,null,null,null,null,null,null,null,null,null,null,null,null,null,null,null,null,null,null,null,null,null,null,null,null,null,null,null,null,null,null,null,null,null,null,null,null,null,null,null,null,{"$f":"IF(AP35=\"※\",AG35,\"\")","v":""}]
[]
[]
[null,null,null,null,null,null,null,null,null,null,null,null,null,null,null,null,null,null,null,null,null,null,null,null,null,null,null,null,null,null,null,null,{"$f":"T38*Z38","v":0},null,null,null,null,null,null,null,null,null,null,null,null,null,null,null,null,null,null,null,null,null,null,null,null,null,null,null,null,null,null,null,null,null,null,null,null,null,null,null,null,null,null,null,null,null,null,null,null,null,null,null,null,null,null,null,null,null,null,null,null,null,null,null,null,null,null,null,null,null,null,null,null,null,null,null,null,null,null,null,null,null,null,null,null,null,null,null,null,null,null,null,null,null,null,null,null,null,null,null,null,null,null,null,null,null,null,null,null,null,null,null,null,null,null,null,null,null,null,null,null,null,null,{"$f":"IF(AP38=\"※\",AG38,\"\")","v":""}]
[]
[]
[null,null,null,null,null,null,null,null,null,null,null,null,null,null,null,null,null,null,null,null,null,null,null,null,null,null,null,null,null,null,null,null,{"$f":"T41*Z41","v":0},null,null,null,null,null,null,null,null,null,null,null,null,null,null,null,null,null,null,null,null,null,null,null,null,null,null,null,null,null,null,null,null,null,null,null,null,null,null,null,null,null,null,null,null,null,null,null,null,null,null,null,null,null,null,null,null,null,null,null,null,null,null,null,null,null,null,null,null,null,null,null,null,null,null,null,null,null,null,null,null,null,null,null,null,null,null,null,null,null,null,null,null,null,null,null,null,null,null,null,null,null,null,null,null,null,null,null,null,null,null,null,null,null,null,null,null,null,null,null,null,null,null,{"$f":"IF(AP41=\"※\",AG41,\"\")","v":""}]
[]
[]
[null,null,null,null,null,null,null,null,null,null,null,null,null,null,null,null,null,null,null,null,null,null,null,null,null,null,null,null,null,null,null,null,{"$f":"T44*Z44","v":0},null,null,null,null,null,null,null,null,null,null,null,null,null,null,null,null,null,null,null,null,null,null,null,null,null,null,null,null,null,null,null,null,null,null,null,null,null,null,null,null,null,null,null,null,null,null,null,null,null,null,null,null,null,null,null,null,null,null,null,null,null,null,null,null,null,null,null,null,null,null,null,null,null,null,null,null,null,null,null,null,null,null,null,null,null,null,null,null,null,null,null,null,null,null,null,null,null,null,null,null,null,null,null,null,null,null,null,null,null,null,null,null,null,null,null,null,null,null,null,null,null,null,{"$f":"IF(AP44=\"※\",AG44,\"\")","v":""}]
[]
[]
[null,null,null,null,null,null,null,null,null,null,null,null,null,null,null,null,null,null,null,null,null,null,null,null,null,null,null,null,null,null,null,null,{"$f":"T47*Z47","v":0},null,null,null,null,null,null,null,null,null,null,null,null,null,null,null,null,null,null,null,null,null,null,null,null,null,null,null,null,null,null,null,null,null,null,null,null,null,null,null,null,null,null,null,null,null,null,null,null,null,null,null,null,null,null,null,null,null,null,null,null,null,null,null,null,null,null,null,null,null,null,null,null,null,null,null,null,null,null,null,null,null,null,null,null,null,null,null,null,null,null,null,null,null,null,null,null,null,null,null,null,null,null,null,null,null,null,null,null,null,null,null,null,null,null,null,null,null,null,null,null,null,null,{"$f":"IF(AP47=\"※\",AG47,\"\")","v":""}]
[]
[]
[null,null,null,null,null,null,null,null,null,null,null,null,null,null,null,null,null,null,null,null,null,null,null,null,null,null,null,null,null,null,null,null,{"$f":"T50*Z50","v":0},null,null,null,null,null,null,null,null,null,null,null,null,null,null,null,null,null,null,null,null,null,null,null,null,null,null,null,null,null,null,null,null,null,null,null,null,null,null,null,null,null,null,null,null,null,null,null,null,null,null,null,null,null,null,null,null,null,null,null,null,null,null,null,null,null,null,null,null,null,null,null,null,null,null,null,null,null,null,null,null,null,null,null,null,null,null,null,null,null,null,null,null,null,null,null,null,null,null,null,null,null,null,null,null,null,null,null,null,null,null,null,null,null,null,null,null,null,null,null,null,null,null,{"$f":"IF(AP50=\"※\",AG50,\"\")","v":""}]
[]
[]
[null,null,null,null,null,null,null,null,null,null,null,null,null,null,null,null,null,null,null,null,null,null,null,null,null,null,null,null,null,null,null,null,{"$f":"T53*Z53","v":0},null,null,null,null,null,null,null,null,null,null,null,null,null,null,null,null,null,null,null,null,null,null,null,null,null,null,null,null,null,null,null,null,null,null,null,null,null,null,null,null,null,null,null,null,null,null,null,null,null,null,null,null,null,null,null,null,null,null,null,null,null,null,null,null,null,null,null,null,null,null,null,null,null,null,null,null,null,null,null,null,null,null,null,null,null,null,null,null,null,null,null,null,null,null,null,null,null,null,null,null,null,null,null,null,null,null,null,null,null,null,null,null,null,null,null,null,null,null,null,null,null,null,{"$f":"IF(AP53=\"※\",AG53,\"\")","v":""}]
[]
[]
[null,null,null,null,null,null,null,null,null,null,null,null,null,null,null,null,null,null,null,null,null,null,null,null,null,null,null,null,null,null,null,null,{"$f":"T56*Z56","v":0},null,null,null,null,null,null,null,null,null,null,null,null,null,null,null,null,null,null,null,null,null,null,null,null,null,null,null,null,null,null,null,null,null,null,null,null,null,null,null,null,null,null,null,null,null,null,null,null,null,null,null,null,null,null,null,null,null,null,null,null,null,null,null,null,null,null,null,null,null,null,null,null,null,null,null,null,null,null,null,null,null,null,null,null,null,null,null,null,null,null,null,null,null,null,null,null,null,null,null,null,null,null,null,null,null,null,null,null,null,null,null,null,null,null,null,null,null,null,null,null,null,null,{"$f":"IF(AP56=\"※\",AG56,\"\")","v":""}]
[]
[]
[null,null,null,null,null,null,null,null,null,null,null,null,null,null,null,null,null,null,null,null,null,null,null,null,null,null,null,null,null,null,null,null,null,null,null,null,null,null,null,null,null,null,null,null,null,null,null,null,null,null,null,null,null,null,null,null,null,null,null,null,null,null,null,null,null,null,null,null,null,null,null,null,null,null,null,null,null,null,null,null,null,null,null,null,null,null,null,null,null,null,null,null,null,null,null,null,null,null,null,null,null,null,null,null,null,null,null,null,null,null,null,null,null,null,null,null,null,null,null,null,null,null,null,null,null,null,null,null,null,null,null,null,null,null,null,null,null,null,null,null,null,null,null,null,null,null,null,null,null,null,null,null,null,null,null,{"$f":"IF(AP59=\"※\",AG59,\"\")","v":""}]
[]
[]
[null,null,null,null,null,"　　　　　　　　　　　　　　小　計(10％対象税別)",null,null,null,null,null,null,null,null,null,null,null,null,null,null,null,null,null,null,null,null,null,null,null,null,null,null,{"$f":"SUM(AG26:AO61)-EZ65","v":0}]
[]
[]
[null,null,null,null,null,"　　　　　　　　　　　　　　消費税(10％対象)",null,null,null,null,null,null,null,null,null,null,null,null,null,null,null,null,null,null,null,null,null,null,null,null,null,null,{"$f":"(SUM(AG26:AO61)-EZ65)*1.1-AG62","v":0},null,null,null,null,null,null,null,null,null,null,null,null,null,null,null,null,null,null,null,null,null,null,null,null,null,null,null,null,null,null,null,null,null,null,null,null,null,null,null,null,null,null,null,null,null,null,null,null,null,null,null,null,null,null,null,null,null,null,null,null,null,null,null,null,null,null,null,null,null,null,null,null,null,null,null,null,null,null,null,null,null,null,null,null,null,null,null,null,null,null,null,null,null,null,null,null,null,null,null,null,null,null,null,null,null,null,null,null,null,null,null,null,null,null,null,null,null,null,null,null,null,null,{"$f":"SUM(EZ26:FG61)","v":0}]
[]
[]
[null,null,null,null,null,"　　　　　　　　　　　　　　小　計(非課税)",null,null,null,null,null,null,null,null,null,null,null,null,null,null,null,null,null,null,null,null,null,null,null,null,null,null,{"$f":"EZ65","v":0}]
[]
[]
[]
[null,null,null,null,null,null,null,null,null,"(註)",null,null,null,null,null,null,null,null,null,null,null,null,null,null,null,null,null,null,null,null,null,"住　所"]
[]
[null,null,null,null,null,null,null,null,null," 1．請求者は※印欄に記入しないこと。",null,null,null,null,null,null,null,null,null,null,null,null,null,null,null,null,null,null,null,null,null,"請求者",null,null,null,{"$f":"請求基本情報!K23","v":0}]
[null,"受付年月日",null,null,null,null,null,null,null," 2．各作業所毎に請求書を作成すること。"]
[null,null,null,null,null,null,null,null,null," 3．請求書は毎月15日締切18日本社必着のこと。",null,null,null,null,null,null,null,null,null,null,null,null,null,null,null,null,null,null,null,null,null,null,null,null,null,{"$f":"請求基本情報!K12","v":0}]
[]
[null,null,null,null,null,null,null,null,null,"取引",null,null,{"$f":"請求基本情報!M32","v":0},null,null,null,null,null,null,null,null,{"$f":"請求基本情報!Y32","v":0},null,null,null,null,null,null,null,null,null,null,null,null,null,{"$f":"請求基本情報!O16","v":0},null,null,null,null,null,null,null,{"$f":"請求基本情報!AK16","v":0}]
[null,null,null,null,null,null,null,null,null,"銀行"]
[null,null,null,null,null,null,null,null,null,"　   普通",null,null,null,"　   当座",null,null,null,"口座番号：",null,null,null,null,{"$f":"請求基本情報!AT32","v":0},null,null,null,null,null,null,null,null,null,null,null,null,"TEL",null,{"$f":"請求基本情報!O27","v":0},null,null,null,null,null,null,"FAX",null,{"$f":"請求基本情報!AK27","v":0}]
[]
[null,null,null,null,null,null,null,null,null,"口座\n名義",null,null,{"$f":"請求基本情報!R36","v":0},null,null,null,null,null,null,null,null,null,null,null,null,null,null,null,null,null,null,"登録番号　：",null,null,null,null,{"$f":"請求基本情報!K30","v":0}]
[]
[null,null,null,null,null,null,null,null,null,null,null,null,{"$f":"請求基本情報!R38","v":0},null,null,null,null,null,null,null,null,null,null,null,null,null,null,null,null,null,null,"業者コード：",null,null,null,null,{"$f":"請求基本情報!K31","v":0}]
[]
[]
[]
[null,"役　員",null,null,null,null,null,null,null,null,null,null,null,null,null,null,null,null,null,null,null,"担　当　部　長",null,null,null,null,null,null,null,null,null,null,null,null,null,null,null,null,null,null,null,"作　業　所"]
[]
[]
[]
[]
[]
[null,"【提 出 用】",null,null,null,null,null,null,null,null,null,null,null,null,null,null,null,null,null,null,null,null,null,null,null,null,null,null,null,null,null,null,null,null,null," No."]
[]
[null,"請　求　書（契約外）",null,null,null,null,null,null,null,null,null,null,null,null,null,null,null,null,null,null,null,null,null,null,null,null,null,null,null,null,null,null,null,null,null,{"$f":"AJ3","v":0},null,null,null,null,null,null,null,"年",null,{"$f":"AT3","v":0},null,"月",null,{"$f":"AX3","v":0},null,"日"]
[]
[]
[null,"中 国 建 設 工 業 ㈱　 御 中"]
[]
[]
[null," 下記の通りご請求申し上げます。"]
[]
[]
[null,"税別金額",null,null,null,null,"金",null,null,{"$f":"J12","v":0}]
[]
[]
[]
[]
[null,"作業所及び担当者：",null,null,null,null,null,null,null,{"$f":"J17","v":0}]
[]
[]
[null,"※作業所コード：",null,null,null,null,null,null,{"$f":"I20","v":0}]
[]
[]
[null,"月",null,"日",null,"品　名",null,null,null,null,null,null,null,null,null,null,null,null,null,"数量",null,null,"単位",null,null,"単　価",null,null,null,null,null,null,"金　額",null,null,null,null,null,null,null,null,"非課税",null,null,null,"備　考"]
[]
[]
[null,{"$f":"B26","v":0},null,{"$f":"D26","v":0},null,{"$f":"F26","v":0},null,null,null,null,null,null,null,null,null,null,null,null,null,{"$f":"T26","v":0},null,null,{"$f":"W26","v":0},null,null,{"$f":"Z26","v":0},null,null,null,null,null,null,{"$f":"AG26","v":0},null,null,null,null,null,null,null,null,{"$f":"AP26","v":0},null,null,null,{"$f":"AT26","v":0}]
[]
[]
[null,{"$f":"B29","v":0},null,{"$f":"D29","v":0},null,{"$f":"F29","v":0},null,null,null,null,null,null,null,null,null,null,null,null,null,{"$f":"T29","v":0},null,null,{"$f":"W29","v":0},null,null,{"$f":"Z29","v":0},null,null,null,null,null,null,{"$f":"AG29","v":0},null,null,null,null,null,null,null,null,{"$f":"AP29","v":0},null,null,null,{"$f":"AT29","v":0}]
[]
[]
[null,{"$f":"B32","v":0},null,{"$f":"D32","v":0},null,{"$f":"F32","v":0},null,null,null,null,null,null,null,null,null,null,null,null,null,{"$f":"T32","v":0},null,null,{"$f":"W32","v":0},null,null,{"$f":"Z32","v":0},null,null,null,null,null,null,{"$f":"AG32","v":0},null,null,null,null,null,null,null,null,{"$f":"AP32","v":0},null,null,null,{"$f":"AT32","v":0}]
[]
[]
[null,{"$f":"B35","v":0},null,{"$f":"D35","v":0},null,{"$f":"F35","v":0},null,null,null,null,null,null,null,null,null,null,null,null,null,{"$f":"T35","v":0},null,null,{"$f":"W35","v":0},null,null,{"$f":"Z35","v":0},null,null,null,null,null,null,{"$f":"AG35","v":0},null,null,null,null,null,null,null,null,{"$f":"AP35","v":0},null,null,null,{"$f":"AT35","v":0}]
[]
[]
[null,{"$f":"B38","v":0},null,{"$f":"D38","v":0},null,{"$f":"F38","v":0},null,null,null,null,null,null,null,null,null,null,null,null,null,{"$f":"T38","v":0},null,null,{"$f":"W38","v":0},null,null,{"$f":"Z38","v":0},null,null,null,null,null,null,{"$f":"AG38","v":0},null,null,null,null,null,null,null,null,{"$f":"AP38","v":0},null,null,null,{"$f":"AT38","v":0}]
[]
[]
[null,{"$f":"B41","v":0},null,{"$f":"D41","v":0},null,{"$f":"F41","v":0},null,null,null,null,null,null,null,null,null,null,null,null,null,{"$f":"T41","v":0},null,null,{"$f":"W41","v":0},null,null,{"$f":"Z41","v":0},null,null,null,null,null,null,{"$f":"AG41","v":0},null,null,null,null,null,null,null,null,{"$f":"AP41","v":0},null,null,null,{"$f":"AT41","v":0}]
[]
[]
[null,{"$f":"B44","v":0},null,{"$f":"D44","v":0},null,{"$f":"F44","v":0},null,null,null,null,null,null,null,null,null,null,null,null,null,{"$f":"T44","v":0},null,null,{"$f":"W44","v":0},null,null,{"$f":"Z44","v":0},null,null,null,null,null,null,{"$f":"AG44","v":0},null,null,null,null,null,null,null,null,{"$f":"AP44","v":0},null,null,null,{"$f":"AT44","v":0}]
[]
[]
[null,{"$f":"B47","v":0},null,{"$f":"D47","v":0},null,{"$f":"F47","v":0},null,null,null,null,null,null,null,null,null,null,null,null,null,{"$f":"T47","v":0},null,null,{"$f":"W47","v":0},null,null,{"$f":"Z47","v":0},null,null,null,null,null,null,{"$f":"AG47","v":0},null,null,null,null,null,null,null,null,{"$f":"AP47","v":0},null,null,null,{"$f":"AT47","v":0}]
[]
[]
[null,{"$f":"B50","v":0},null,{"$f":"D50","v":0},null,{"$f":"F50","v":0},null,null,null,null,null,null,null,null,null,null,null,null,null,{"$f":"T50","v":0},null,null,{"$f":"W50","v":0},null,null,{"$f":"Z50","v":0},null,null,null,null,null,null,{"$f":"AG50","v":0},null,null,null,null,null,null,null,null,{"$f":"AP50","v":0},null,null,null,{"$f":"AT50","v":0}]
[]
[]
[null,{"$f":"B53","v":0},null,{"$f":"D53","v":0},null,{"$f":"F53","v":0},null,null,null,null,null,null,null,null,null,null,null,null,null,{"$f":"T53","v":0},null,null,{"$f":"W53","v":0},null,null,{"$f":"Z53","v":0},null,null,null,null,null,null,{"$f":"AG53","v":0},null,null,null,null,null,null,null,null,{"$f":"AP53","v":0},null,null,null,{"$f":"AT53","v":0}]
[]
[]
[null,{"$f":"B56","v":0},null,{"$f":"D56","v":0},null,{"$f":"F56","v":0},null,null,null,null,null,null,null,null,null,null,null,null,null,{"$f":"T56","v":0},null,null,{"$f":"W56","v":0},null,null,{"$f":"Z56","v":0},null,null,null,null,null,null,{"$f":"AG56","v":0},null,null,null,null,null,null,null,null,{"$f":"AP56","v":0},null,null,null,{"$f":"AT56","v":0}]
[]
[]
[null,{"$f":"B59","v":0},null,{"$f":"D59","v":0},null,{"$f":"F59","v":0},null,null,null,null,null,null,null,null,null,null,null,null,null,{"$f":"T59","v":0},null,null,{"$f":"W59","v":0},null,null,{"$f":"Z59","v":0},null,null,null,null,null,null,{"$f":"AG59","v":0},null,null,null,null,null,null,null,null,{"$f":"AP59","v":0},null,null,null,{"$f":"AT59","v":0}]
[]
[]
[null,null,null,null,null,"　　　　　　　　　　　　　　小　計(10％対象税別)",null,null,null,null,null,null,null,null,null,null,null,null,null,null,null,null,null,null,null,null,null,null,null,null,null,null,{"$f":"AG62","v":0}]
[]
[]
[null,null,null,null,null,"　　　　　　　　　　　　　　消費税(10％対象)",null,null,null,null,null,null,null,null,null,null,null,null,null,null,null,null,null,null,null,null,null,null,null,null,null,null,{"$f":"AG65","v":0}]
[]
[]
[null,null,null,null,null,"　　　　　　　　　　　　　　小　計(非課税)",null,null,null,null,null,null,null,null,null,null,null,null,null,null,null,null,null,null,null,null,null,null,null,null,null,null,{"$f":"AG68","v":0}]
[]
[]
[]
[null,null,null,null,null,null,null,null,null,"(註)",null,null,null,null,null,null,null,null,null,null,null,null,null,null,null,null,null,null,null,null,null,"住　所"]
[]
[null,null,null,null,null,null,null,null,null," 1．請求者は※印欄に記入しないこと。",null,null,null,null,null,null,null,null,null,null,null,null,null,null,null,null,null,null,null,null,null,"請求者",null,null,null,{"$f":"請求基本情報!K23","v":0}]
[null,"受付年月日",null,null,null,null,null,null,null," 2．各作業所毎に請求書を作成すること。"]
[null,null,null,null,null,null,null,null,null," 3．請求書は毎月15日締切18日本社必着のこと。",null,null,null,null,null,null,null,null,null,null,null,null,null,null,null,null,null,null,null,null,null,null,null,null,null,{"$f":"請求基本情報!K12","v":0}]
[]
[null,null,null,null,null,null,null,null,null,"取引",null,null,{"$f":"請求基本情報!M32","v":0},null,null,null,null,null,null,null,null,{"$f":"請求基本情報!Y32","v":0},null,null,null,null,null,null,null,null,null,null,null,null,null,{"$f":"請求基本情報!O16","v":0},null,null,null,null,null,null,null,{"$f":"請求基本情報!AK16","v":0}]
[null,null,null,null,null,null,null,null,null,"銀行"]
[null,null,null,null,null,null,null,null,null,"　   普通",null,null,null,"　   当座",null,null,null,"口座番号：",null,null,null,null,{"$f":"請求基本情報!AT32","v":0},null,null,null,null,null,null,null,null,null,null,null,null,"TEL",null,{"$f":"請求基本情報!O27","v":0},null,null,null,null,null,null,"FAX",null,{"$f":"請求基本情報!AK27","v":0}]
[]
[null,null,null,null,null,null,null,null,null,"口座\n名義",null,null,{"$f":"請求基本情報!R36","v":0},null,null,null,null,null,null,null,null,null,null,null,null,null,null,null,null,null,null,"登録番号　：",null,null,null,null,{"$f":"請求基本情報!K30","v":0}]
[]
[null,null,null,null,null,null,null,null,null,null,null,null,{"$f":"請求基本情報!R38","v":0},null,null,null,null,null,null,null,null,null,null,null,null,null,null,null,null,null,null,"業者コード：",null,null,null,null,{"$f":"請求基本情報!K31","v":0}]
[]
[]
[]
[null,"役　員",null,null,null,null,null,null,null,null,null,null,null,null,null,null,null,null,null,null,null,"担　当　部　長",null,null,null,null,null,null,null,null,null,null,null,null,null,null,null,null,null,null,null,"作　業　所"]